Council Name,Date,TransNo,Amount � (Excl VAT),Supplier name,Supplier Category,Expense Area,Expense Type,Expense Code
London Borough of Sutton,26/10/2021,20012811,750,3C Payment UK Ltd,SUNDRY SUPPLIER - ENV SERVICES,Environment Housing and Neighbourhoods,Other Supplies & Services,A44291
London Borough of Sutton,31/10/2021,50074830,"16,562.85",4D Care Ltd,SOCIAL SERVICES RESIDENTIAL,Peoples Services,Residential Care-Children,A56115
London Borough of Sutton,04/10/2021,50078738,"3,632.60",A Step Beyond Ltd,SOCIAL SERVICES - OTHER,Peoples Services,Supported Living,A56088
London Borough of Sutton,16/11/2021,50078739,"13,074.90",A Step Beyond Ltd,SOCIAL SERVICES - OTHER,Peoples Services,Supported Living,A56088
London Borough of Sutton,16/11/2021,20013271,663,A T Sound Hire,OFFICE SERVICES,Resources,Equipment And Materials Purchase,A40000
London Borough of Sutton,16/11/2021,20013272,525,A T Sound Hire,OFFICE SERVICES,Resources,Equipment And Materials Purchase,A40000
London Borough of Sutton,01/10/2021,50074840,"2,720.00",A Wilderness Way Ltd,CHILDREN'S SERVICES - FOSTERING & ADOPTION SERVICES,Peoples Services,Residential Care-Children,A56115
London Borough of Sutton,01/10/2021,50074841,"30,070.00",A Wilderness Way Ltd,CHILDREN'S SERVICES - FOSTERING & ADOPTION SERVICES,Peoples Services,Residential Care-Children,A56115
London Borough of Sutton,01/10/2021,50074857,"46,455.67",A Wilderness Way Ltd,CHILDREN'S SERVICES - FOSTERING & ADOPTION SERVICES,Peoples Services,Residential Care-Children,A56115
London Borough of Sutton,01/10/2021,50074901,"30,070.00",A Wilderness Way Ltd,CHILDREN'S SERVICES - FOSTERING & ADOPTION SERVICES,Peoples Services,Residential Care-Children,A56115
London Borough of Sutton,18/11/2021,50078505,"3,230.50",A&M Senior Care Services Ltd ,SOCIAL SERVICES RESIDENTIAL,Peoples Services,Other Income - Outside Scope,A92127
London Borough of Sutton,18/11/2021,50078506,"1,881.50",A&M Senior Care Services Ltd ,SOCIAL SERVICES RESIDENTIAL,Peoples Services,Contract Cleaning,A27010
London Borough of Sutton,18/11/2021,50078507,674.5,A&M Senior Care Services Ltd ,SOCIAL SERVICES RESIDENTIAL,Peoples Services,Other Income - Outside Scope,A92127
London Borough of Sutton,10/11/2021,50080505,530,A2B Despatch Ltd,TAXI AND COACH HIRE,Peoples Services,Childrens Social Care Transport,A32009
London Borough of Sutton,29/10/2021,50072353,500,Abbey Care Centre ,SOCIAL SERVICES RESIDENTIAL,Peoples Services,Respite Care,A56116
London Borough of Sutton,29/10/2021,50072610,-750.4,Abbey Care Centre ,SOCIAL SERVICES RESIDENTIAL,Peoples Services,Nursing Care - 3rd party top up payment,A56023
London Borough of Sutton,29/10/2021,50072610,"3,626.72",Abbey Care Centre ,SOCIAL SERVICES RESIDENTIAL,Peoples Services,Nursing Care Short Term,A56026
London Borough of Sutton,29/10/2021,50072656,500,Abbey Care Centre ,SOCIAL SERVICES RESIDENTIAL,Peoples Services,Respite Care,A56116
London Borough of Sutton,26/11/2021,50082322,-750.4,Abbey Care Centre ,SOCIAL SERVICES RESIDENTIAL,Peoples Services,Nursing Care - 3rd party top up payment,A56023
London Borough of Sutton,26/11/2021,50082322,"3,626.72",Abbey Care Centre ,SOCIAL SERVICES RESIDENTIAL,Peoples Services,Nursing Care Short Term,A56026
London Borough of Sutton,26/11/2021,50082323,500,Abbey Care Centre ,SOCIAL SERVICES RESIDENTIAL,Peoples Services,Respite Care,A56116
London Borough of Sutton,26/11/2021,50082486,500,Abbey Care Centre ,SOCIAL SERVICES RESIDENTIAL,Peoples Services,Respite Care,A56116
London Borough of Sutton,09/11/2021,50074144,"1,056.72",ABC Pre-School Beddington LLP,GRANTS & EX GRATIA PAYMENTS,Peoples Services,Place Funding,A56110
London Borough of Sutton,09/11/2021,50074205,"1,697.85",ABC Pre-School Beddington LLP,GRANTS & EX GRATIA PAYMENTS,Peoples Services,Place Funding,A56110
London Borough of Sutton,25/10/2021,20011773,"5,348.23",Absolute Care Services Ltd,SOCIAL SERVICES DAY CARE,Peoples Services,Homecare Core Services,A56020
London Borough of Sutton,25/10/2021,20011774,"6,357.91",Absolute Care Services Ltd,SOCIAL SERVICES DAY CARE,Peoples Services,Homecare Core Services,A56020
London Borough of Sutton,25/10/2021,20011776,"5,589.89",Absolute Care Services Ltd,SOCIAL SERVICES DAY CARE,Peoples Services,Homecare Core Services,A56020
London Borough of Sutton,01/11/2021,20012536,"5,589.89",Absolute Care Services Ltd,SOCIAL SERVICES DAY CARE,Peoples Services,Homecare Core Services,A56020
London Borough of Sutton,01/11/2021,20012537,"5,348.23",Absolute Care Services Ltd,SOCIAL SERVICES DAY CARE,Peoples Services,Homecare Core Services,A56020
London Borough of Sutton,08/11/2021,20012729,"5,589.89",Absolute Care Services Ltd,SOCIAL SERVICES DAY CARE,Peoples Services,Homecare Core Services,A56020
London Borough of Sutton,08/11/2021,20012731,"5,348.23",Absolute Care Services Ltd,SOCIAL SERVICES DAY CARE,Peoples Services,Homecare Core Services,A56020
London Borough of Sutton,15/11/2021,20013146,"5,348.23",Absolute Care Services Ltd,SOCIAL SERVICES DAY CARE,Peoples Services,Homecare Core Services,A56020
London Borough of Sutton,15/11/2021,20013147,"6,357.91",Absolute Care Services Ltd,SOCIAL SERVICES DAY CARE,Peoples Services,Homecare Core Services,A56020
London Borough of Sutton,15/11/2021,20013148,"5,589.89",Absolute Care Services Ltd,SOCIAL SERVICES DAY CARE,Peoples Services,Homecare Core Services,A56020
London Borough of Sutton,07/02/2021,50082783,508.2,Absolute Care Services Ltd,SOCIAL SERVICES DAY CARE,Peoples Services,Home Care Services,A56019
London Borough of Sutton,14/03/2021,50082787,515.78,Absolute Care Services Ltd,SOCIAL SERVICES DAY CARE,Peoples Services,Home Care Services,A56019
London Borough of Sutton,31/10/2021,20013735,"2,085.79",Access UK Ltd ,IT EQUIPMENT MAINTENANCE,Peoples Services,Provider Contract Payments,A44290
London Borough of Sutton,30/09/2021,20013736,"2,089.91",Access UK Ltd ,IT EQUIPMENT MAINTENANCE,Peoples Services,Provider Contract Payments,A44290
London Borough of Sutton,31/08/2021,20013737,"2,114.63",Access UK Ltd ,IT EQUIPMENT MAINTENANCE,Peoples Services,Provider Contract Payments,A44290
London Borough of Sutton,04/11/2021,50075736,"5,410.61",Accomplish Group Ltd,SOCIAL SERVICES RESIDENTIAL,Peoples Services,Supported Living,A56088
London Borough of Sutton,18/11/2021,50079381,"4,671.40",Accomplish Group Ltd,SOCIAL SERVICES RESIDENTIAL,Peoples Services,Supported Living,A56088
London Borough of Sutton,18/11/2021,50079382,"3,080.00",Accomplish Group Ltd,SOCIAL SERVICES RESIDENTIAL,Peoples Services,Supported Living,A56088
London Borough of Sutton,24/03/2020,50080504,"1,440.00",Achieving For Children Limited,SOCIAL SERVICES - OTHER,Peoples Services,Top-up Funding,A51016
London Borough of Sutton,24/10/2021,20012210,925,Achilles Information Ltd,BUSINESS & COMPUTER SYSTEMS,Resources,Subscriptions,A47010
London Borough of Sutton,29/10/2021,50072279,"2,903.20",Acorn Lodge,SOCIAL SERVICES RESIDENTIAL,Peoples Services,Residential Care - Ext Provider,A56114
London Borough of Sutton,26/11/2021,50082248,"2,903.20",Acorn Lodge,SOCIAL SERVICES RESIDENTIAL,Peoples Services,Residential Care - Ext Provider,A56114
London Borough of Sutton,29/10/2021,50072644,"3,115.36",Acorn Residential Home,SOCIAL SERVICES RESIDENTIAL,Peoples Services,Residential Care - Ext Provider,A56114
London Borough of Sutton,26/11/2021,50082352,"3,115.36",Acorn Residential Home,SOCIAL SERVICES RESIDENTIAL,Peoples Services,Residential Care - Ext Provider,A56114
London Borough of Sutton,19/11/2021,50078960,952.5,Active Prospects,SOCIAL SERVICES DAY CARE,Peoples Services,Other Income - Outside Scope,A92127
London Borough of Sutton,19/11/2021,50078961,678.65,Active Prospects,SOCIAL SERVICES DAY CARE,Peoples Services,Contract Cleaning,A27010
London Borough of Sutton,03/11/2021,20012436,"18,679.80",ADAM HTT LTD,TAXI AND COACH HIRE,Peoples Services,Contract Cleaning,A27010
London Borough of Sutton,10/11/2021,20012897,"156,508.10",ADAM HTT LTD,TAXI AND COACH HIRE,Peoples Services,Contract Cleaning,A27010
London Borough of Sutton,17/11/2021,20013311,"166,078.88",ADAM HTT LTD,TAXI AND COACH HIRE,Peoples Services,Contract Cleaning,A27010
London Borough of Sutton,24/11/2021,20013784,"174,388.51",ADAM HTT LTD,TAXI AND COACH HIRE,Peoples Services,Contract Cleaning,A27010
London Borough of Sutton,01/11/2021,50073906,530.51,Adelfi Homecare Ltd,SOCIAL SERVICES RESIDENTIAL,Peoples Services,Home Care Services,A56019
London Borough of Sutton,25/10/2021,20012116,"6,266.51",Advanced Demand Side Management Ltd,CONFERENCES,Resources,Water Services,A24005
London Borough of Sutton,30/09/2021,20011886,661.59,Advocacy For All,LEGAL & PROFESSIONAL SERVICES,Peoples Services,Provider Contract Payments,A44290
London Borough of Sutton,29/10/2021,20012314,"12,916.67",Advocacy For All,LEGAL & PROFESSIONAL SERVICES,Peoples Services,Provider Contract Payments,A44290
London Borough of Sutton,29/10/2021,20012315,"2,916.67",Advocacy For All,LEGAL & PROFESSIONAL SERVICES,Peoples Services,Provider Contract Payments,A44290
London Borough of Sutton,26/10/2021,50074870,"3,494.01",Affinity Fostering Services Ltd,CHILDREN'S SERVICES - FOSTERING & ADOPTION SERVICES,Peoples Services,Foster Parents Support,A44110
London Borough of Sutton,26/10/2021,50074871,"3,317.31",Affinity Fostering Services Ltd,CHILDREN'S SERVICES - FOSTERING & ADOPTION SERVICES,Peoples Services,Foster Parents Support,A44110
London Borough of Sutton,26/10/2021,50074872,"3,317.31",Affinity Fostering Services Ltd,CHILDREN'S SERVICES - FOSTERING & ADOPTION SERVICES,Peoples Services,Foster Parents Support,A44110
London Borough of Sutton,26/10/2021,50074887,"3,494.01",Affinity Fostering Services Ltd,CHILDREN'S SERVICES - FOSTERING & ADOPTION SERVICES,Peoples Services,Foster Parents Support,A44110
London Borough of Sutton,29/10/2021,50072297,"7,511.00",Leighton House Ltd,SOCIAL SERVICES RESIDENTIAL,Peoples Services,Residential Care - Ext Provider,A56114
London Borough of Sutton,26/11/2021,50082361,"7,511.00",Leighton House Ltd,SOCIAL SERVICES RESIDENTIAL,Peoples Services,Residential Care - Ext Provider,A56114
London Borough of Sutton,29/10/2021,50072254,"8,400.16",Aitch Care Homes,SOCIAL SERVICES RESIDENTIAL,Peoples Services,Residential Care - Ext Provider,A56114
London Borough of Sutton,29/10/2021,50072288,"11,151.53",Aitch Care Homes,SOCIAL SERVICES RESIDENTIAL,Peoples Services,Residential Care - Ext Provider,A56114
London Borough of Sutton,26/11/2021,50082264,"8,400.16",Aitch Care Homes,SOCIAL SERVICES RESIDENTIAL,Peoples Services,Residential Care - Ext Provider,A56114
London Borough of Sutton,09/11/2021,50073571,"154,210.18",All Saints Benhilton C Of E,GRANTS & EX GRATIA PAYMENTS,Peoples Services,Payments to Schools,A51013
London Borough of Sutton,09/11/2021,50073599,"10,914.75",All Saints Benhilton C Of E,GRANTS & EX GRATIA PAYMENTS,Peoples Services,Place Funding,A56110
London Borough of Sutton,09/11/2021,50073708,"2,102.50",All Saints Benhilton C Of E,GRANTS & EX GRATIA PAYMENTS,Peoples Services,Payments to Schools,A51013
London Borough of Sutton,09/11/2021,50073733,"1,890.00",All Saints Benhilton C Of E,GRANTS & EX GRATIA PAYMENTS,Peoples Services,Payments to Schools,A51013
London Borough of Sutton,09/11/2021,50073600,"9,095.63",All Saints Carshalton Primary School,GRANTS & EX GRATIA PAYMENTS,Peoples Services,Place Funding,A56110
London Borough of Sutton,08/11/2021,50076209,740,All Saints Carshalton Primary School,GRANTS & EX GRATIA PAYMENTS,Peoples Services,Top-up Funding,A51016
London Borough of Sutton,29/10/2021,50072284,"4,454.16",Allied Care (Mhs) Ltd,SOCIAL SERVICES - OTHER,Peoples Services,Residential Care - Ext Provider,A56114
London Borough of Sutton,26/11/2021,50082193,"4,454.16",Allied Care (Mhs) Ltd,SOCIAL SERVICES - OTHER,Peoples Services,Residential Care - Ext Provider,A56114
London Borough of Sutton,26/10/2021,20011945,460.11,Allied Publicity Services (Manchester) Ltd,REPROGRAPHICS & PHOTOGRAPHY,Health and Wellbeing,Mobility Scheme for the Disabled,A61015
London Borough of Sutton,01/11/2021,20012831,"1,276.09",Allstar Business Solutions,FUEL AND VEHICLE SUPPLIES,Environment Housing and Neighbourhoods,Vehicles -  Fuel,A30015
London Borough of Sutton,29/10/2021,50072319,"5,202.00",Allswell Care Services Ltd,SOCIAL SERVICES RESIDENTIAL,Peoples Services,Residential Care - Ext Provider,A56114
London Borough of Sutton,29/10/2021,50072595,"5,202.00",Allswell Care Services Ltd,SOCIAL SERVICES RESIDENTIAL,Peoples Services,Residential Care - Ext Provider,A56114
London Borough of Sutton,29/10/2021,50072645,"6,370.00",Allswell Care Services Ltd,SOCIAL SERVICES RESIDENTIAL,Peoples Services,Residential Care - Ext Provider,A56114
London Borough of Sutton,19/11/2021,50078884,952.5,Allswell Care Services Ltd,SOCIAL SERVICES RESIDENTIAL,Peoples Services,Other Income - Outside Scope,A92127
London Borough of Sutton,19/11/2021,50078885,678.65,Allswell Care Services Ltd,SOCIAL SERVICES RESIDENTIAL,Peoples Services,Contract Cleaning,A27010
London Borough of Sutton,26/11/2021,50082304,"5,202.00",Allswell Care Services Ltd,SOCIAL SERVICES RESIDENTIAL,Peoples Services,Residential Care - Ext Provider,A56114
London Borough of Sutton,26/11/2021,50082363,"6,370.00",Allswell Care Services Ltd,SOCIAL SERVICES RESIDENTIAL,Peoples Services,Residential Care - Ext Provider,A56114
London Borough of Sutton,26/11/2021,50082403,"5,202.00",Allswell Care Services Ltd,SOCIAL SERVICES RESIDENTIAL,Peoples Services,Residential Care - Ext Provider,A56114
London Borough of Sutton,07/10/2021,50073820,"1,628.68",Alpenbest Limited,SOCIAL SERVICES DAY CARE,Peoples Services,Home Care Services,A56019
London Borough of Sutton,07/10/2021,50073821,"3,524.80",Alpenbest Limited,SOCIAL SERVICES DAY CARE,Peoples Services,Home Care Services,A56019
London Borough of Sutton,07/10/2021,50073822,528.88,Alpenbest Limited,SOCIAL SERVICES DAY CARE,Peoples Services,Home Care Services,A56019
London Borough of Sutton,07/10/2021,50073823,"1,455.29",Alpenbest Limited,SOCIAL SERVICES DAY CARE,Peoples Services,Home Care Services,A56019
London Borough of Sutton,07/10/2021,50073849,"1,591.76",Alpenbest Limited,SOCIAL SERVICES DAY CARE,Peoples Services,Home Care Services,A56019
London Borough of Sutton,07/10/2021,50073851,691.64,Alpenbest Limited,SOCIAL SERVICES DAY CARE,Peoples Services,Home Care Services,A56019
London Borough of Sutton,07/10/2021,50073883,"1,639.06",Alpenbest Limited,SOCIAL SERVICES DAY CARE,Peoples Services,Home Care Services,A56019
London Borough of Sutton,07/10/2021,50073884,852.6,Alpenbest Limited,SOCIAL SERVICES DAY CARE,Peoples Services,Home Care Services,A56019
London Borough of Sutton,07/10/2021,50073885,"2,357.75",Alpenbest Limited,SOCIAL SERVICES DAY CARE,Peoples Services,Home Care Services,A56019
London Borough of Sutton,07/10/2021,50073908,"3,069.94",Alpenbest Limited,SOCIAL SERVICES DAY CARE,Peoples Services,Home Care Services,A56019
London Borough of Sutton,07/10/2021,50073908,"2,037.06",Alpenbest Limited,SOCIAL SERVICES DAY CARE,Peoples Services,Home Care Services,A56019
London Borough of Sutton,07/10/2021,50073910,739.12,Alpenbest Limited,SOCIAL SERVICES DAY CARE,Peoples Services,Home Care Services,A56019
London Borough of Sutton,07/10/2021,50073911,653.45,Alpenbest Limited,SOCIAL SERVICES DAY CARE,Peoples Services,Home Care Services,A56019
London Borough of Sutton,07/10/2021,50073912,713.32,Alpenbest Limited,SOCIAL SERVICES DAY CARE,Peoples Services,Home Care Services,A56019
London Borough of Sutton,07/10/2021,50073914,614.32,Alpenbest Limited,SOCIAL SERVICES DAY CARE,Peoples Services,Home Care Services,A56019
London Borough of Sutton,07/10/2021,50073944,777.97,Alpenbest Limited,SOCIAL SERVICES DAY CARE,Peoples Services,Home Care Services,A56019
London Borough of Sutton,07/10/2021,50073946,650.94,Alpenbest Limited,SOCIAL SERVICES DAY CARE,Peoples Services,Home Care Services,A56019
London Borough of Sutton,04/11/2021,50078317,"1,090.22",Alpenbest Limited,SOCIAL SERVICES DAY CARE,Peoples Services,Home Care Services,A56019
London Borough of Sutton,04/11/2021,50078318,"1,233.62",Alpenbest Limited,SOCIAL SERVICES DAY CARE,Peoples Services,Home Care Services,A56019
London Borough of Sutton,04/11/2021,50078322,"1,591.76",Alpenbest Limited,SOCIAL SERVICES DAY CARE,Peoples Services,Home Care Services,A56019
London Borough of Sutton,04/11/2021,50078323,852.64,Alpenbest Limited,SOCIAL SERVICES DAY CARE,Peoples Services,Home Care Services,A56019
London Borough of Sutton,04/11/2021,50078343,739.12,Alpenbest Limited,SOCIAL SERVICES DAY CARE,Peoples Services,Home Care Services,A56019
London Borough of Sutton,04/11/2021,50078344,635.39,Alpenbest Limited,SOCIAL SERVICES DAY CARE,Peoples Services,Home Care Services,A56019
London Borough of Sutton,04/11/2021,50078345,852.64,Alpenbest Limited,SOCIAL SERVICES DAY CARE,Peoples Services,Home Care Services,A56019
London Borough of Sutton,04/11/2021,50078357,"1,628.68",Alpenbest Limited,SOCIAL SERVICES DAY CARE,Peoples Services,Home Care Services,A56019
London Borough of Sutton,04/11/2021,50078358,"3,524.80",Alpenbest Limited,SOCIAL SERVICES DAY CARE,Peoples Services,Home Care Services,A56019
London Borough of Sutton,04/11/2021,50078372,852.64,Alpenbest Limited,SOCIAL SERVICES DAY CARE,Peoples Services,Home Care Services,A56019
London Borough of Sutton,04/11/2021,50078373,610.84,Alpenbest Limited,SOCIAL SERVICES DAY CARE,Peoples Services,Home Care Services,A56019
London Borough of Sutton,04/11/2021,50078381,739.12,Alpenbest Limited,SOCIAL SERVICES DAY CARE,Peoples Services,Home Care Services,A56019
London Borough of Sutton,04/11/2021,50078382,"1,591.76",Alpenbest Limited,SOCIAL SERVICES DAY CARE,Peoples Services,Home Care Services,A56019
London Borough of Sutton,04/11/2021,50078387,"3,032.08",Alpenbest Limited,SOCIAL SERVICES DAY CARE,Peoples Services,Home Care Services,A56019
London Borough of Sutton,04/11/2021,50078387,"2,074.92",Alpenbest Limited,SOCIAL SERVICES DAY CARE,Peoples Services,Home Care Services,A56019
London Borough of Sutton,29/10/2021,20012231,"22,754.40",Ambient Support Limited,SOCIAL SERVICES RESIDENTIAL,Peoples Services,Provider Contract Payments,A44290
London Borough of Sutton,01/11/2021,50080466,836,Ambient Support Limited,SOCIAL SERVICES RESIDENTIAL,Peoples Services,Supported Living,A56088
London Borough of Sutton,29/10/2021,50072395,"3,400.00",ANA Treatment Centres Ltd,SOCIAL SERVICES RESIDENTIAL,Peoples Services,Interim Placements - Ext Provider,A56102
London Borough of Sutton,29/10/2021,50072550,"3,029.29",ANA Treatment Centres Ltd,SOCIAL SERVICES RESIDENTIAL,Peoples Services,Interim Placements - Ext Provider,A56102
London Borough of Sutton,26/11/2021,50082279,"1,214.29",ANA Treatment Centres Ltd,SOCIAL SERVICES RESIDENTIAL,Peoples Services,Interim Placements - Ext Provider,A56102
London Borough of Sutton,26/11/2021,50082603,"2,671.43",ANA Treatment Centres Ltd,SOCIAL SERVICES RESIDENTIAL,Peoples Services,Interim Placements - Ext Provider,A56102
London Borough of Sutton,01/10/2021,50074843,"4,495.00",Anchor Foster Care Services Ltd,CHILDREN'S SERVICES - FOSTERING & ADOPTION SERVICES,Peoples Services,Foster Parents Support,A44110
London Borough of Sutton,29/10/2021,50072429,"2,662.40",Anchor Trust,SOCIAL SERVICES RESIDENTIAL,Peoples Services,Residential Care - Ext Provider,A56114
London Borough of Sutton,26/11/2021,50082475,"2,662.40",Anchor Trust,SOCIAL SERVICES RESIDENTIAL,Peoples Services,Residential Care - Ext Provider,A56114
London Borough of Sutton,09/11/2021,50074212,546,REDACTED - PERSONAL DATA,"SOCIAL SERVICES - DOLS, GUM & BIA ASSESSMENTS",Peoples Services,Place Funding,A56110
London Borough of Sutton,23/10/2021,20013038,938.34,REDACTED - PERSONAL DATA,PLS LANDLORDS,Environment Housing and Neighbourhoods,Temporary Protection - Homeless Persons,A62028
London Borough of Sutton,31/10/2021,50074796,"3,476.43",Ansacare Fostering Agency Ltd,CHILDREN'S SERVICES - FOSTERING & ADOPTION SERVICES,Peoples Services,Foster Parents Support,A44110
London Borough of Sutton,31/10/2021,50074848,"3,476.43",Ansacare Fostering Agency Ltd,CHILDREN'S SERVICES - FOSTERING & ADOPTION SERVICES,Peoples Services,Foster Parents Support,A44110
London Borough of Sutton,14/10/2021,20012529,"5,750.00",Aon Solutions UK Limited,FINANCIAL / INSURANCE INSTNS,Resources,Fees,A44040
London Borough of Sutton,16/09/2021,20012169,"6,562.72",Aon UK Limited,FINANCIAL / INSURANCE INSTNS,Resources,General Insurance (Excl Premises & Transport),A44260
London Borough of Sutton,16/09/2021,20012169,787.53,Aon UK Limited,FINANCIAL / INSURANCE INSTNS,Resources,General Insurance (Excl Premises & Transport),A44260
London Borough of Sutton,07/06/2021,20012840,"6,896.85",Aon UK Limited,FINANCIAL / INSURANCE INSTNS,Resources,General Insurance (Excl Premises & Transport),A44260
London Borough of Sutton,31/10/2021,20012541,"9,579.84",Apetito Ltd,FOOD & DRINK,Health and Wellbeing,Provisions,A41006
London Borough of Sutton,31/10/2021,20013031,"8,308.80",Apex Housing Solutions Ltd,SOCIAL SERVICES DAY CARE,Environment Housing and Neighbourhoods,Bed & Breakfast,A56000
London Borough of Sutton,31/10/2021,20012891,"1,116.00",APL Properties,ACCOMMODATION BED & BREAKFAST,Environment Housing and Neighbourhoods,Bed & Breakfast,A56000
London Borough of Sutton,04/11/2021,20012817,"4,151.91",Arnold & Self,PREMISES - REMOVALS,Environment Housing and Neighbourhoods,Bed & Breakfast,A56000
London Borough of Sutton,14/09/2021,20012841,"4,727.53",Arnold & Self,PREMISES - REMOVALS,Environment Housing and Neighbourhoods,Bed & Breakfast,A56000
London Borough of Sutton,07/10/2021,20012843,"3,979.42",Arnold & Self,PREMISES - REMOVALS,Environment Housing and Neighbourhoods,Bed & Breakfast,A56000
London Borough of Sutton,27/10/2021,20012461,"1,282.14",Arthur Rai Medical Services Ltd,TEMP STAFF & CONSULTANCY,Health and Wellbeing,Agency Staff - Other,A10505
London Borough of Sutton,27/10/2021,20012462,"1,257.00",Arthur Rai Medical Services Ltd,TEMP STAFF & CONSULTANCY,Health and Wellbeing,Agency Staff - Other,A10505
London Borough of Sutton,03/11/2021,20012858,"1,257.00",Arthur Rai Medical Services Ltd,TEMP STAFF & CONSULTANCY,Health and Wellbeing,Agency Staff - Other,A10505
London Borough of Sutton,30/11/2021,20012859,"1,282.14",Arthur Rai Medical Services Ltd,TEMP STAFF & CONSULTANCY,Health and Wellbeing,Agency Staff - Other,A10505
London Borough of Sutton,23/11/2021,20013787,440,AS Mentoring Ltd,SUNDRY SUPPLIER - EDUCATION,Peoples Services,Professional Fees,A44066
London Borough of Sutton,19/11/2021,50078887,"1,143.00",Ashlong House Ltd,SOCIAL SERVICES RESIDENTIAL,Peoples Services,Other Income - Outside Scope,A92127
London Borough of Sutton,19/11/2021,50078888,814.38,Ashlong House Ltd,SOCIAL SERVICES RESIDENTIAL,Peoples Services,Contract Cleaning,A27010
London Borough of Sutton,19/11/2021,50078890,"1,714.50",Ashurst Lodge Healthcare Ltd,CHILDREN'S SERVICES - RESIDENTIAL,Peoples Services,Other Income - Outside Scope,A92127
London Borough of Sutton,19/11/2021,50078891,"1,221.57",Ashurst Lodge Healthcare Ltd,CHILDREN'S SERVICES - RESIDENTIAL,Peoples Services,Contract Cleaning,A27010
London Borough of Sutton,29/10/2021,50072280,"3,994.48",Aspen Place,SOCIAL SERVICES DAY CARE,Peoples Services,Nursing Care - Ext Provider,A56025
London Borough of Sutton,26/11/2021,50082195,"3,994.48",Aspen Place,SOCIAL SERVICES DAY CARE,Peoples Services,Nursing Care - Ext Provider,A56025
London Borough of Sutton,29/10/2021,50072233,"5,492.48",Aspens Charities,SOCIAL SERVICES RESIDENTIAL,Peoples Services,Residential Care - Ext Provider,A56114
London Borough of Sutton,26/11/2021,50082207,"5,492.48",Aspens Charities,SOCIAL SERVICES RESIDENTIAL,Peoples Services,Residential Care - Ext Provider,A56114
London Borough of Sutton,04/11/2021,50074815,"8,248.22",Aspirational Support Ltd,SOCIAL SERVICES - OTHER,Peoples Services,Approved Lodgings,A61000
London Borough of Sutton,12/10/2021,20012585,"66,236.00",Atalian Servest Limited,PREMISES - CLEANING & LAUNDRY,Resources,Contract Cleaning,A27010
London Borough of Sutton,12/11/2021,20012981,"66,935.85",Atalian Servest Limited,PREMISES - CLEANING & LAUNDRY,Resources,Contract Cleaning,A27010
London Borough of Sutton,12/11/2021,20012982,"1,249.51",Atalian Servest Limited,PREMISES - CLEANING & LAUNDRY,Resources,FM - Facilities Services Contract - Mitie,A56096
London Borough of Sutton,27/10/2021,20012000,"1,410.00",Athona Ltd,TEMP STAFF & CONSULTANCY,Peoples Services,Agency Staff - Other,A10505
London Borough of Sutton,03/11/2021,20012523,"1,081.00",Athona Ltd,TEMP STAFF & CONSULTANCY,Peoples Services,Agency Staff - Other,A10505
London Borough of Sutton,01/10/2021,50079345,"4,351.07",Audax Supported Living CIC,CHILDREN'S SERVICES - RESIDENTIAL,Peoples Services,Approved Lodgings,A61000
London Borough of Sutton,29/10/2021,50072296,"4,580.72",Autism & Aspergers Care Services,SOCIAL SERVICES RESIDENTIAL,Peoples Services,Residential Care - Ext Provider,A56114
London Borough of Sutton,26/11/2021,50082198,"4,580.72",Autism & Aspergers Care Services,SOCIAL SERVICES RESIDENTIAL,Peoples Services,Residential Care - Ext Provider,A56114
London Borough of Sutton,09/11/2021,50073601,"12,558.00",Avenue Primary Acadamy,GRANTS & EX GRATIA PAYMENTS,Peoples Services,Place Funding,A56110
London Borough of Sutton,08/11/2021,50076210,900,Avenue Primary Acadamy,GRANTS & EX GRATIA PAYMENTS,Peoples Services,Top-up Funding,A51016
London Borough of Sutton,18/11/2021,50078793,"13,680.00",Ayai Care Limited,SOCIAL SERVICES DAY CARE,Peoples Services,Supported Living,A56088
London Borough of Sutton,30/09/2021,20010307,"22,750.00",Ayup Digital Ltd,BUSINESS & COMPUTER SYSTEMS,Health and Wellbeing,Subscriptions,A47010
London Borough of Sutton,09/11/2021,50074206,"9,309.30",The Adventure Pre-School,GRANTS & EX GRATIA PAYMENTS,Peoples Services,Place Funding,A56110
London Borough of Sutton,17/09/2021,20013201,"3,047.16",Baily Garner LLP,LEGAL & PROFESSIONAL SERVICES,Environment Housing and Neighbourhoods,Payments to Contractors,C14000
London Borough of Sutton,05/02/2021,20013202,"2,031.44",Baily Garner LLP,LEGAL & PROFESSIONAL SERVICES,Environment Housing and Neighbourhoods,Payments to Contractors,C14000
London Borough of Sutton,23/08/2021,20013329,"8,312.50",Baily Garner LLP,LEGAL & PROFESSIONAL SERVICES,Environment Housing and Neighbourhoods,Payments to Contractors,C14000
London Borough of Sutton,25/03/2021,20013330,"8,312.50",Baily Garner LLP,LEGAL & PROFESSIONAL SERVICES,Environment Housing and Neighbourhoods,Payments to Contractors,C14000
London Borough of Sutton,03/11/2021,20012441,585,Balmont Ltd,CONSTRUCTION INDUSTRY,Environment Housing and Neighbourhoods,Purchases and Repairs Fixtures & Fittings,A25005
London Borough of Sutton,20/08/2021,20012570,"2,344.00",Balmont Ltd,CONSTRUCTION INDUSTRY,Health and Wellbeing,"Property Repairs, Maintenance & Alterations",A20010
London Borough of Sutton,05/11/2021,20012667,"1,589.76",Balmont Ltd,CONSTRUCTION INDUSTRY,Health and Wellbeing,Provider Contract Payments,A44290
London Borough of Sutton,10/11/2021,20012894,"4,921.36",REDACTED - PERSONAL DATA,SUNDRY SUPPLIER - HOUSING,Environment Housing and Neighbourhoods,Miscellaneous Expenses,A49000
London Borough of Sutton,09/11/2021,50074146,"2,175.60",Bandon Hill Pre-School,GRANTS & EX GRATIA PAYMENTS,Peoples Services,Place Funding,A56110
London Borough of Sutton,09/11/2021,50074209,"2,184.00",Bandon Hill Pre-School,GRANTS & EX GRATIA PAYMENTS,Peoples Services,Place Funding,A56110
London Borough of Sutton,09/11/2021,50073602,"9,828.00",Bandon Hill Primary School (Academy),GRANTS & EX GRATIA PAYMENTS,Peoples Services,Place Funding,A56110
London Borough of Sutton,08/11/2021,50076211,"-4,283.33",Bandon Hill Primary School (Academy),GRANTS & EX GRATIA PAYMENTS,Peoples Services,Top-up Funding,A51016
London Borough of Sutton,08/11/2021,50076212,675,Bandon Hill Primary School (Academy),GRANTS & EX GRATIA PAYMENTS,Peoples Services,Top-up Funding,A51016
London Borough of Sutton,22/11/2021,50080491,"1,386.00",Bandon Hill Primary School (Academy),GRANTS & EX GRATIA PAYMENTS,Peoples Services,Top Up Additional Support,A60015
London Borough of Sutton,31/10/2021,50074817,"3,560.97",Banya,SOCIAL SERVICES RESIDENTIAL,Peoples Services,Foster Parents Support,A44110
London Borough of Sutton,22/10/2021,50074818,"2,527.14",Banya,SOCIAL SERVICES RESIDENTIAL,Peoples Services,Foster Parents Support,A44110
London Borough of Sutton,31/10/2021,50074918,"5,386.25",Banya,SOCIAL SERVICES RESIDENTIAL,Peoples Services,Foster Parents Support,A44110
London Borough of Sutton,29/10/2021,50072258,-735.68,Barchester Healthcare Homes Ltd,SOCIAL SERVICES RESIDENTIAL,Peoples Services,Nursing Care - 3rd party top up payment,A56023
London Borough of Sutton,29/10/2021,50072258,"5,200.00",Barchester Healthcare Homes Ltd,SOCIAL SERVICES RESIDENTIAL,Peoples Services,Nursing Care - Ext Provider,A56025
London Borough of Sutton,26/11/2021,50082216,-735.68,Barchester Healthcare Homes Ltd,SOCIAL SERVICES RESIDENTIAL,Peoples Services,Nursing Care - 3rd party top up payment,A56023
London Borough of Sutton,26/11/2021,50082216,"5,200.00",Barchester Healthcare Homes Ltd,SOCIAL SERVICES RESIDENTIAL,Peoples Services,Nursing Care - Ext Provider,A56025
London Borough of Sutton,10/11/2021,20012893,"3,079.44",Barnabys Property Letting Ltd,SUNDRY SUPPLIER - HOUSING,Environment Housing and Neighbourhoods,Miscellaneous Expenses,A49000
London Borough of Sutton,02/11/2021,20012322,"16,970.64",Barnardo's,CHILDREN'S SERVICES - RESIDENTIAL,Peoples Services,Approved Lodgings,A61000
London Borough of Sutton,03/11/2021,20012612,"2,511.00",Barnardo's,CHILDREN'S SERVICES - RESIDENTIAL,Peoples Services,Play Groups,A56111
London Borough of Sutton,20/10/2021,50080134,530,Barnardo's,CHILDREN'S SERVICES - RESIDENTIAL,Peoples Services,Provider Contract Payments,A44290
London Borough of Sutton,16/11/2021,50080145,588,Barnardo's,CHILDREN'S SERVICES - RESIDENTIAL,Peoples Services,Provider Contract Payments,A44290
London Borough of Sutton,16/11/2021,50080146,588,Barnardo's,CHILDREN'S SERVICES - RESIDENTIAL,Peoples Services,Provider Contract Payments,A44290
London Borough of Sutton,20/10/2021,50080148,686,Barnardo's,CHILDREN'S SERVICES - RESIDENTIAL,Peoples Services,Provider Contract Payments,A44290
London Borough of Sutton,20/10/2021,50080149,839.13,Barnardo's,CHILDREN'S SERVICES - RESIDENTIAL,Peoples Services,Provider Contract Payments,A44290
London Borough of Sutton,16/11/2021,50080152,771.75,Barnardo's,CHILDREN'S SERVICES - RESIDENTIAL,Peoples Services,Provider Contract Payments,A44290
London Borough of Sutton,20/10/2021,50080156,673.75,Barnardo's,CHILDREN'S SERVICES - RESIDENTIAL,Peoples Services,Provider Contract Payments,A44290
London Borough of Sutton,16/11/2021,50080162,612,Barnardo's,CHILDREN'S SERVICES - RESIDENTIAL,Peoples Services,Provider Contract Payments,A44290
London Borough of Sutton,16/11/2021,50080169,551.25,Barnardo's,CHILDREN'S SERVICES - RESIDENTIAL,Peoples Services,Provider Contract Payments,A44290
London Borough of Sutton,05/11/2021,20012706,"1,158.75",Barnett Waddingham LLP,LEGAL & PROFESSIONAL SERVICES,Resources,Fees,A44040
London Borough of Sutton,12/11/2021,20013199,"22,333.90",Beddington Infants School,GRANTS & EX GRATIA PAYMENTS,Peoples Services,Payments to Contractors,C14000
London Borough of Sutton,09/11/2021,50073565,"100,189.77",Beddington Infants School,GRANTS & EX GRATIA PAYMENTS,Peoples Services,Payments to Schools,A51013
London Borough of Sutton,09/11/2021,50073604,"11,466.00",Beddington Infants School,GRANTS & EX GRATIA PAYMENTS,Peoples Services,Place Funding,A56110
London Borough of Sutton,09/11/2021,50073702,"1,341.25",Beddington Infants School,GRANTS & EX GRATIA PAYMENTS,Peoples Services,Payments to Schools,A51013
London Borough of Sutton,09/11/2021,50073727,885.94,Beddington Infants School,GRANTS & EX GRATIA PAYMENTS,Peoples Services,Payments to Schools,A51013
London Borough of Sutton,09/11/2021,50073779,630,Beddington Infants School,GRANTS & EX GRATIA PAYMENTS,Resources,"Grants, Contributions & Donations",A47005
London Borough of Sutton,08/11/2021,50076215,"1,690.00",Beddington Infants School,GRANTS & EX GRATIA PAYMENTS,Peoples Services,Top-up Funding,A51016
London Borough of Sutton,08/11/2021,50076216,"3,212.50",Beddington Infants School,GRANTS & EX GRATIA PAYMENTS,Peoples Services,Top-up Funding,A51016
London Borough of Sutton,09/11/2021,50073605,"8,463.00",Beddington Park Primary (Academy) ,GRANTS & EX GRATIA PAYMENTS,Peoples Services,Place Funding,A56110
London Borough of Sutton,09/11/2021,50073693,650,Beddington Park Primary (Academy) ,GRANTS & EX GRATIA PAYMENTS,Peoples Services,SEND Inclusion funding,A60038
London Borough of Sutton,11/11/2021,20012904,"17,871.00",Beeches Tree Care,AGRICULTURAL & ESTATE SERVICES,Environment Housing and Neighbourhoods,Highway Trees - Maintenance,A28005
London Borough of Sutton,19/11/2021,20013474,"5,124.07",Beeches Tree Care,AGRICULTURAL & ESTATE SERVICES,Environment Housing and Neighbourhoods,Maintenance of trees,A28003
London Borough of Sutton,26/11/2021,20013913,"7,079.71",Beeches Tree Care,AGRICULTURAL & ESTATE SERVICES,Environment Housing and Neighbourhoods,Highway Trees - Maintenance,A28005
London Borough of Sutton,26/11/2021,20013921,"8,282.39",Beeches Tree Care,AGRICULTURAL & ESTATE SERVICES,Environment Housing and Neighbourhoods,Highway Trees - Maintenance,A28005
London Borough of Sutton,26/11/2021,20013922,"4,687.53",Beeches Tree Care,AGRICULTURAL & ESTATE SERVICES,Environment Housing and Neighbourhoods,Maintenance of trees,A28003
London Borough of Sutton,02/11/2021,20012447,"1,000.00",Beeches Yulefest,SUNDRY SUPPLIER - ENV SERVICES,Resources,"Grants, Contributions & Donations",A47005
London Borough of Sutton,02/11/2021,20012447,"1,000.00",Beeches Yulefest,SUNDRY SUPPLIER - ENV SERVICES,Resources,"Grants, Contributions & Donations",A47005
London Borough of Sutton,02/11/2021,20012447,"2,000.00",Beeches Yulefest,SUNDRY SUPPLIER - ENV SERVICES,Resources,"Grants, Contributions & Donations",A47005
London Borough of Sutton,09/11/2021,50074210,"4,004.00",Belmont Village Playgroup,GRANTS & EX GRATIA PAYMENTS,Peoples Services,Place Funding,A56110
London Borough of Sutton,23/11/2021,50080498,"6,121.00",Bensham Manor School,GRANTS & EX GRATIA PAYMENTS,Peoples Services,Top-up Funding,A51016
London Borough of Sutton,23/11/2021,50080499,"6,121.00",Bensham Manor School,GRANTS & EX GRATIA PAYMENTS,Peoples Services,Top-up Funding,A51016
London Borough of Sutton,23/11/2021,50080500,"8,358.00",Bensham Manor School,GRANTS & EX GRATIA PAYMENTS,Peoples Services,Top-up Funding,A51016
London Borough of Sutton,23/11/2021,50080501,"8,358.00",Bensham Manor School,GRANTS & EX GRATIA PAYMENTS,Peoples Services,Top-up Funding,A51016
London Borough of Sutton,23/11/2021,50080502,"8,358.00",Bensham Manor School,GRANTS & EX GRATIA PAYMENTS,Peoples Services,Top-up Funding,A51016
London Borough of Sutton,23/11/2021,50080503,"8,358.00",Bensham Manor School,GRANTS & EX GRATIA PAYMENTS,Peoples Services,Top-up Funding,A51016
London Borough of Sutton,18/10/2021,50073148,772,Best at Home Domiciliary Care Services Ltd,SOCIAL SERVICES DAY CARE,Peoples Services,Home Care Services,A56019
London Borough of Sutton,18/10/2021,50073172,912,Best at Home Domiciliary Care Services Ltd,SOCIAL SERVICES DAY CARE,Peoples Services,Home Care Services,A56019
London Borough of Sutton,18/10/2021,50073196,772,Best at Home Domiciliary Care Services Ltd,SOCIAL SERVICES DAY CARE,Peoples Services,Home Care Services,A56019
London Borough of Sutton,01/11/2021,50073978,772,Best at Home Domiciliary Care Services Ltd,SOCIAL SERVICES DAY CARE,Peoples Services,Home Care Services,A56019
London Borough of Sutton,01/11/2021,50074015,772,Best at Home Domiciliary Care Services Ltd,SOCIAL SERVICES DAY CARE,Peoples Services,Home Care Services,A56019
London Borough of Sutton,01/11/2021,50074023,912,Best at Home Domiciliary Care Services Ltd,SOCIAL SERVICES DAY CARE,Peoples Services,Home Care Services,A56019
London Borough of Sutton,27/09/2021,50075989,800,Best at Home Domiciliary Care Services Ltd,SOCIAL SERVICES DAY CARE,Peoples Services,Home Care Services,A56019
London Borough of Sutton,27/09/2021,50075995,912,Best at Home Domiciliary Care Services Ltd,SOCIAL SERVICES DAY CARE,Peoples Services,Home Care Services,A56019
London Borough of Sutton,27/09/2021,50075998,772,Best at Home Domiciliary Care Services Ltd,SOCIAL SERVICES DAY CARE,Peoples Services,Home Care Services,A56019
London Borough of Sutton,27/09/2021,50076002,884,Best at Home Domiciliary Care Services Ltd,SOCIAL SERVICES DAY CARE,Peoples Services,Home Care Services,A56019
London Borough of Sutton,04/10/2021,50076052,912,Best at Home Domiciliary Care Services Ltd,SOCIAL SERVICES DAY CARE,Peoples Services,Home Care Services,A56019
London Borough of Sutton,04/10/2021,50076085,772,Best at Home Domiciliary Care Services Ltd,SOCIAL SERVICES DAY CARE,Peoples Services,Home Care Services,A56019
London Borough of Sutton,04/10/2021,50076092,800,Best at Home Domiciliary Care Services Ltd,SOCIAL SERVICES DAY CARE,Peoples Services,Home Care Services,A56019
London Borough of Sutton,11/10/2021,50076964,772,Best at Home Domiciliary Care Services Ltd,SOCIAL SERVICES DAY CARE,Peoples Services,Home Care Services,A56019
London Borough of Sutton,11/10/2021,50076990,912,Best at Home Domiciliary Care Services Ltd,SOCIAL SERVICES DAY CARE,Peoples Services,Home Care Services,A56019
London Borough of Sutton,11/10/2021,50077007,800,Best at Home Domiciliary Care Services Ltd,SOCIAL SERVICES DAY CARE,Peoples Services,Home Care Services,A56019
London Borough of Sutton,12/11/2021,50077931,977,Best at Home Domiciliary Care Services Ltd,SOCIAL SERVICES DAY CARE,Peoples Services,Home Care Services,A56019
London Borough of Sutton,12/11/2021,50077945,772,Best at Home Domiciliary Care Services Ltd,SOCIAL SERVICES DAY CARE,Peoples Services,Home Care Services,A56019
London Borough of Sutton,12/11/2021,50077954,912,Best at Home Domiciliary Care Services Ltd,SOCIAL SERVICES DAY CARE,Peoples Services,Home Care Services,A56019
London Borough of Sutton,12/11/2021,50077958,656,Best at Home Domiciliary Care Services Ltd,SOCIAL SERVICES DAY CARE,Peoples Services,Home Care Services,A56019
London Borough of Sutton,12/11/2021,50077959,828,Best at Home Domiciliary Care Services Ltd,SOCIAL SERVICES DAY CARE,Peoples Services,Home Care Services,A56019
London Borough of Sutton,12/11/2021,50077965,586,Best at Home Domiciliary Care Services Ltd,SOCIAL SERVICES DAY CARE,Peoples Services,Home Care Services,A56019
London Borough of Sutton,12/11/2021,50077980,800,Best at Home Domiciliary Care Services Ltd,SOCIAL SERVICES DAY CARE,Peoples Services,Home Care Services,A56019
London Borough of Sutton,15/11/2021,50078176,772,Best at Home Domiciliary Care Services Ltd,SOCIAL SERVICES DAY CARE,Peoples Services,Home Care Services,A56019
London Borough of Sutton,15/11/2021,50078181,772,Best at Home Domiciliary Care Services Ltd,SOCIAL SERVICES DAY CARE,Peoples Services,Home Care Services,A56019
London Borough of Sutton,15/11/2021,50078183,772,Best at Home Domiciliary Care Services Ltd,SOCIAL SERVICES DAY CARE,Peoples Services,Home Care Services,A56019
London Borough of Sutton,16/11/2021,50078195,884,Best at Home Domiciliary Care Services Ltd,SOCIAL SERVICES DAY CARE,Peoples Services,Home Care Services,A56019
London Borough of Sutton,15/11/2021,50078218,912,Best at Home Domiciliary Care Services Ltd,SOCIAL SERVICES DAY CARE,Peoples Services,Home Care Services,A56019
London Borough of Sutton,14/11/2021,50079409,800,Best at Home Domiciliary Care Services Ltd,SOCIAL SERVICES DAY CARE,Peoples Services,Home Care Services,A56019
London Borough of Sutton,17/11/2021,50079434,772,Best at Home Domiciliary Care Services Ltd,SOCIAL SERVICES DAY CARE,Peoples Services,Home Care Services,A56019
London Borough of Sutton,18/11/2021,50079485,884,Best at Home Domiciliary Care Services Ltd,SOCIAL SERVICES DAY CARE,Peoples Services,Home Care Services,A56019
London Borough of Sutton,07/11/2021,50080273,911.98,Best at Home Domiciliary Care Services Ltd,SOCIAL SERVICES DAY CARE,Peoples Services,Home Care Services,A56019
London Borough of Sutton,14/11/2021,50080274,911.98,Best at Home Domiciliary Care Services Ltd,SOCIAL SERVICES DAY CARE,Peoples Services,Home Care Services,A56019
London Borough of Sutton,07/11/2021,50080277,771.99,Best at Home Domiciliary Care Services Ltd,SOCIAL SERVICES DAY CARE,Peoples Services,Home Care Services,A56019
London Borough of Sutton,14/11/2021,50080278,771.99,Best at Home Domiciliary Care Services Ltd,SOCIAL SERVICES DAY CARE,Peoples Services,Home Care Services,A56019
London Borough of Sutton,07/11/2021,50080300,771.99,Best at Home Domiciliary Care Services Ltd,SOCIAL SERVICES DAY CARE,Peoples Services,Home Care Services,A56019
London Borough of Sutton,14/11/2021,50080301,771.99,Best at Home Domiciliary Care Services Ltd,SOCIAL SERVICES DAY CARE,Peoples Services,Home Care Services,A56019
London Borough of Sutton,07/11/2021,50080305,771.99,Best at Home Domiciliary Care Services Ltd,SOCIAL SERVICES DAY CARE,Peoples Services,Home Care Services,A56019
London Borough of Sutton,14/11/2021,50080306,771.99,Best at Home Domiciliary Care Services Ltd,SOCIAL SERVICES DAY CARE,Peoples Services,Home Care Services,A56019
London Borough of Sutton,14/11/2021,50082878,582.5,Best at Home Domiciliary Care Services Ltd,SOCIAL SERVICES DAY CARE,Peoples Services,Home Care Services,A56019
London Borough of Sutton,07/11/2021,50082879,502,Best at Home Domiciliary Care Services Ltd,SOCIAL SERVICES DAY CARE,Peoples Services,Home Care Services,A56019
London Borough of Sutton,14/11/2021,50082880,502,Best at Home Domiciliary Care Services Ltd,SOCIAL SERVICES DAY CARE,Peoples Services,Home Care Services,A56019
London Borough of Sutton,21/11/2021,50082884,863,Best at Home Domiciliary Care Services Ltd,SOCIAL SERVICES DAY CARE,Peoples Services,Home Care Services,A56019
London Borough of Sutton,07/11/2021,50082902,585.99,Best at Home Domiciliary Care Services Ltd,SOCIAL SERVICES DAY CARE,Peoples Services,Home Care Services,A56019
London Borough of Sutton,07/11/2021,50082902,186,Best at Home Domiciliary Care Services Ltd,SOCIAL SERVICES DAY CARE,Peoples Services,Home Care Services,A56019
London Borough of Sutton,14/11/2021,50082903,585.99,Best at Home Domiciliary Care Services Ltd,SOCIAL SERVICES DAY CARE,Peoples Services,Home Care Services,A56019
London Borough of Sutton,14/11/2021,50082903,186,Best at Home Domiciliary Care Services Ltd,SOCIAL SERVICES DAY CARE,Peoples Services,Home Care Services,A56019
London Borough of Sutton,31/10/2021,20012274,"9,278.00",Bestcourt UK Ltd,ACCOMMODATION BED & BREAKFAST,Environment Housing and Neighbourhoods,Bed & Breakfast,A56000
London Borough of Sutton,21/10/2021,20011753,851.63,BFS Group ,FOOD & DRINK,Health and Wellbeing,Catering,A41000
London Borough of Sutton,21/10/2021,20011753,22.43,BFS Group ,FOOD & DRINK,Health and Wellbeing,Catering,A41000
London Borough of Sutton,14/09/2021,50078443,"22,667.00",BIG BEAR BESPOKE EDUCATION,CHILDREN'S SERVICES - SEN SERVICES,Peoples Services,Independent School Fees,A56002
London Borough of Sutton,09/11/2021,50074297,"5,016.11",Bizzy Bees Day Nursery,GRANTS & EX GRATIA PAYMENTS,Peoples Services,Place Funding,A56110
London Borough of Sutton,03/11/2021,20012489,"16,607.00",Bloom Procurement Services Ltd,TEMP STAFF & CONSULTANCY,Resources,Other Supplies & Services,A44291
London Borough of Sutton,11/10/2021,50076185,"-5,386.67",Blossom House Lower School,GRANTS & EX GRATIA PAYMENTS,Peoples Services,Independent School Fees,A56002
London Borough of Sutton,12/10/2021,50076234,"11,188.32",Blossom House Lower School,GRANTS & EX GRATIA PAYMENTS,Peoples Services,Independent School Fees,A56002
London Borough of Sutton,09/11/2021,50074278,546,Billy Bears Playdays,GRANTS & EX GRATIA PAYMENTS,Peoples Services,Place Funding,A56110
London Borough of Sutton,29/10/2021,20012430,"14,013.38",Bow Tie Construction Ltd,CONSTRUCTION INDUSTRY,Environment Housing and Neighbourhoods,Payments to Contractors,C14000
London Borough of Sutton,29/10/2021,20012574,"9,503.29",Bow Tie Construction Ltd,CONSTRUCTION INDUSTRY,Environment Housing and Neighbourhoods,Payments to Contractors,C14000
London Borough of Sutton,26/11/2021,20014008,"141,739.58",Bow Tie Construction Ltd,CONSTRUCTION INDUSTRY,Environment Housing and Neighbourhoods,Payments to Contractors,C14000
London Borough of Sutton,02/11/2021,20012298,"1,087.50",Brand Narrative,TEMP STAFF & CONSULTANCY,Environment Housing and Neighbourhoods,Waste Contractor Payment,A56057
London Borough of Sutton,09/11/2021,20012798,"31,649.62",Breyer Group Plc,CONSTRUCTION INDUSTRY,Environment Housing and Neighbourhoods,Payments to Contractors,C14000
London Borough of Sutton,28/10/2021,20013043,"26,104.89",Breyer Group Plc,CONSTRUCTION INDUSTRY,Environment Housing and Neighbourhoods,Payments to Contractors,C14000
London Borough of Sutton,19/11/2021,20013524,"10,922.08",Breyer Group Plc,CONSTRUCTION INDUSTRY,Environment Housing and Neighbourhoods,Payments to Contractors,C14000
London Borough of Sutton,29/10/2021,50072344,"3,626.72",Bridge House Care Centre,SOCIAL SERVICES RESIDENTIAL,Peoples Services,Nursing Care - Ext Provider,A56025
London Borough of Sutton,29/10/2021,50072345,-750.4,Bridge House Care Centre,SOCIAL SERVICES RESIDENTIAL,Peoples Services,Nursing Care - 3rd party top up payment,A56023
London Borough of Sutton,29/10/2021,50072385,-750.4,Bridge House Care Centre,SOCIAL SERVICES RESIDENTIAL,Peoples Services,Nursing Care - 3rd party top up payment,A56023
London Borough of Sutton,29/10/2021,50072385,"3,626.72",Bridge House Care Centre,SOCIAL SERVICES RESIDENTIAL,Peoples Services,Nursing Care - Ext Provider,A56025
London Borough of Sutton,29/10/2021,50072386,"3,612.00",Bridge House Care Centre,SOCIAL SERVICES RESIDENTIAL,Peoples Services,Nursing Care - Ext Provider,A56025
London Borough of Sutton,29/10/2021,50072386,-735.68,Bridge House Care Centre,SOCIAL SERVICES RESIDENTIAL,Peoples Services,Nursing Care - 3rd party top up payment,A56023
London Borough of Sutton,29/10/2021,50072437,"3,555.32",Bridge House Care Centre,SOCIAL SERVICES RESIDENTIAL,Peoples Services,Nursing Care - Ext Provider,A56025
London Borough of Sutton,29/10/2021,50072437,-632.64,Bridge House Care Centre,SOCIAL SERVICES RESIDENTIAL,Peoples Services,Nursing Care - 3rd party top up payment,A56023
London Borough of Sutton,29/10/2021,50072450,"3,626.72",Bridge House Care Centre,SOCIAL SERVICES RESIDENTIAL,Peoples Services,Nursing Care - Ext Provider,A56025
London Borough of Sutton,29/10/2021,50072450,-750.4,Bridge House Care Centre,SOCIAL SERVICES RESIDENTIAL,Peoples Services,Nursing Care - 3rd party top up payment,A56023
London Borough of Sutton,29/10/2021,50072486,"3,626.72",Bridge House Care Centre,SOCIAL SERVICES RESIDENTIAL,Peoples Services,Nursing Care Short Term,A56026
London Borough of Sutton,29/10/2021,50072486,-750.4,Bridge House Care Centre,SOCIAL SERVICES RESIDENTIAL,Peoples Services,Nursing Care - 3rd party top up payment,A56023
London Borough of Sutton,29/10/2021,50072487,"3,472.64",Bridge House Care Centre,SOCIAL SERVICES RESIDENTIAL,Peoples Services,Nursing Care - Ext Provider,A56025
London Borough of Sutton,29/10/2021,50072487,-632.64,Bridge House Care Centre,SOCIAL SERVICES RESIDENTIAL,Peoples Services,Nursing Care - 3rd party top up payment,A56023
London Borough of Sutton,29/10/2021,50072573,"2,075.08",Bridge House Care Centre,SOCIAL SERVICES RESIDENTIAL,Peoples Services,Nursing Care - Ext Provider,A56025
London Borough of Sutton,29/10/2021,50072626,"1,546.80",Bridge House Care Centre,SOCIAL SERVICES RESIDENTIAL,Peoples Services,Nursing Care - Ext Provider,A56025
London Borough of Sutton,29/10/2021,50072626,-189.21,Bridge House Care Centre,SOCIAL SERVICES RESIDENTIAL,Peoples Services,Nursing Care - 3rd party top up payment,A56023
London Borough of Sutton,29/10/2021,50072632,"3,611.68",Bridge House Care Centre,SOCIAL SERVICES RESIDENTIAL,Peoples Services,Nursing Care - Ext Provider,A56025
London Borough of Sutton,29/10/2021,50072632,-735.68,Bridge House Care Centre,SOCIAL SERVICES RESIDENTIAL,Peoples Services,Nursing Care - 3rd party top up payment,A56023
London Borough of Sutton,29/10/2021,50072633,"3,612.00",Bridge House Care Centre,SOCIAL SERVICES RESIDENTIAL,Peoples Services,Nursing Care - Ext Provider,A56025
London Borough of Sutton,29/10/2021,50072633,-735.68,Bridge House Care Centre,SOCIAL SERVICES RESIDENTIAL,Peoples Services,Nursing Care - 3rd party top up payment,A56023
London Borough of Sutton,29/10/2021,50072634,"3,502.24",Bridge House Care Centre,SOCIAL SERVICES RESIDENTIAL,Peoples Services,Nursing Care - Ext Provider,A56025
London Borough of Sutton,29/10/2021,50072634,-662.24,Bridge House Care Centre,SOCIAL SERVICES RESIDENTIAL,Peoples Services,Nursing Care - 3rd party top up payment,A56023
London Borough of Sutton,29/10/2021,50072670,-735.68,Bridge House Care Centre,SOCIAL SERVICES RESIDENTIAL,Peoples Services,Nursing Care - 3rd party top up payment,A56023
London Borough of Sutton,29/10/2021,50072670,"3,611.68",Bridge House Care Centre,SOCIAL SERVICES RESIDENTIAL,Peoples Services,Nursing Care - Ext Provider,A56025
London Borough of Sutton,29/10/2021,50072671,"3,626.72",Bridge House Care Centre,SOCIAL SERVICES RESIDENTIAL,Peoples Services,Nursing Care Short Term,A56026
London Borough of Sutton,29/10/2021,50072671,-750.4,Bridge House Care Centre,SOCIAL SERVICES RESIDENTIAL,Peoples Services,Nursing Care - 3rd party top up payment,A56023
London Borough of Sutton,29/10/2021,50072686,"3,626.72",Bridge House Care Centre,SOCIAL SERVICES RESIDENTIAL,Peoples Services,Nursing Care - Ext Provider,A56025
London Borough of Sutton,29/10/2021,50072686,-750.4,Bridge House Care Centre,SOCIAL SERVICES RESIDENTIAL,Peoples Services,Nursing Care - 3rd party top up payment,A56023
London Borough of Sutton,29/10/2021,50072700,"3,626.72",Bridge House Care Centre,SOCIAL SERVICES RESIDENTIAL,Peoples Services,Nursing Care - Ext Provider,A56025
London Borough of Sutton,29/10/2021,50072700,-750.4,Bridge House Care Centre,SOCIAL SERVICES RESIDENTIAL,Peoples Services,Nursing Care - 3rd party top up payment,A56023
London Borough of Sutton,19/11/2021,50078902,"6,286.50",Bridge House Care Centre,SOCIAL SERVICES RESIDENTIAL,Peoples Services,Other Income - Outside Scope,A92127
London Borough of Sutton,19/11/2021,50078903,"4,479.09",Bridge House Care Centre,SOCIAL SERVICES RESIDENTIAL,Peoples Services,Contract Cleaning,A27010
London Borough of Sutton,26/11/2021,50082256,"3,612.00",Bridge House Care Centre,SOCIAL SERVICES RESIDENTIAL,Peoples Services,Nursing Care - Ext Provider,A56025
London Borough of Sutton,26/11/2021,50082256,-735.68,Bridge House Care Centre,SOCIAL SERVICES RESIDENTIAL,Peoples Services,Nursing Care - 3rd party top up payment,A56023
London Borough of Sutton,26/11/2021,50082257,-750.4,Bridge House Care Centre,SOCIAL SERVICES RESIDENTIAL,Peoples Services,Nursing Care - 3rd party top up payment,A56023
London Borough of Sutton,26/11/2021,50082257,"3,626.72",Bridge House Care Centre,SOCIAL SERVICES RESIDENTIAL,Peoples Services,Nursing Care - Ext Provider,A56025
London Borough of Sutton,26/11/2021,50082357,"3,611.68",Bridge House Care Centre,SOCIAL SERVICES RESIDENTIAL,Peoples Services,Nursing Care - Ext Provider,A56025
London Borough of Sutton,26/11/2021,50082357,-735.68,Bridge House Care Centre,SOCIAL SERVICES RESIDENTIAL,Peoples Services,Nursing Care - 3rd party top up payment,A56023
London Borough of Sutton,26/11/2021,50082358,"3,612.00",Bridge House Care Centre,SOCIAL SERVICES RESIDENTIAL,Peoples Services,Nursing Care - Ext Provider,A56025
London Borough of Sutton,26/11/2021,50082358,-735.68,Bridge House Care Centre,SOCIAL SERVICES RESIDENTIAL,Peoples Services,Nursing Care - 3rd party top up payment,A56023
London Borough of Sutton,26/11/2021,50082359,"3,502.24",Bridge House Care Centre,SOCIAL SERVICES RESIDENTIAL,Peoples Services,Nursing Care - Ext Provider,A56025
London Borough of Sutton,26/11/2021,50082359,-662.24,Bridge House Care Centre,SOCIAL SERVICES RESIDENTIAL,Peoples Services,Nursing Care - 3rd party top up payment,A56023
London Borough of Sutton,26/11/2021,50082396,"-24,091.78",Bridge House Care Centre,SOCIAL SERVICES RESIDENTIAL,Peoples Services,Nursing Care - Ext Provider,A56025
London Borough of Sutton,26/11/2021,50082396,"4,984.80",Bridge House Care Centre,SOCIAL SERVICES RESIDENTIAL,Peoples Services,Nursing Care - 3rd party top up payment,A56023
London Borough of Sutton,26/11/2021,50082397,"3,626.72",Bridge House Care Centre,SOCIAL SERVICES RESIDENTIAL,Peoples Services,Nursing Care Short Term,A56026
London Borough of Sutton,26/11/2021,50082397,-750.4,Bridge House Care Centre,SOCIAL SERVICES RESIDENTIAL,Peoples Services,Nursing Care - 3rd party top up payment,A56023
London Borough of Sutton,26/11/2021,50082398,"3,626.72",Bridge House Care Centre,SOCIAL SERVICES RESIDENTIAL,Peoples Services,Nursing Care - Ext Provider,A56025
London Borough of Sutton,26/11/2021,50082399,"3,626.72",Bridge House Care Centre,SOCIAL SERVICES RESIDENTIAL,Peoples Services,Nursing Care - Ext Provider,A56025
London Borough of Sutton,26/11/2021,50082399,-750.4,Bridge House Care Centre,SOCIAL SERVICES RESIDENTIAL,Peoples Services,Nursing Care - 3rd party top up payment,A56023
London Borough of Sutton,26/11/2021,50082400,-735.68,Bridge House Care Centre,SOCIAL SERVICES RESIDENTIAL,Peoples Services,Nursing Care - 3rd party top up payment,A56023
London Borough of Sutton,26/11/2021,50082400,"3,611.68",Bridge House Care Centre,SOCIAL SERVICES RESIDENTIAL,Peoples Services,Nursing Care - Ext Provider,A56025
London Borough of Sutton,26/11/2021,50082450,"3,555.32",Bridge House Care Centre,SOCIAL SERVICES RESIDENTIAL,Peoples Services,Nursing Care - Ext Provider,A56025
London Borough of Sutton,26/11/2021,50082450,-632.64,Bridge House Care Centre,SOCIAL SERVICES RESIDENTIAL,Peoples Services,Nursing Care - 3rd party top up payment,A56023
London Borough of Sutton,26/11/2021,50082451,"3,626.72",Bridge House Care Centre,SOCIAL SERVICES RESIDENTIAL,Peoples Services,Nursing Care - Ext Provider,A56025
London Borough of Sutton,26/11/2021,50082451,-750.4,Bridge House Care Centre,SOCIAL SERVICES RESIDENTIAL,Peoples Services,Nursing Care - 3rd party top up payment,A56023
London Borough of Sutton,26/11/2021,50082521,"3,472.64",Bridge House Care Centre,SOCIAL SERVICES RESIDENTIAL,Peoples Services,Nursing Care - Ext Provider,A56025
London Borough of Sutton,26/11/2021,50082521,-632.64,Bridge House Care Centre,SOCIAL SERVICES RESIDENTIAL,Peoples Services,Nursing Care - 3rd party top up payment,A56023
London Borough of Sutton,26/11/2021,50082522,"3,626.72",Bridge House Care Centre,SOCIAL SERVICES RESIDENTIAL,Peoples Services,Nursing Care Short Term,A56026
London Borough of Sutton,26/11/2021,50082522,-750.4,Bridge House Care Centre,SOCIAL SERVICES RESIDENTIAL,Peoples Services,Nursing Care - 3rd party top up payment,A56023
London Borough of Sutton,26/11/2021,50082552,-750.4,Bridge House Care Centre,SOCIAL SERVICES RESIDENTIAL,Peoples Services,Nursing Care - 3rd party top up payment,A56023
London Borough of Sutton,26/11/2021,50082628,"4,305.24",Bridge House Care Centre,SOCIAL SERVICES RESIDENTIAL,Peoples Services,Nursing Care - Ext Provider,A56025
London Borough of Sutton,26/11/2021,50082629,"2,075.08",Bridge House Care Centre,SOCIAL SERVICES RESIDENTIAL,Peoples Services,Nursing Care - Ext Provider,A56025
London Borough of Sutton,11/10/2021,50074781,"2,369.99",Bridging Gaps Limited,CHILDREN'S SERVICES - FOSTERING & ADOPTION SERVICES,Peoples Services,Foster Parents Support,A44110
London Borough of Sutton,12/10/2021,50074804,"2,142.86",Bridging Gaps Limited,CHILDREN'S SERVICES - FOSTERING & ADOPTION SERVICES,Peoples Services,Foster Parents Support,A44110
London Borough of Sutton,01/10/2021,50074859,"3,498.57",Bridging Gaps Limited,CHILDREN'S SERVICES - FOSTERING & ADOPTION SERVICES,Peoples Services,Foster Parents Support,A44110
London Borough of Sutton,12/10/2021,50074929,"2,142.86",Bridging Gaps Limited,CHILDREN'S SERVICES - FOSTERING & ADOPTION SERVICES,Peoples Services,Foster Parents Support,A44110
London Borough of Sutton,01/11/2021,50073521,"3,588.08",Bright Futures Care Ltd,CHILDREN'S SERVICES - FOSTERING & ADOPTION SERVICES,Peoples Services,Independent School Fees,A56002
London Borough of Sutton,01/10/2021,50079344,"21,521.88",Bright Futures Care Ltd,CHILDREN'S SERVICES - FOSTERING & ADOPTION SERVICES,Peoples Services,Residential Care-Children,A56115
London Borough of Sutton,01/10/2021,50074812,"3,321.38",Brighter Futures Foster Care Ltd,CHILDREN'S SERVICES - FOSTERING & ADOPTION SERVICES,Peoples Services,Foster Parents Support,A44110
London Borough of Sutton,01/10/2021,50074813,"2,745.67",Brighter Futures Foster Care Ltd,CHILDREN'S SERVICES - FOSTERING & ADOPTION SERVICES,Peoples Services,Foster Parents Support,A44110
London Borough of Sutton,01/10/2021,50074917,"3,321.34",Brighter Futures Foster Care Ltd,CHILDREN'S SERVICES - FOSTERING & ADOPTION SERVICES,Peoples Services,Foster Parents Support,A44110
London Borough of Sutton,03/11/2021,20012435,"1,429.75",British Gas,UTILITIES,Health and Wellbeing,Electricity,A21000
London Borough of Sutton,29/10/2021,50072339,-746,British Home & Hospital For Incurables,SOCIAL SERVICES RESIDENTIAL,Peoples Services,Nursing Care - Client Cont ( Net paymt ),A56024
London Borough of Sutton,29/10/2021,50072339,"2,497.88",British Home & Hospital For Incurables,SOCIAL SERVICES RESIDENTIAL,Peoples Services,Nursing Care - Ext Provider,A56025
London Borough of Sutton,26/11/2021,50082495,-746,British Home & Hospital For Incurables,SOCIAL SERVICES RESIDENTIAL,Peoples Services,Nursing Care - Client Cont ( Net paymt ),A56024
London Borough of Sutton,26/11/2021,50082495,"2,497.88",British Home & Hospital For Incurables,SOCIAL SERVICES RESIDENTIAL,Peoples Services,Nursing Care - Ext Provider,A56025
London Borough of Sutton,29/10/2021,50072333,"3,752.64",Broadlands Nursing Home,SOCIAL SERVICES RESIDENTIAL,Peoples Services,Nursing Care - Ext Provider,A56025
London Borough of Sutton,29/10/2021,50072333,-632.64,Broadlands Nursing Home,SOCIAL SERVICES RESIDENTIAL,Peoples Services,Nursing Care - 3rd party top up payment,A56023
London Borough of Sutton,29/10/2021,50072439,"18,004.07",Broadlands Nursing Home,SOCIAL SERVICES RESIDENTIAL,Peoples Services,Nursing Care - Ext Provider,A56025
London Borough of Sutton,29/10/2021,50072439,"-3,725.20",Broadlands Nursing Home,SOCIAL SERVICES RESIDENTIAL,Peoples Services,Nursing Care - 3rd party top up payment,A56023
London Borough of Sutton,29/10/2021,50072472,"1,554.31",Broadlands Nursing Home,SOCIAL SERVICES RESIDENTIAL,Peoples Services,Nursing Care - Ext Provider,A56025
London Borough of Sutton,29/10/2021,50072472,-294.8,Broadlands Nursing Home,SOCIAL SERVICES RESIDENTIAL,Peoples Services,Nursing Care - 3rd party top up payment,A56023
London Borough of Sutton,29/10/2021,50072490,"3,586.28",Broadlands Nursing Home,SOCIAL SERVICES RESIDENTIAL,Peoples Services,Nursing Care - Ext Provider,A56025
London Borough of Sutton,29/10/2021,50072490,-662.24,Broadlands Nursing Home,SOCIAL SERVICES RESIDENTIAL,Peoples Services,Nursing Care - 3rd party top up payment,A56023
London Borough of Sutton,29/10/2021,50072529,"3,626.72",Broadlands Nursing Home,SOCIAL SERVICES RESIDENTIAL,Peoples Services,Nursing Care - Ext Provider,A56025
London Borough of Sutton,29/10/2021,50072529,-750.4,Broadlands Nursing Home,SOCIAL SERVICES RESIDENTIAL,Peoples Services,Nursing Care - 3rd party top up payment,A56023
London Borough of Sutton,29/10/2021,50072547,"3,626.72",Broadlands Nursing Home,SOCIAL SERVICES RESIDENTIAL,Peoples Services,Nursing Care - Ext Provider,A56025
London Borough of Sutton,29/10/2021,50072547,-750.4,Broadlands Nursing Home,SOCIAL SERVICES RESIDENTIAL,Peoples Services,Nursing Care - 3rd party top up payment,A56023
London Borough of Sutton,29/10/2021,50072568,"-3,163.43",Broadlands Nursing Home,SOCIAL SERVICES RESIDENTIAL,Peoples Services,Nursing Care - Ext Provider,A56025
London Borough of Sutton,29/10/2021,50072568,677.83,Broadlands Nursing Home,SOCIAL SERVICES RESIDENTIAL,Peoples Services,Nursing Care - 3rd party top up payment,A56023
London Borough of Sutton,29/10/2021,50072654,513.62,Broadlands Nursing Home,SOCIAL SERVICES RESIDENTIAL,Peoples Services,Nursing Care Short Term,A56026
London Borough of Sutton,19/11/2021,50078905,"2,476.50",Broadlands Nursing Home,SOCIAL SERVICES RESIDENTIAL,Peoples Services,Other Income - Outside Scope,A92127
London Borough of Sutton,19/11/2021,50078906,"1,764.49",Broadlands Nursing Home,SOCIAL SERVICES RESIDENTIAL,Peoples Services,Contract Cleaning,A27010
London Borough of Sutton,26/11/2021,50082431,"3,626.72",Broadlands Nursing Home,SOCIAL SERVICES RESIDENTIAL,Peoples Services,Nursing Care - Ext Provider,A56025
London Borough of Sutton,26/11/2021,50082431,-750.4,Broadlands Nursing Home,SOCIAL SERVICES RESIDENTIAL,Peoples Services,Nursing Care - 3rd party top up payment,A56023
London Borough of Sutton,26/11/2021,50082481,-129.53,Broadlands Nursing Home,SOCIAL SERVICES RESIDENTIAL,Peoples Services,Nursing Care - Ext Provider,A56025
London Borough of Sutton,26/11/2021,50082481,719.08,Broadlands Nursing Home,SOCIAL SERVICES RESIDENTIAL,Peoples Services,Nursing Care - 3rd party top up payment,A56023
London Borough of Sutton,26/11/2021,50082482,"3,586.28",Broadlands Nursing Home,SOCIAL SERVICES RESIDENTIAL,Peoples Services,Nursing Care - Ext Provider,A56025
London Borough of Sutton,26/11/2021,50082482,-662.24,Broadlands Nursing Home,SOCIAL SERVICES RESIDENTIAL,Peoples Services,Nursing Care - 3rd party top up payment,A56023
London Borough of Sutton,26/11/2021,50082496,"3,752.64",Broadlands Nursing Home,SOCIAL SERVICES RESIDENTIAL,Peoples Services,Nursing Care - Ext Provider,A56025
London Borough of Sutton,26/11/2021,50082496,-632.64,Broadlands Nursing Home,SOCIAL SERVICES RESIDENTIAL,Peoples Services,Nursing Care - 3rd party top up payment,A56023
London Borough of Sutton,26/11/2021,50082497,"4,670.00",Broadlands Nursing Home,SOCIAL SERVICES RESIDENTIAL,Peoples Services,Nursing Care Short Term,A56026
London Borough of Sutton,26/11/2021,50082497,-938,Broadlands Nursing Home,SOCIAL SERVICES RESIDENTIAL,Peoples Services,Nursing Care - 3rd party top up payment,A56023
London Borough of Sutton,26/11/2021,50082578,"3,626.72",Broadlands Nursing Home,SOCIAL SERVICES RESIDENTIAL,Peoples Services,Nursing Care - Ext Provider,A56025
London Borough of Sutton,26/11/2021,50082578,-750.4,Broadlands Nursing Home,SOCIAL SERVICES RESIDENTIAL,Peoples Services,Nursing Care - 3rd party top up payment,A56023
London Borough of Sutton,31/10/2021,20013719,"2,170.00",Buller Hotel,ACCOMMODATION BED & BREAKFAST,Environment Housing and Neighbourhoods,Bed & Breakfast,A56000
London Borough of Sutton,09/11/2021,50074152,"2,486.40",Bumpsa Daisies Nurserys,GRANTS & EX GRATIA PAYMENTS,Peoples Services,Place Funding,A56110
London Borough of Sutton,09/11/2021,50074218,"7,276.50",Bumpsa Daisies Nurserys,GRANTS & EX GRATIA PAYMENTS,Peoples Services,Place Funding,A56110
London Borough of Sutton,09/11/2021,50074221,"8,229.38",Busy Bees Day Nurseries Ltd ,GRANTS & EX GRATIA PAYMENTS,Peoples Services,Place Funding,A56110
London Borough of Sutton,09/11/2021,50074154,621.6,Busy Bees Day Nurseries Ltd ,GRANTS & EX GRATIA PAYMENTS,Peoples Services,Place Funding,A56110
London Borough of Sutton,09/11/2021,50074220,"10,187.10",Busy Bees Day Nurseries Ltd ,GRANTS & EX GRATIA PAYMENTS,Peoples Services,Place Funding,A56110
London Borough of Sutton,29/10/2021,50072303,"7,824.28",Butterfly's Care Homes Ltd,SOCIAL SERVICES RESIDENTIAL,Peoples Services,Residential Care - Ext Provider,A56114
London Borough of Sutton,26/11/2021,50082226,"7,824.28",Butterfly's Care Homes Ltd,SOCIAL SERVICES RESIDENTIAL,Peoples Services,Residential Care - Ext Provider,A56114
London Borough of Sutton,03/11/2021,20012437,"509,662.00",Buxton Building Contractors Ltd,CONSTRUCTION INDUSTRY,Environment Housing and Neighbourhoods,Payments to Contractors,C14000
London Borough of Sutton,01/11/2021,50074787,"4,667.05",By The Bridge Ltd,CHILDREN'S SERVICES - FOSTERING & ADOPTION SERVICES,Peoples Services,Foster Parents Support,A44110
London Borough of Sutton,01/11/2021,50074788,"5,892.48",By The Bridge Ltd,CHILDREN'S SERVICES - FOSTERING & ADOPTION SERVICES,Peoples Services,Foster Parents Support,A44110
London Borough of Sutton,01/11/2021,50074874,"2,975.69",By The Bridge Ltd,CHILDREN'S SERVICES - FOSTERING & ADOPTION SERVICES,Peoples Services,Foster Parents Support,A44110
London Borough of Sutton,01/11/2021,50074912,"2,975.69",By The Bridge Ltd,CHILDREN'S SERVICES - FOSTERING & ADOPTION SERVICES,Peoples Services,Foster Parents Support,A44110
London Borough of Sutton,01/10/2021,50074842,"6,377.15",Caldecott Fostering Ltd,CHILDREN'S SERVICES - FOSTERING & ADOPTION SERVICES,Peoples Services,Foster Parents Support,A44110
London Borough of Sutton,01/09/2021,50073518,"16,430.00",Cambridge Tutors College,CHILDREN'S SERVICES - SEN SERVICES,Peoples Services,Independent School Fees,A56002
London Borough of Sutton,28/10/2021,20012226,"2,500.00",CAN DIGITAL SOLUTION LTD,PRESS & PUBLICITY,Health and Wellbeing,Provider Contract Payments,A44290
London Borough of Sutton,29/10/2021,50072343,-922.32,Canterbury Oast Trust,SOCIAL SERVICES RESIDENTIAL,Peoples Services,Residential Care - Client Cont ( Net Paymt ),A56113
London Borough of Sutton,29/10/2021,50072343,204.72,Canterbury Oast Trust,SOCIAL SERVICES RESIDENTIAL,Peoples Services,One to One Care,A56108
London Borough of Sutton,29/10/2021,50072343,"3,913.56",Canterbury Oast Trust,SOCIAL SERVICES RESIDENTIAL,Peoples Services,Residential Care - Ext Provider,A56114
London Borough of Sutton,26/11/2021,50082591,-922.32,Canterbury Oast Trust,SOCIAL SERVICES RESIDENTIAL,Peoples Services,Residential Care - Client Cont ( Net Paymt ),A56113
London Borough of Sutton,26/11/2021,50082591,204.72,Canterbury Oast Trust,SOCIAL SERVICES RESIDENTIAL,Peoples Services,One to One Care,A56108
London Borough of Sutton,26/11/2021,50082591,"3,913.56",Canterbury Oast Trust,SOCIAL SERVICES RESIDENTIAL,Peoples Services,Residential Care - Ext Provider,A56114
London Borough of Sutton,14/10/2021,20011657,"24,497.50",Capita Business Services Ltd,BUSINESS & COMPUTER SYSTEMS,Resources,IT Software Purchase,A45040
London Borough of Sutton,17/11/2021,20013276,29.88,Capital Hair and Beauty,ACADEMIC - STUDENT FEES,Health and Wellbeing,Equipment And Materials Purchase,A40000
London Borough of Sutton,17/11/2021,20013276,13.8,Capital Hair and Beauty,ACADEMIC - STUDENT FEES,Health and Wellbeing,Equipment And Materials Purchase,A40000
London Borough of Sutton,17/11/2021,20013276,11.4,Capital Hair and Beauty,ACADEMIC - STUDENT FEES,Health and Wellbeing,Equipment And Materials Purchase,A40000
London Borough of Sutton,17/11/2021,20013276,23.04,Capital Hair and Beauty,ACADEMIC - STUDENT FEES,Health and Wellbeing,Equipment And Materials Purchase,A40000
London Borough of Sutton,17/11/2021,20013276,12.6,Capital Hair and Beauty,ACADEMIC - STUDENT FEES,Health and Wellbeing,Equipment And Materials Purchase,A40000
London Borough of Sutton,17/11/2021,20013276,162,Capital Hair and Beauty,ACADEMIC - STUDENT FEES,Health and Wellbeing,Equipment And Materials Purchase,A40000
London Borough of Sutton,17/11/2021,20013276,51,Capital Hair and Beauty,ACADEMIC - STUDENT FEES,Health and Wellbeing,Equipment And Materials Purchase,A40000
London Borough of Sutton,17/11/2021,20013276,37.2,Capital Hair and Beauty,ACADEMIC - STUDENT FEES,Health and Wellbeing,Equipment And Materials Purchase,A40000
London Borough of Sutton,17/11/2021,20013276,20.4,Capital Hair and Beauty,ACADEMIC - STUDENT FEES,Health and Wellbeing,Equipment And Materials Purchase,A40000
London Borough of Sutton,17/11/2021,20013276,70.2,Capital Hair and Beauty,ACADEMIC - STUDENT FEES,Health and Wellbeing,Equipment And Materials Purchase,A40000
London Borough of Sutton,17/11/2021,20013276,120,Capital Hair and Beauty,ACADEMIC - STUDENT FEES,Health and Wellbeing,Equipment And Materials Purchase,A40000
London Borough of Sutton,17/11/2021,20013276,120,Capital Hair and Beauty,ACADEMIC - STUDENT FEES,Health and Wellbeing,Equipment And Materials Purchase,A40000
London Borough of Sutton,17/11/2021,20013276,81,Capital Hair and Beauty,ACADEMIC - STUDENT FEES,Health and Wellbeing,Equipment And Materials Purchase,A40000
London Borough of Sutton,17/11/2021,20013276,59.4,Capital Hair and Beauty,ACADEMIC - STUDENT FEES,Health and Wellbeing,Equipment And Materials Purchase,A40000
London Borough of Sutton,17/11/2021,20013276,61.2,Capital Hair and Beauty,ACADEMIC - STUDENT FEES,Health and Wellbeing,Equipment And Materials Purchase,A40000
London Borough of Sutton,17/11/2021,20013276,36.6,Capital Hair and Beauty,ACADEMIC - STUDENT FEES,Health and Wellbeing,Equipment And Materials Purchase,A40000
London Borough of Sutton,31/10/2021,50074836,"5,695.10",Capstone Foster Care (South East) Ltd,CHILDREN'S SERVICES - FOSTERING & ADOPTION SERVICES,Peoples Services,Foster Parents Support,A44110
London Borough of Sutton,31/10/2021,50074921,"3,627.00",Capstone Foster Care (South East) Ltd,CHILDREN'S SERVICES - FOSTERING & ADOPTION SERVICES,Peoples Services,Foster Parents Support,A44110
London Borough of Sutton,16/08/2021,50074780,"2,245.71",Care Advocates Ltd,MANAGEMENT & TRAINING SERVICES,Peoples Services,Approved Lodgings,A61000
London Borough of Sutton,27/10/2021,50074782,"5,614.28",Care Advocates Ltd,MANAGEMENT & TRAINING SERVICES,Peoples Services,Approved Lodgings,A61000
London Borough of Sutton,26/10/2021,50074866,"4,117.14",Care Advocates Ltd,MANAGEMENT & TRAINING SERVICES,Peoples Services,Approved Lodgings,A61000
London Borough of Sutton,26/08/2021,50074873,"5,801.43",Care Advocates Ltd,MANAGEMENT & TRAINING SERVICES,Peoples Services,Approved Lodgings,A61000
London Borough of Sutton,29/10/2021,50072430,"3,200.00",Care Concern Group ,SOCIAL SERVICES RESIDENTIAL,Peoples Services,Residential Care - Ext Provider,A56114
London Borough of Sutton,26/11/2021,50082476,"3,200.00",Care Concern Group ,SOCIAL SERVICES RESIDENTIAL,Peoples Services,Residential Care - Ext Provider,A56114
London Borough of Sutton,29/10/2021,50072604,"3,631.80",Care Direct Uk Ltd  ,SOCIAL SERVICES RESIDENTIAL,Peoples Services,Residential Care - Ext Provider,A56114
London Borough of Sutton,26/11/2021,50082283,"3,631.80",Care Direct Uk Ltd  ,SOCIAL SERVICES RESIDENTIAL,Peoples Services,Residential Care - Ext Provider,A56114
London Borough of Sutton,18/10/2021,50073036,"1,791.00",Care More Ltd,SOCIAL SERVICES RESIDENTIAL,Peoples Services,Home Care Services,A56019
London Borough of Sutton,18/10/2021,50073036,174,Care More Ltd,SOCIAL SERVICES RESIDENTIAL,Peoples Services,Home Care Services,A56019
London Borough of Sutton,18/10/2021,50073040,709.5,Care More Ltd,SOCIAL SERVICES RESIDENTIAL,Peoples Services,Home Care Services,A56019
London Borough of Sutton,18/10/2021,50073059,"1,400.00",Care More Ltd,SOCIAL SERVICES RESIDENTIAL,Peoples Services,Home Care Services,A56019
London Borough of Sutton,18/10/2021,50073060,859,Care More Ltd,SOCIAL SERVICES RESIDENTIAL,Peoples Services,Home Care Services,A56019
London Borough of Sutton,18/10/2021,50073062,554.5,Care More Ltd,SOCIAL SERVICES RESIDENTIAL,Peoples Services,Home Care Services,A56019
London Borough of Sutton,18/10/2021,50073063,717,Care More Ltd,SOCIAL SERVICES RESIDENTIAL,Peoples Services,Home Care Services,A56019
London Borough of Sutton,18/10/2021,50073064,"1,134.00",Care More Ltd,SOCIAL SERVICES RESIDENTIAL,Peoples Services,Home Care Services,A56019
London Borough of Sutton,18/10/2021,50073067,"1,218.00",Care More Ltd,SOCIAL SERVICES RESIDENTIAL,Peoples Services,Home Care Services,A56019
London Borough of Sutton,18/10/2021,50073068,"1,484.00",Care More Ltd,SOCIAL SERVICES RESIDENTIAL,Peoples Services,Home Care Services,A56019
London Borough of Sutton,18/10/2021,50073069,"1,134.00",Care More Ltd,SOCIAL SERVICES RESIDENTIAL,Peoples Services,Home Care Services,A56019
London Borough of Sutton,18/10/2021,50073071,820,Care More Ltd,SOCIAL SERVICES RESIDENTIAL,Peoples Services,Home Care Services,A56019
London Borough of Sutton,18/10/2021,50073073,772.5,Care More Ltd,SOCIAL SERVICES RESIDENTIAL,Peoples Services,Home Care Services,A56019
London Borough of Sutton,18/10/2021,50073085,684,Care More Ltd,SOCIAL SERVICES RESIDENTIAL,Peoples Services,Home Care Services,A56019
London Borough of Sutton,18/10/2021,50073088,960,Care More Ltd,SOCIAL SERVICES RESIDENTIAL,Peoples Services,Home Care Services,A56019
London Borough of Sutton,18/10/2021,50073094,"1,400.00",Care More Ltd,SOCIAL SERVICES RESIDENTIAL,Peoples Services,Home Care Services,A56019
London Borough of Sutton,18/10/2021,50073095,39,Care More Ltd,SOCIAL SERVICES RESIDENTIAL,Peoples Services,Home Care Services,A56019
London Borough of Sutton,18/10/2021,50073095,"1,773.75",Care More Ltd,SOCIAL SERVICES RESIDENTIAL,Peoples Services,Home Care Services,A56019
London Borough of Sutton,18/10/2021,50073096,808,Care More Ltd,SOCIAL SERVICES RESIDENTIAL,Peoples Services,Home Care Services,A56019
London Borough of Sutton,18/10/2021,50073099,798,Care More Ltd,SOCIAL SERVICES RESIDENTIAL,Peoples Services,Home Care Services,A56019
London Borough of Sutton,18/10/2021,50073100,654,Care More Ltd,SOCIAL SERVICES RESIDENTIAL,Peoples Services,Home Care Services,A56019
London Borough of Sutton,18/10/2021,50073104,"1,848.00",Care More Ltd,SOCIAL SERVICES RESIDENTIAL,Peoples Services,Home Care Services,A56019
London Borough of Sutton,18/10/2021,50073108,742,Care More Ltd,SOCIAL SERVICES RESIDENTIAL,Peoples Services,Home Care Services,A56019
London Borough of Sutton,18/10/2021,50073109,681,Care More Ltd,SOCIAL SERVICES RESIDENTIAL,Peoples Services,Home Care Services,A56019
London Borough of Sutton,18/10/2021,50073124,"1,484.00",Care More Ltd,SOCIAL SERVICES RESIDENTIAL,Peoples Services,Home Care Services,A56019
London Borough of Sutton,18/10/2021,50073125,"1,400.00",Care More Ltd,SOCIAL SERVICES RESIDENTIAL,Peoples Services,Home Care Services,A56019
London Borough of Sutton,18/10/2021,50073126,"1,652.00",Care More Ltd,SOCIAL SERVICES RESIDENTIAL,Peoples Services,Home Care Services,A56019
London Borough of Sutton,18/10/2021,50073134,800.5,Care More Ltd,SOCIAL SERVICES RESIDENTIAL,Peoples Services,Home Care Services,A56019
London Borough of Sutton,18/10/2021,50073136,567,Care More Ltd,SOCIAL SERVICES RESIDENTIAL,Peoples Services,Home Care Services,A56019
London Borough of Sutton,03/11/2021,50074933,862,Care More Ltd,SOCIAL SERVICES RESIDENTIAL,Peoples Services,Home Care Services,A56019
London Borough of Sutton,03/11/2021,50074933,58.5,Care More Ltd,SOCIAL SERVICES RESIDENTIAL,Peoples Services,Home Care Services,A56019
London Borough of Sutton,03/11/2021,50074989,709.5,Care More Ltd,SOCIAL SERVICES RESIDENTIAL,Peoples Services,Home Care Services,A56019
London Borough of Sutton,03/11/2021,50075041,"1,400.00",Care More Ltd,SOCIAL SERVICES RESIDENTIAL,Peoples Services,Home Care Services,A56019
London Borough of Sutton,03/11/2021,50075042,820,Care More Ltd,SOCIAL SERVICES RESIDENTIAL,Peoples Services,Home Care Services,A56019
London Borough of Sutton,03/11/2021,50075046,"1,848.00",Care More Ltd,SOCIAL SERVICES RESIDENTIAL,Peoples Services,Home Care Services,A56019
London Borough of Sutton,03/11/2021,50075049,947.5,Care More Ltd,SOCIAL SERVICES RESIDENTIAL,Peoples Services,Home Care Services,A56019
London Borough of Sutton,03/11/2021,50075053,684,Care More Ltd,SOCIAL SERVICES RESIDENTIAL,Peoples Services,Home Care Services,A56019
London Borough of Sutton,03/11/2021,50075055,"1,400.00",Care More Ltd,SOCIAL SERVICES RESIDENTIAL,Peoples Services,Home Care Services,A56019
London Borough of Sutton,03/11/2021,50075056,"1,484.00",Care More Ltd,SOCIAL SERVICES RESIDENTIAL,Peoples Services,Home Care Services,A56019
London Borough of Sutton,03/11/2021,50075057,51.5,Care More Ltd,SOCIAL SERVICES RESIDENTIAL,Peoples Services,Home Care Services,A56019
London Borough of Sutton,03/11/2021,50075057,"1,751.50",Care More Ltd,SOCIAL SERVICES RESIDENTIAL,Peoples Services,Home Care Services,A56019
London Borough of Sutton,03/11/2021,50075058,855.5,Care More Ltd,SOCIAL SERVICES RESIDENTIAL,Peoples Services,Home Care Services,A56019
London Borough of Sutton,03/11/2021,50075061,567,Care More Ltd,SOCIAL SERVICES RESIDENTIAL,Peoples Services,Home Care Services,A56019
London Borough of Sutton,03/11/2021,50075063,742,Care More Ltd,SOCIAL SERVICES RESIDENTIAL,Peoples Services,Home Care Services,A56019
London Borough of Sutton,03/11/2021,50075064,"1,134.00",Care More Ltd,SOCIAL SERVICES RESIDENTIAL,Peoples Services,Home Care Services,A56019
London Borough of Sutton,03/11/2021,50075066,800.5,Care More Ltd,SOCIAL SERVICES RESIDENTIAL,Peoples Services,Home Care Services,A56019
London Borough of Sutton,03/11/2021,50075067,729.5,Care More Ltd,SOCIAL SERVICES RESIDENTIAL,Peoples Services,Home Care Services,A56019
London Borough of Sutton,03/11/2021,50075069,"1,484.00",Care More Ltd,SOCIAL SERVICES RESIDENTIAL,Peoples Services,Home Care Services,A56019
London Borough of Sutton,03/11/2021,50075071,681,Care More Ltd,SOCIAL SERVICES RESIDENTIAL,Peoples Services,Home Care Services,A56019
London Borough of Sutton,03/11/2021,50075072,"1,400.00",Care More Ltd,SOCIAL SERVICES RESIDENTIAL,Peoples Services,Home Care Services,A56019
London Borough of Sutton,03/11/2021,50075073,804.5,Care More Ltd,SOCIAL SERVICES RESIDENTIAL,Peoples Services,Home Care Services,A56019
London Borough of Sutton,03/11/2021,50075080,"1,652.00",Care More Ltd,SOCIAL SERVICES RESIDENTIAL,Peoples Services,Home Care Services,A56019
London Borough of Sutton,03/11/2021,50075084,685,Care More Ltd,SOCIAL SERVICES RESIDENTIAL,Peoples Services,Home Care Services,A56019
London Borough of Sutton,03/11/2021,50075108,742,Care More Ltd,SOCIAL SERVICES RESIDENTIAL,Peoples Services,Home Care Services,A56019
London Borough of Sutton,03/11/2021,50075109,"1,218.00",Care More Ltd,SOCIAL SERVICES RESIDENTIAL,Peoples Services,Home Care Services,A56019
London Borough of Sutton,03/11/2021,50075110,798,Care More Ltd,SOCIAL SERVICES RESIDENTIAL,Peoples Services,Home Care Services,A56019
London Borough of Sutton,03/11/2021,50075111,"1,103.00",Care More Ltd,SOCIAL SERVICES RESIDENTIAL,Peoples Services,Home Care Services,A56019
London Borough of Sutton,03/11/2021,50075112,567,Care More Ltd,SOCIAL SERVICES RESIDENTIAL,Peoples Services,Home Care Services,A56019
London Borough of Sutton,08/03/2021,50076028,948.74,Care More Ltd,SOCIAL SERVICES RESIDENTIAL,Peoples Services,Home Care Services,A56019
London Borough of Sutton,23/03/2021,50076029,948.74,Care More Ltd,SOCIAL SERVICES RESIDENTIAL,Peoples Services,Home Care Services,A56019
London Borough of Sutton,29/12/2020,50076840,742,Care More Ltd,SOCIAL SERVICES RESIDENTIAL,Peoples Services,Home Care Services,A56019
London Borough of Sutton,24/02/2020,50077895,541,Care More Ltd,SOCIAL SERVICES RESIDENTIAL,Peoples Services,Home Care Services,A56019
London Borough of Sutton,18/10/2021,50078336,582,Care More Ltd,SOCIAL SERVICES RESIDENTIAL,Peoples Services,Home Care Services,A56019
London Borough of Sutton,18/11/2021,50078490,"6,142.50",Care More Ltd,SOCIAL SERVICES RESIDENTIAL,Peoples Services,Other Income - Outside Scope,A92127
London Borough of Sutton,18/11/2021,50078491,"3,577.50",Care More Ltd,SOCIAL SERVICES RESIDENTIAL,Peoples Services,Contract Cleaning,A27010
London Borough of Sutton,18/11/2021,50078492,"1,282.50",Care More Ltd,SOCIAL SERVICES RESIDENTIAL,Peoples Services,Other Income - Outside Scope,A92127
London Borough of Sutton,15/11/2021,50079588,684,Care More Ltd,SOCIAL SERVICES RESIDENTIAL,Peoples Services,Home Care Services,A56019
London Borough of Sutton,15/11/2021,50079596,"1,400.00",Care More Ltd,SOCIAL SERVICES RESIDENTIAL,Peoples Services,Home Care Services,A56019
London Borough of Sutton,15/11/2021,50079598,"1,400.00",Care More Ltd,SOCIAL SERVICES RESIDENTIAL,Peoples Services,Home Care Services,A56019
London Borough of Sutton,15/11/2021,50079599,855.5,Care More Ltd,SOCIAL SERVICES RESIDENTIAL,Peoples Services,Home Care Services,A56019
London Borough of Sutton,15/11/2021,50079601,"1,134.00",Care More Ltd,SOCIAL SERVICES RESIDENTIAL,Peoples Services,Home Care Services,A56019
London Borough of Sutton,15/11/2021,50079603,800.5,Care More Ltd,SOCIAL SERVICES RESIDENTIAL,Peoples Services,Home Care Services,A56019
London Borough of Sutton,15/11/2021,50079605,742,Care More Ltd,SOCIAL SERVICES RESIDENTIAL,Peoples Services,Home Care Services,A56019
London Borough of Sutton,15/11/2021,50079608,932,Care More Ltd,SOCIAL SERVICES RESIDENTIAL,Peoples Services,Home Care Services,A56019
London Borough of Sutton,15/11/2021,50079609,742,Care More Ltd,SOCIAL SERVICES RESIDENTIAL,Peoples Services,Home Care Services,A56019
London Borough of Sutton,15/11/2021,50079610,820,Care More Ltd,SOCIAL SERVICES RESIDENTIAL,Peoples Services,Home Care Services,A56019
London Borough of Sutton,15/11/2021,50079612,"1,652.00",Care More Ltd,SOCIAL SERVICES RESIDENTIAL,Peoples Services,Home Care Services,A56019
London Borough of Sutton,15/11/2021,50079613,"1,778.00",Care More Ltd,SOCIAL SERVICES RESIDENTIAL,Peoples Services,Home Care Services,A56019
London Borough of Sutton,15/11/2021,50079613,117,Care More Ltd,SOCIAL SERVICES RESIDENTIAL,Peoples Services,Home Care Services,A56019
London Borough of Sutton,15/11/2021,50079614,"1,484.00",Care More Ltd,SOCIAL SERVICES RESIDENTIAL,Peoples Services,Home Care Services,A56019
London Borough of Sutton,15/11/2021,50079618,681,Care More Ltd,SOCIAL SERVICES RESIDENTIAL,Peoples Services,Home Care Services,A56019
London Borough of Sutton,15/11/2021,50079619,598.5,Care More Ltd,SOCIAL SERVICES RESIDENTIAL,Peoples Services,Home Care Services,A56019
London Borough of Sutton,15/11/2021,50079645,"1,218.00",Care More Ltd,SOCIAL SERVICES RESIDENTIAL,Peoples Services,Home Care Services,A56019
London Borough of Sutton,15/11/2021,50079646,817.5,Care More Ltd,SOCIAL SERVICES RESIDENTIAL,Peoples Services,Home Care Services,A56019
London Borough of Sutton,15/11/2021,50079647,669.5,Care More Ltd,SOCIAL SERVICES RESIDENTIAL,Peoples Services,Home Care Services,A56019
London Borough of Sutton,15/11/2021,50079649,"1,134.00",Care More Ltd,SOCIAL SERVICES RESIDENTIAL,Peoples Services,Home Care Services,A56019
London Borough of Sutton,15/11/2021,50079650,567,Care More Ltd,SOCIAL SERVICES RESIDENTIAL,Peoples Services,Home Care Services,A56019
London Borough of Sutton,15/11/2021,50079653,792,Care More Ltd,SOCIAL SERVICES RESIDENTIAL,Peoples Services,Home Care Services,A56019
London Borough of Sutton,15/11/2021,50079659,567,Care More Ltd,SOCIAL SERVICES RESIDENTIAL,Peoples Services,Home Care Services,A56019
London Borough of Sutton,15/11/2021,50079671,"1,400.00",Care More Ltd,SOCIAL SERVICES RESIDENTIAL,Peoples Services,Home Care Services,A56019
London Borough of Sutton,15/11/2021,50079672,"1,848.00",Care More Ltd,SOCIAL SERVICES RESIDENTIAL,Peoples Services,Home Care Services,A56019
London Borough of Sutton,15/11/2021,50079675,39,Care More Ltd,SOCIAL SERVICES RESIDENTIAL,Peoples Services,Home Care Services,A56019
London Borough of Sutton,15/11/2021,50079675,"1,773.75",Care More Ltd,SOCIAL SERVICES RESIDENTIAL,Peoples Services,Home Care Services,A56019
London Borough of Sutton,15/11/2021,50079678,"1,484.00",Care More Ltd,SOCIAL SERVICES RESIDENTIAL,Peoples Services,Home Care Services,A56019
London Borough of Sutton,15/11/2021,50079680,709.5,Care More Ltd,SOCIAL SERVICES RESIDENTIAL,Peoples Services,Home Care Services,A56019
London Borough of Sutton,29/10/2021,50072268,-662.24,Care UK Homecare Ltd,SOCIAL SERVICES RESIDENTIAL,Peoples Services,Nursing Care - 3rd party top up payment,A56023
London Borough of Sutton,29/10/2021,50072268,"3,586.28",Care UK Homecare Ltd,SOCIAL SERVICES RESIDENTIAL,Peoples Services,Nursing Care - Ext Provider,A56025
London Borough of Sutton,29/10/2021,50072273,-425.6,Care UK Homecare Ltd,SOCIAL SERVICES RESIDENTIAL,Peoples Services,Residential Care - Client Cont ( Net Paymt ),A56113
London Borough of Sutton,29/10/2021,50072273,"4,600.00",Care UK Homecare Ltd,SOCIAL SERVICES RESIDENTIAL,Peoples Services,Residential Care - Ext Provider,A56114
London Borough of Sutton,26/11/2021,50082205,"-4,198.86",Care UK Homecare Ltd,SOCIAL SERVICES RESIDENTIAL,Peoples Services,One to One Care,A56108
London Borough of Sutton,26/11/2021,50082229,-662.24,Care UK Homecare Ltd,SOCIAL SERVICES RESIDENTIAL,Peoples Services,Nursing Care - 3rd party top up payment,A56023
London Borough of Sutton,26/11/2021,50082229,"3,586.28",Care UK Homecare Ltd,SOCIAL SERVICES RESIDENTIAL,Peoples Services,Nursing Care - Ext Provider,A56025
London Borough of Sutton,26/11/2021,50082250,-425.6,Care UK Homecare Ltd,SOCIAL SERVICES RESIDENTIAL,Peoples Services,Residential Care - Client Cont ( Net Paymt ),A56113
London Borough of Sutton,26/11/2021,50082250,"4,600.00",Care UK Homecare Ltd,SOCIAL SERVICES RESIDENTIAL,Peoples Services,Residential Care - Ext Provider,A56114
London Borough of Sutton,23/11/2021,50081822,"4,732.00",Care Unlimited Domcare Ltd,SOCIAL SERVICES DAY CARE,Peoples Services,Supported Living,A56088
London Borough of Sutton,29/10/2021,50072321,"11,786.84",Care Unlimited Group Ltd,SOCIAL SERVICES DAY CARE,Peoples Services,Nursing Care - Ext Provider,A56025
London Borough of Sutton,29/10/2021,50072321,"-2,412.00",Care Unlimited Group Ltd,SOCIAL SERVICES DAY CARE,Peoples Services,Nursing Care - 3rd party top up payment,A56023
London Borough of Sutton,29/10/2021,50072506,"3,612.00",Care Unlimited Group Ltd,SOCIAL SERVICES DAY CARE,Peoples Services,Nursing Care - Ext Provider,A56025
London Borough of Sutton,29/10/2021,50072506,-735.68,Care Unlimited Group Ltd,SOCIAL SERVICES DAY CARE,Peoples Services,Nursing Care - 3rd party top up payment,A56023
London Borough of Sutton,29/10/2021,50072524,-750.4,Care Unlimited Group Ltd,SOCIAL SERVICES DAY CARE,Peoples Services,Nursing Care - 3rd party top up payment,A56023
London Borough of Sutton,29/10/2021,50072524,"3,626.72",Care Unlimited Group Ltd,SOCIAL SERVICES DAY CARE,Peoples Services,Nursing Care - Ext Provider,A56025
London Borough of Sutton,29/10/2021,50072578,"-3,096.24",Care Unlimited Group Ltd,SOCIAL SERVICES DAY CARE,Peoples Services,Nursing Care - 3rd party top up payment,A56023
London Borough of Sutton,29/10/2021,50072578,"6,192.48",Care Unlimited Group Ltd,SOCIAL SERVICES DAY CARE,Peoples Services,Nursing Care - Ext Provider,A56025
London Borough of Sutton,29/10/2021,50072649,"3,626.72",Care Unlimited Group Ltd,SOCIAL SERVICES DAY CARE,Peoples Services,Nursing Care - Ext Provider,A56025
London Borough of Sutton,29/10/2021,50072649,-750.4,Care Unlimited Group Ltd,SOCIAL SERVICES DAY CARE,Peoples Services,Nursing Care - 3rd party top up payment,A56023
London Borough of Sutton,25/11/2021,50081793,"4,381.50",Care Unlimited Group Ltd,SOCIAL SERVICES DAY CARE,Peoples Services,Other Income - Outside Scope,A92127
London Borough of Sutton,25/11/2021,50081794,"3,105.00",Care Unlimited Group Ltd,SOCIAL SERVICES DAY CARE,Peoples Services,Contract Cleaning,A27010
London Borough of Sutton,26/11/2021,50082281,"-3,096.24",Care Unlimited Group Ltd,SOCIAL SERVICES DAY CARE,Peoples Services,Nursing Care - 3rd party top up payment,A56023
London Borough of Sutton,26/11/2021,50082281,"6,192.48",Care Unlimited Group Ltd,SOCIAL SERVICES DAY CARE,Peoples Services,Nursing Care - Ext Provider,A56025
London Borough of Sutton,26/11/2021,50082378,"3,626.72",Care Unlimited Group Ltd,SOCIAL SERVICES DAY CARE,Peoples Services,Nursing Care - Ext Provider,A56025
London Borough of Sutton,26/11/2021,50082378,-750.4,Care Unlimited Group Ltd,SOCIAL SERVICES DAY CARE,Peoples Services,Nursing Care - 3rd party top up payment,A56023
London Borough of Sutton,26/11/2021,50082489,"3,626.72",Care Unlimited Group Ltd,SOCIAL SERVICES DAY CARE,Peoples Services,Nursing Care - Ext Provider,A56025
London Borough of Sutton,26/11/2021,50082489,-750.4,Care Unlimited Group Ltd,SOCIAL SERVICES DAY CARE,Peoples Services,Nursing Care - 3rd party top up payment,A56023
London Borough of Sutton,26/11/2021,50082574,-750.4,Care Unlimited Group Ltd,SOCIAL SERVICES DAY CARE,Peoples Services,Nursing Care - 3rd party top up payment,A56023
London Borough of Sutton,26/11/2021,50082574,"3,626.72",Care Unlimited Group Ltd,SOCIAL SERVICES DAY CARE,Peoples Services,Nursing Care - Ext Provider,A56025
London Borough of Sutton,26/11/2021,50082575,"3,612.00",Care Unlimited Group Ltd,SOCIAL SERVICES DAY CARE,Peoples Services,Nursing Care - Ext Provider,A56025
London Borough of Sutton,26/11/2021,50082575,-735.68,Care Unlimited Group Ltd,SOCIAL SERVICES DAY CARE,Peoples Services,Nursing Care - 3rd party top up payment,A56023
London Borough of Sutton,27/10/2021,50072723,511,Care4Care Services Ltd,SOCIAL SERVICES DAY CARE,Peoples Services,Home Care Services,A56019
London Borough of Sutton,14/11/2021,50078311,"1,031.10",Care4Care Services Ltd,SOCIAL SERVICES DAY CARE,Peoples Services,Home Care Services,A56019
London Borough of Sutton,14/11/2021,50078338,"1,103.00",Care4Care Services Ltd,SOCIAL SERVICES DAY CARE,Peoples Services,Home Care Services,A56019
London Borough of Sutton,14/11/2021,50078339,"1,872.40",Care4Care Services Ltd,SOCIAL SERVICES DAY CARE,Peoples Services,Home Care Services,A56019
London Borough of Sutton,14/11/2021,50078377,870,Care4Care Services Ltd,SOCIAL SERVICES DAY CARE,Peoples Services,Home Care Services,A56019
London Borough of Sutton,14/11/2021,50078378,696,Care4Care Services Ltd,SOCIAL SERVICES DAY CARE,Peoples Services,Home Care Services,A56019
London Borough of Sutton,14/11/2021,50078379,"1,060.10",Care4Care Services Ltd,SOCIAL SERVICES DAY CARE,Peoples Services,Home Care Services,A56019
London Borough of Sutton,14/11/2021,50081823,778.4,Care4Care Services Ltd,SOCIAL SERVICES DAY CARE,Peoples Services,Home Care Services,A56019
London Borough of Sutton,03/11/2021,20012559,608,Caremark (Sutton),SOCIAL SERVICES DAY CARE,Peoples Services,One to One Care,A56108
London Borough of Sutton,16/11/2021,20013376,500,Caremark (Sutton),SOCIAL SERVICES DAY CARE,Peoples Services,One to One Care,A56108
London Borough of Sutton,09/05/2021,50078003,824.9,Caremark (Sutton),SOCIAL SERVICES DAY CARE,Peoples Services,Home Care Services,A56019
London Borough of Sutton,02/05/2021,50078005,826,Caremark (Sutton),SOCIAL SERVICES DAY CARE,Peoples Services,Home Care Services,A56019
London Borough of Sutton,16/05/2021,50078007,838.3,Caremark (Sutton),SOCIAL SERVICES DAY CARE,Peoples Services,Home Care Services,A56019
London Borough of Sutton,16/05/2021,50078014,"1,180.00",Caremark (Sutton),SOCIAL SERVICES DAY CARE,Peoples Services,Home Care Services,A56019
London Borough of Sutton,16/05/2021,50078014,61.5,Caremark (Sutton),SOCIAL SERVICES DAY CARE,Peoples Services,Home Care Services,A56019
London Borough of Sutton,23/05/2021,50078015,"1,001.40",Caremark (Sutton),SOCIAL SERVICES DAY CARE,Peoples Services,Home Care Services,A56019
London Borough of Sutton,23/05/2021,50078015,61.5,Caremark (Sutton),SOCIAL SERVICES DAY CARE,Peoples Services,Home Care Services,A56019
London Borough of Sutton,23/05/2021,50078016,826,Caremark (Sutton),SOCIAL SERVICES DAY CARE,Peoples Services,Home Care Services,A56019
London Borough of Sutton,06/06/2021,50078017,812.6,Caremark (Sutton),SOCIAL SERVICES DAY CARE,Peoples Services,Home Care Services,A56019
London Borough of Sutton,13/06/2021,50078018,826,Caremark (Sutton),SOCIAL SERVICES DAY CARE,Peoples Services,Home Care Services,A56019
London Borough of Sutton,20/06/2021,50078019,826,Caremark (Sutton),SOCIAL SERVICES DAY CARE,Peoples Services,Home Care Services,A56019
London Borough of Sutton,30/05/2021,50078020,826,Caremark (Sutton),SOCIAL SERVICES DAY CARE,Peoples Services,Home Care Services,A56019
London Borough of Sutton,27/06/2021,50078022,826,Caremark (Sutton),SOCIAL SERVICES DAY CARE,Peoples Services,Home Care Services,A56019
London Borough of Sutton,18/11/2021,50078493,"3,048.50",Caremark (Sutton),SOCIAL SERVICES DAY CARE,Peoples Services,Other Income - Outside Scope,A92127
London Borough of Sutton,18/11/2021,50078494,"1,775.50",Caremark (Sutton),SOCIAL SERVICES DAY CARE,Peoples Services,Contract Cleaning,A27010
London Borough of Sutton,18/11/2021,50078495,636.5,Caremark (Sutton),SOCIAL SERVICES DAY CARE,Peoples Services,Other Income - Outside Scope,A92127
London Borough of Sutton,17/10/2021,50078639,524.13,Caremark (Sutton),SOCIAL SERVICES DAY CARE,Peoples Services,Home Care Services,A56019
London Borough of Sutton,31/10/2021,50078640,538.01,Caremark (Sutton),SOCIAL SERVICES DAY CARE,Peoples Services,Home Care Services,A56019
London Borough of Sutton,11/07/2021,50078645,246,Caremark (Sutton),SOCIAL SERVICES DAY CARE,Peoples Services,Home Care Services,A56019
London Borough of Sutton,11/07/2021,50078645,265.5,Caremark (Sutton),SOCIAL SERVICES DAY CARE,Peoples Services,Home Care Services,A56019
London Borough of Sutton,10/10/2021,50078646,240.51,Caremark (Sutton),SOCIAL SERVICES DAY CARE,Peoples Services,Home Care Services,A56019
London Borough of Sutton,10/10/2021,50078646,278.79,Caremark (Sutton),SOCIAL SERVICES DAY CARE,Peoples Services,Home Care Services,A56019
London Borough of Sutton,17/10/2021,50078647,251.63,Caremark (Sutton),SOCIAL SERVICES DAY CARE,Peoples Services,Home Care Services,A56019
London Borough of Sutton,17/10/2021,50078647,284.47,Caremark (Sutton),SOCIAL SERVICES DAY CARE,Peoples Services,Home Care Services,A56019
London Borough of Sutton,31/10/2021,50078648,251.63,Caremark (Sutton),SOCIAL SERVICES DAY CARE,Peoples Services,Home Care Services,A56019
London Borough of Sutton,31/10/2021,50078648,284.47,Caremark (Sutton),SOCIAL SERVICES DAY CARE,Peoples Services,Home Care Services,A56019
London Borough of Sutton,11/07/2021,50078650,767.03,Caremark (Sutton),SOCIAL SERVICES DAY CARE,Peoples Services,Home Care Services,A56019
London Borough of Sutton,11/07/2021,50078650,30.75,Caremark (Sutton),SOCIAL SERVICES DAY CARE,Peoples Services,Home Care Services,A56019
London Borough of Sutton,10/10/2021,50078651,801.93,Caremark (Sutton),SOCIAL SERVICES DAY CARE,Peoples Services,Home Care Services,A56019
London Borough of Sutton,10/10/2021,50078651,33.72,Caremark (Sutton),SOCIAL SERVICES DAY CARE,Peoples Services,Home Care Services,A56019
London Borough of Sutton,17/10/2021,50078652,801.93,Caremark (Sutton),SOCIAL SERVICES DAY CARE,Peoples Services,Home Care Services,A56019
London Borough of Sutton,17/10/2021,50078652,33.72,Caremark (Sutton),SOCIAL SERVICES DAY CARE,Peoples Services,Home Care Services,A56019
London Borough of Sutton,31/10/2021,50078653,801.93,Caremark (Sutton),SOCIAL SERVICES DAY CARE,Peoples Services,Home Care Services,A56019
London Borough of Sutton,31/10/2021,50078653,33.72,Caremark (Sutton),SOCIAL SERVICES DAY CARE,Peoples Services,Home Care Services,A56019
London Borough of Sutton,11/07/2021,50078654,767.03,Caremark (Sutton),SOCIAL SERVICES DAY CARE,Peoples Services,Home Care Services,A56019
London Borough of Sutton,11/07/2021,50078654,61.5,Caremark (Sutton),SOCIAL SERVICES DAY CARE,Peoples Services,Home Care Services,A56019
London Borough of Sutton,10/10/2021,50078655,800.58,Caremark (Sutton),SOCIAL SERVICES DAY CARE,Peoples Services,Home Care Services,A56019
London Borough of Sutton,10/10/2021,50078655,67.32,Caremark (Sutton),SOCIAL SERVICES DAY CARE,Peoples Services,Home Care Services,A56019
London Borough of Sutton,17/10/2021,50078656,800.58,Caremark (Sutton),SOCIAL SERVICES DAY CARE,Peoples Services,Home Care Services,A56019
London Borough of Sutton,17/10/2021,50078656,67.32,Caremark (Sutton),SOCIAL SERVICES DAY CARE,Peoples Services,Home Care Services,A56019
London Borough of Sutton,31/10/2021,50078657,800.58,Caremark (Sutton),SOCIAL SERVICES DAY CARE,Peoples Services,Home Care Services,A56019
London Borough of Sutton,31/10/2021,50078657,67.32,Caremark (Sutton),SOCIAL SERVICES DAY CARE,Peoples Services,Home Care Services,A56019
London Borough of Sutton,11/07/2021,50078663,"1,833.50",Caremark (Sutton),SOCIAL SERVICES DAY CARE,Peoples Services,Home Care Services,A56019
London Borough of Sutton,10/10/2021,50078664,"1,920.52",Caremark (Sutton),SOCIAL SERVICES DAY CARE,Peoples Services,Home Care Services,A56019
London Borough of Sutton,17/10/2021,50078665,"1,897.00",Caremark (Sutton),SOCIAL SERVICES DAY CARE,Peoples Services,Home Care Services,A56019
London Borough of Sutton,31/10/2021,50078666,"1,920.50",Caremark (Sutton),SOCIAL SERVICES DAY CARE,Peoples Services,Home Care Services,A56019
London Borough of Sutton,11/07/2021,50078675,949.99,Caremark (Sutton),SOCIAL SERVICES DAY CARE,Peoples Services,Home Care Services,A56019
London Borough of Sutton,11/07/2021,50078675,140.03,Caremark (Sutton),SOCIAL SERVICES DAY CARE,Peoples Services,Home Care Services,A56019
London Borough of Sutton,10/10/2021,50078676,965.62,Caremark (Sutton),SOCIAL SERVICES DAY CARE,Peoples Services,Home Care Services,A56019
London Borough of Sutton,10/10/2021,50078676,150.5,Caremark (Sutton),SOCIAL SERVICES DAY CARE,Peoples Services,Home Care Services,A56019
London Borough of Sutton,17/10/2021,50078677,965.62,Caremark (Sutton),SOCIAL SERVICES DAY CARE,Peoples Services,Home Care Services,A56019
London Borough of Sutton,17/10/2021,50078677,150.5,Caremark (Sutton),SOCIAL SERVICES DAY CARE,Peoples Services,Home Care Services,A56019
London Borough of Sutton,31/10/2021,50078678,978.52,Caremark (Sutton),SOCIAL SERVICES DAY CARE,Peoples Services,Home Care Services,A56019
London Borough of Sutton,31/10/2021,50078678,150.5,Caremark (Sutton),SOCIAL SERVICES DAY CARE,Peoples Services,Home Care Services,A56019
London Borough of Sutton,31/10/2021,50078682,500.41,Caremark (Sutton),SOCIAL SERVICES DAY CARE,Peoples Services,Home Care Services,A56019
London Borough of Sutton,11/07/2021,50078694,913.26,Caremark (Sutton),SOCIAL SERVICES DAY CARE,Peoples Services,Home Care Services,A56019
London Borough of Sutton,11/07/2021,50078694,59.49,Caremark (Sutton),SOCIAL SERVICES DAY CARE,Peoples Services,Home Care Services,A56019
London Borough of Sutton,10/10/2021,50078695,558.91,Caremark (Sutton),SOCIAL SERVICES DAY CARE,Peoples Services,Home Care Services,A56019
London Borough of Sutton,17/10/2021,50078696,543.4,Caremark (Sutton),SOCIAL SERVICES DAY CARE,Peoples Services,Home Care Services,A56019
London Borough of Sutton,31/10/2021,50078697,563.16,Caremark (Sutton),SOCIAL SERVICES DAY CARE,Peoples Services,Home Care Services,A56019
London Borough of Sutton,11/07/2021,50078698,747.4,Caremark (Sutton),SOCIAL SERVICES DAY CARE,Peoples Services,Home Care Services,A56019
London Borough of Sutton,19/11/2021,20013415,955.68,Careoline Carers Services Ltd,CHILDREN'S SERVICES - DAY CARE,Peoples Services,C.C.A Travel & Subsistance,A61010
London Borough of Sutton,29/10/2021,50072478,"5,676.16",Caretech Community Services Ltd,SOCIAL SERVICES RESIDENTIAL,Peoples Services,Residential Care - Ext Provider,A56114
London Borough of Sutton,29/10/2021,50072478,-608.8,Caretech Community Services Ltd,SOCIAL SERVICES RESIDENTIAL,Peoples Services,Residential Care - Client Cont ( Net Paymt ),A56113
London Borough of Sutton,29/10/2021,50072572,"5,531.60",Caretech Community Services Ltd,SOCIAL SERVICES RESIDENTIAL,Peoples Services,Residential Care - Ext Provider,A56114
London Borough of Sutton,29/10/2021,50072613,"5,534.00",Caretech Community Services Ltd,SOCIAL SERVICES RESIDENTIAL,Peoples Services,Residential Care - Ext Provider,A56114
London Borough of Sutton,29/10/2021,50072613,-494.6,Caretech Community Services Ltd,SOCIAL SERVICES RESIDENTIAL,Peoples Services,Residential Care - Client Cont ( Net Paymt ),A56113
London Borough of Sutton,29/10/2021,50072625,"5,534.00",Caretech Community Services Ltd,SOCIAL SERVICES RESIDENTIAL,Peoples Services,Residential Care - Ext Provider,A56114
London Borough of Sutton,29/10/2021,50072625,-425.6,Caretech Community Services Ltd,SOCIAL SERVICES RESIDENTIAL,Peoples Services,Residential Care - Client Cont ( Net Paymt ),A56113
London Borough of Sutton,26/11/2021,50082306,"5,531.60",Caretech Community Services Ltd,SOCIAL SERVICES RESIDENTIAL,Peoples Services,Residential Care - Ext Provider,A56114
London Borough of Sutton,26/11/2021,50082366,"5,534.00",Caretech Community Services Ltd,SOCIAL SERVICES RESIDENTIAL,Peoples Services,Residential Care - Ext Provider,A56114
London Borough of Sutton,26/11/2021,50082366,-494.6,Caretech Community Services Ltd,SOCIAL SERVICES RESIDENTIAL,Peoples Services,Residential Care - Client Cont ( Net Paymt ),A56113
London Borough of Sutton,26/11/2021,50082367,"5,534.00",Caretech Community Services Ltd,SOCIAL SERVICES RESIDENTIAL,Peoples Services,Residential Care - Ext Provider,A56114
London Borough of Sutton,26/11/2021,50082367,-425.6,Caretech Community Services Ltd,SOCIAL SERVICES RESIDENTIAL,Peoples Services,Residential Care - Client Cont ( Net Paymt ),A56113
London Borough of Sutton,26/11/2021,50082529,"5,676.16",Caretech Community Services Ltd,SOCIAL SERVICES RESIDENTIAL,Peoples Services,Residential Care - Ext Provider,A56114
London Borough of Sutton,26/11/2021,50082529,-608.8,Caretech Community Services Ltd,SOCIAL SERVICES RESIDENTIAL,Peoples Services,Residential Care - Client Cont ( Net Paymt ),A56113
London Borough of Sutton,09/11/2021,50073679,"4,511.68",Carew Academy,CHILDREN'S SERVICES - RESIDENTIAL,Peoples Services,Payments to Schools,A51013
London Borough of Sutton,09/11/2021,50073686,"10,417.94",Carew Academy,CHILDREN'S SERVICES - RESIDENTIAL,Peoples Services,Payments to Schools,A51013
London Borough of Sutton,09/11/2021,50073804,"1,695.00",Carew Academy,CHILDREN'S SERVICES - RESIDENTIAL,Resources,"Grants, Contributions & Donations",A47005
London Borough of Sutton,30/09/2021,20012548,"3,885.00",Caridon Young Living Ltd,CHILDREN'S SERVICES - RESIDENTIAL,Peoples Services,Approved Lodgings,A61000
London Borough of Sutton,30/09/2021,50074800,"4,588.21",Caridon Young Living Ltd,CHILDREN'S SERVICES - RESIDENTIAL,Peoples Services,Approved Lodgings,A61000
London Borough of Sutton,30/09/2021,50074805,"4,746.43",Caridon Young Living Ltd,CHILDREN'S SERVICES - RESIDENTIAL,Peoples Services,Approved Lodgings,A61000
London Borough of Sutton,30/09/2021,50074806,"5,282.14",Caridon Young Living Ltd,CHILDREN'S SERVICES - RESIDENTIAL,Peoples Services,Approved Lodgings,A61000
London Borough of Sutton,31/10/2021,50074807,"4,904.65",Caridon Young Living Ltd,CHILDREN'S SERVICES - RESIDENTIAL,Peoples Services,Approved Lodgings,A61000
London Borough of Sutton,31/10/2021,50074834,"6,011.79",Caridon Young Living Ltd,CHILDREN'S SERVICES - RESIDENTIAL,Peoples Services,Approved Lodgings,A61000
London Borough of Sutton,31/10/2021,50074913,"4,351.07",Caridon Young Living Ltd,CHILDREN'S SERVICES - RESIDENTIAL,Peoples Services,Approved Lodgings,A61000
London Borough of Sutton,31/10/2021,50074914,"5,458.22",Caridon Young Living Ltd,CHILDREN'S SERVICES - RESIDENTIAL,Peoples Services,Approved Lodgings,A61000
London Borough of Sutton,18/11/2021,50078780,"3,073.59",Care Support Partners Ltd,SOCIAL SERVICES RESIDENTIAL,Peoples Services,Supported Living,A56088
London Borough of Sutton,29/10/2021,50072362,"5,478.12",Carlene House,SOCIAL SERVICES RESIDENTIAL,Peoples Services,Residential Care - Ext Provider,A56114
London Borough of Sutton,29/10/2021,50072363,"5,478.12",Carlene House,SOCIAL SERVICES RESIDENTIAL,Peoples Services,Residential Care - Ext Provider,A56114
London Borough of Sutton,29/10/2021,50072364,"5,478.12",Carlene House,SOCIAL SERVICES RESIDENTIAL,Peoples Services,Residential Care - Ext Provider,A56114
London Borough of Sutton,29/10/2021,50072365,"5,478.12",Carlene House,SOCIAL SERVICES RESIDENTIAL,Peoples Services,Residential Care - Ext Provider,A56114
London Borough of Sutton,29/10/2021,50072465,"5,478.12",Carlene House,SOCIAL SERVICES RESIDENTIAL,Peoples Services,Residential Care - Ext Provider,A56114
London Borough of Sutton,29/10/2021,50072606,"5,478.12",Carlene House,SOCIAL SERVICES RESIDENTIAL,Peoples Services,Residential Care - Ext Provider,A56114
London Borough of Sutton,29/10/2021,50072682,"5,478.12",Carlene House,SOCIAL SERVICES RESIDENTIAL,Peoples Services,Residential Care - Ext Provider,A56114
London Borough of Sutton,03/09/2021,50074034,"2,591.84",Carlene House,SOCIAL SERVICES RESIDENTIAL,Peoples Services,Supported Living,A56088
London Borough of Sutton,01/10/2021,50074044,"4,616.80",Carlene House,SOCIAL SERVICES RESIDENTIAL,Peoples Services,Supported Living,A56088
London Borough of Sutton,01/09/2021,50074047,"2,671.60",Carlene House,SOCIAL SERVICES RESIDENTIAL,Peoples Services,Supported Living,A56088
London Borough of Sutton,01/09/2021,50074049,"3,421.24",Carlene House,SOCIAL SERVICES RESIDENTIAL,Peoples Services,Supported Living,A56088
London Borough of Sutton,01/10/2021,50074952,"1,276.00",Carlene House,SOCIAL SERVICES RESIDENTIAL,Peoples Services,Supported Living,A56088
London Borough of Sutton,01/10/2021,50074953,"1,036.75",Carlene House,SOCIAL SERVICES RESIDENTIAL,Peoples Services,Supported Living,A56088
London Borough of Sutton,01/10/2021,50074954,"4,023.25",Carlene House,SOCIAL SERVICES RESIDENTIAL,Peoples Services,Supported Living,A56088
London Borough of Sutton,01/10/2021,50074955,"1,609.30",Carlene House,SOCIAL SERVICES RESIDENTIAL,Peoples Services,Supported Living,A56088
London Borough of Sutton,01/10/2021,50074984,558.25,Carlene House,SOCIAL SERVICES RESIDENTIAL,Peoples Services,Supported Living,A56088
London Borough of Sutton,01/10/2021,50075132,"4,276.55",Carlene House,SOCIAL SERVICES RESIDENTIAL,Peoples Services,Supported Living,A56088
London Borough of Sutton,01/10/2021,50075136,"1,524.60",Carlene House,SOCIAL SERVICES RESIDENTIAL,Peoples Services,Supported Living,A56088
London Borough of Sutton,03/10/2021,50075140,"3,239.80",Carlene House,SOCIAL SERVICES RESIDENTIAL,Peoples Services,Supported Living,A56088
London Borough of Sutton,01/10/2021,50075141,"3,339.50",Carlene House,SOCIAL SERVICES RESIDENTIAL,Peoples Services,Supported Living,A56088
London Borough of Sutton,10/11/2021,50077897,"3,218.60",Carlene House,SOCIAL SERVICES RESIDENTIAL,Peoples Services,Supported Living,A56088
London Borough of Sutton,10/11/2021,50077904,829.4,Carlene House,SOCIAL SERVICES RESIDENTIAL,Peoples Services,Supported Living,A56088
London Borough of Sutton,10/11/2021,50077905,"1,287.44",Carlene House,SOCIAL SERVICES RESIDENTIAL,Peoples Services,Supported Living,A56088
London Borough of Sutton,10/11/2021,50077913,"1,020.80",Carlene House,SOCIAL SERVICES RESIDENTIAL,Peoples Services,Supported Living,A56088
London Borough of Sutton,10/11/2021,50078026,"2,591.84",Carlene House,SOCIAL SERVICES RESIDENTIAL,Peoples Services,Supported Living,A56088
London Borough of Sutton,10/11/2021,50078027,"2,671.60",Carlene House,SOCIAL SERVICES RESIDENTIAL,Peoples Services,Supported Living,A56088
London Borough of Sutton,10/11/2021,50078030,"3,421.24",Carlene House,SOCIAL SERVICES RESIDENTIAL,Peoples Services,Supported Living,A56088
London Borough of Sutton,10/11/2021,50078031,"1,219.68",Carlene House,SOCIAL SERVICES RESIDENTIAL,Peoples Services,Supported Living,A56088
London Borough of Sutton,26/11/2021,50082292,"5,478.12",Carlene House,SOCIAL SERVICES RESIDENTIAL,Peoples Services,Residential Care - Ext Provider,A56114
London Borough of Sutton,26/11/2021,50082353,"5,478.12",Carlene House,SOCIAL SERVICES RESIDENTIAL,Peoples Services,Residential Care - Ext Provider,A56114
London Borough of Sutton,26/11/2021,50082449,"5,478.12",Carlene House,SOCIAL SERVICES RESIDENTIAL,Peoples Services,Residential Care - Ext Provider,A56114
London Borough of Sutton,26/11/2021,50082544,"5,478.12",Carlene House,SOCIAL SERVICES RESIDENTIAL,Peoples Services,Residential Care - Ext Provider,A56114
London Borough of Sutton,26/11/2021,50082545,"5,478.12",Carlene House,SOCIAL SERVICES RESIDENTIAL,Peoples Services,Residential Care - Ext Provider,A56114
London Borough of Sutton,26/11/2021,50082546,"5,478.12",Carlene House,SOCIAL SERVICES RESIDENTIAL,Peoples Services,Residential Care - Ext Provider,A56114
London Borough of Sutton,26/11/2021,50082547,"5,478.12",Carlene House,SOCIAL SERVICES RESIDENTIAL,Peoples Services,Residential Care - Ext Provider,A56114
London Borough of Sutton,31/03/2021,20013279,"1,300.00",Caroline Black Ltd,LEGAL & PROFESSIONAL SERVICES,Resources,Publicity,A44266
London Borough of Sutton,09/11/2021,50074151,621.6,REDACTED - PERSONAL DATA,GRANTS & EX GRATIA PAYMENTS,Peoples Services,Place Funding,A56110
London Borough of Sutton,09/11/2021,50074216,819,REDACTED - PERSONAL DATA,GRANTS & EX GRATIA PAYMENTS,Peoples Services,Place Funding,A56110
London Borough of Sutton,09/11/2021,50073783,"5,100.00",Carshalton Boys Sports College (Academy),GRANTS & EX GRATIA PAYMENTS,Resources,"Grants, Contributions & Donations",A47005
London Borough of Sutton,31/10/2021,20012774,"1,489.55",Caysh Housing Project,SOCIAL SERVICES RESIDENTIAL,Peoples Services,Approved Lodgings,A61000
London Borough of Sutton,31/10/2021,20012775,760.92,Caysh Housing Project,SOCIAL SERVICES RESIDENTIAL,Peoples Services,Approved Lodgings,A61000
London Borough of Sutton,31/10/2021,20012776,672.56,Caysh Housing Project,SOCIAL SERVICES RESIDENTIAL,Peoples Services,Approved Lodgings,A61000
London Borough of Sutton,31/10/2021,20012777,"1,306.34",Caysh Housing Project,SOCIAL SERVICES RESIDENTIAL,Peoples Services,Approved Lodgings,A61000
London Borough of Sutton,31/10/2021,20012778,"1,407.71",Caysh Housing Project,SOCIAL SERVICES RESIDENTIAL,Peoples Services,Approved Lodgings,A61000
London Borough of Sutton,31/10/2021,20012779,"2,391.20",Caysh Housing Project,SOCIAL SERVICES RESIDENTIAL,Peoples Services,Approved Lodgings,A61000
London Borough of Sutton,31/08/2021,20013124,"3,648.19",Caysh Housing Project,SOCIAL SERVICES RESIDENTIAL,Peoples Services,Approved Lodgings,A61000
London Borough of Sutton,27/03/2019,20013125,"3,669.04",Caysh Housing Project,SOCIAL SERVICES RESIDENTIAL,Peoples Services,Approved Lodgings,A61000
London Borough of Sutton,03/01/2019,20013126,"3,179.84",Caysh Housing Project,SOCIAL SERVICES RESIDENTIAL,Peoples Services,Approved Lodgings,A61000
London Borough of Sutton,22/10/2021,20011865,500,Ccma,SUNDRY SUPPLIER - FINANCE,Resources,Subscriptions,A47010
London Borough of Sutton,01/10/2021,50074832,"5,804.44",Channels & Choices Theraputic Fostering Ltd,CHILDREN'S SERVICES - FOSTERING & ADOPTION SERVICES,Peoples Services,Foster Parents Support,A44110
London Borough of Sutton,29/10/2021,50072272,"3,586.28",Charlton Park Care Home,SOCIAL SERVICES RESIDENTIAL,Peoples Services,Nursing Care - Ext Provider,A56025
London Borough of Sutton,29/10/2021,50072272,-662.24,Charlton Park Care Home,SOCIAL SERVICES RESIDENTIAL,Peoples Services,Nursing Care - 3rd party top up payment,A56023
London Borough of Sutton,26/11/2021,50082238,"3,586.28",Charlton Park Care Home,SOCIAL SERVICES RESIDENTIAL,Peoples Services,Nursing Care - Ext Provider,A56025
London Borough of Sutton,26/11/2021,50082238,-662.24,Charlton Park Care Home,SOCIAL SERVICES RESIDENTIAL,Peoples Services,Nursing Care - 3rd party top up payment,A56023
London Borough of Sutton,09/11/2021,50074225,"4,542.72",Cheam Baptist Church Pre-School,GRANTS & EX GRATIA PAYMENTS,Peoples Services,Place Funding,A56110
London Borough of Sutton,09/11/2021,50073607,"28,392.00",Cheam Common Infants School -ACADEMY,GRANTS & EX GRATIA PAYMENTS,Peoples Services,Place Funding,A56110
London Borough of Sutton,09/11/2021,50073747,500.01,Cheam Common Junior Academy,GRANTS & EX GRATIA PAYMENTS,Peoples Services,Payments to Schools,A51013
London Borough of Sutton,09/11/2021,50073748,500.01,Cheam Common Junior Academy,GRANTS & EX GRATIA PAYMENTS,Peoples Services,Payments to Schools,A51013
London Borough of Sutton,08/11/2021,50076218,"1,706.67",Cheam Common Junior Academy,GRANTS & EX GRATIA PAYMENTS,Peoples Services,Top-up Funding,A51016
London Borough of Sutton,09/11/2021,50073675,"3,211.00",Cheam High School (Academy),GRANTS & EX GRATIA PAYMENTS,Peoples Services,Pupil Growth,A51014
London Borough of Sutton,09/11/2021,50073750,"2,400.00",Cheam High School (Academy),GRANTS & EX GRATIA PAYMENTS,Peoples Services,Pupil Growth,A51014
London Borough of Sutton,09/11/2021,50073771,"3,600.00",Cheam High School (Academy),GRANTS & EX GRATIA PAYMENTS,Resources,"Grants, Contributions & Donations",A47005
London Borough of Sutton,08/11/2021,50076226,"2,632.50",Cheam High School (Academy),GRANTS & EX GRATIA PAYMENTS,Peoples Services,Top-up Funding,A51016
London Borough of Sutton,09/11/2021,50073609,"12,612.60",Cheam Park Farm Primary School,GRANTS & EX GRATIA PAYMENTS,Peoples Services,Place Funding,A56110
London Borough of Sutton,29/10/2021,50072335,"3,612.00",Chegworth Nursing Home Bayswift Ltd,SOCIAL SERVICES RESIDENTIAL,Peoples Services,Nursing Care - Ext Provider,A56025
London Borough of Sutton,29/10/2021,50072335,-735.68,Chegworth Nursing Home Bayswift Ltd,SOCIAL SERVICES RESIDENTIAL,Peoples Services,Nursing Care - 3rd party top up payment,A56023
London Borough of Sutton,29/10/2021,50072389,"3,736.00",Chegworth Nursing Home Bayswift Ltd,SOCIAL SERVICES RESIDENTIAL,Peoples Services,Nursing Care - Ext Provider,A56025
London Borough of Sutton,29/10/2021,50072389,"-1,500.80",Chegworth Nursing Home Bayswift Ltd,SOCIAL SERVICES RESIDENTIAL,Peoples Services,Nursing Care - 3rd party top up payment,A56023
London Borough of Sutton,29/10/2021,50072390,-632.64,Chegworth Nursing Home Bayswift Ltd,SOCIAL SERVICES RESIDENTIAL,Peoples Services,Nursing Care - 3rd party top up payment,A56023
London Borough of Sutton,29/10/2021,50072390,"3,800.00",Chegworth Nursing Home Bayswift Ltd,SOCIAL SERVICES RESIDENTIAL,Peoples Services,Nursing Care - Ext Provider,A56025
London Borough of Sutton,29/10/2021,50072391,"4,026.72",Chegworth Nursing Home Bayswift Ltd,SOCIAL SERVICES RESIDENTIAL,Peoples Services,Nursing Care - Ext Provider,A56025
London Borough of Sutton,29/10/2021,50072391,-750.4,Chegworth Nursing Home Bayswift Ltd,SOCIAL SERVICES RESIDENTIAL,Peoples Services,Nursing Care - 3rd party top up payment,A56023
London Borough of Sutton,29/10/2021,50072440,"3,555.32",Chegworth Nursing Home Bayswift Ltd,SOCIAL SERVICES RESIDENTIAL,Peoples Services,Nursing Care - Ext Provider,A56025
London Borough of Sutton,29/10/2021,50072440,-632.64,Chegworth Nursing Home Bayswift Ltd,SOCIAL SERVICES RESIDENTIAL,Peoples Services,Nursing Care - 3rd party top up payment,A56023
London Borough of Sutton,29/10/2021,50072449,"2,800.00",Chegworth Nursing Home Bayswift Ltd,SOCIAL SERVICES RESIDENTIAL,Peoples Services,Nursing Care Short Term,A56026
London Borough of Sutton,29/10/2021,50072493,"3,555.32",Chegworth Nursing Home Bayswift Ltd,SOCIAL SERVICES RESIDENTIAL,Peoples Services,Nursing Care - Ext Provider,A56025
London Borough of Sutton,29/10/2021,50072493,-632.64,Chegworth Nursing Home Bayswift Ltd,SOCIAL SERVICES RESIDENTIAL,Peoples Services,Nursing Care - 3rd party top up payment,A56023
London Borough of Sutton,29/10/2021,50072569,-750.4,Chegworth Nursing Home Bayswift Ltd,SOCIAL SERVICES RESIDENTIAL,Peoples Services,Nursing Care - 3rd party top up payment,A56023
London Borough of Sutton,29/10/2021,50072569,"4,000.00",Chegworth Nursing Home Bayswift Ltd,SOCIAL SERVICES RESIDENTIAL,Peoples Services,Nursing Care - Ext Provider,A56025
London Borough of Sutton,29/10/2021,50072585,-735.68,Chegworth Nursing Home Bayswift Ltd,SOCIAL SERVICES RESIDENTIAL,Peoples Services,Nursing Care - 3rd party top up payment,A56023
London Borough of Sutton,29/10/2021,50072585,"3,612.00",Chegworth Nursing Home Bayswift Ltd,SOCIAL SERVICES RESIDENTIAL,Peoples Services,Nursing Care - Ext Provider,A56025
London Borough of Sutton,29/10/2021,50072618,"3,575.68",Chegworth Nursing Home Bayswift Ltd,SOCIAL SERVICES RESIDENTIAL,Peoples Services,Nursing Care - Ext Provider,A56025
London Borough of Sutton,29/10/2021,50072618,-735.68,Chegworth Nursing Home Bayswift Ltd,SOCIAL SERVICES RESIDENTIAL,Peoples Services,Nursing Care - 3rd party top up payment,A56023
London Borough of Sutton,29/10/2021,50072619,"5,172.49",Chegworth Nursing Home Bayswift Ltd,SOCIAL SERVICES RESIDENTIAL,Peoples Services,Nursing Care - Ext Provider,A56025
London Borough of Sutton,29/10/2021,50072619,"-1,045.20",Chegworth Nursing Home Bayswift Ltd,SOCIAL SERVICES RESIDENTIAL,Peoples Services,Nursing Care - 3rd party top up payment,A56023
London Borough of Sutton,29/10/2021,50072623,-662.24,Chegworth Nursing Home Bayswift Ltd,SOCIAL SERVICES RESIDENTIAL,Peoples Services,Nursing Care - 3rd party top up payment,A56023
London Borough of Sutton,29/10/2021,50072623,"4,800.00",Chegworth Nursing Home Bayswift Ltd,SOCIAL SERVICES RESIDENTIAL,Peoples Services,Nursing Care Short Term,A56026
London Borough of Sutton,29/10/2021,50072664,"13,470.67",Chegworth Nursing Home Bayswift Ltd,SOCIAL SERVICES RESIDENTIAL,Peoples Services,Nursing Care Short Term,A56026
London Borough of Sutton,29/10/2021,50072664,"-2,787.20",Chegworth Nursing Home Bayswift Ltd,SOCIAL SERVICES RESIDENTIAL,Peoples Services,Nursing Care - 3rd party top up payment,A56023
London Borough of Sutton,29/10/2021,50072687,"3,643.84",Chegworth Nursing Home Bayswift Ltd,SOCIAL SERVICES RESIDENTIAL,Peoples Services,Nursing Care - Ext Provider,A56025
London Borough of Sutton,29/10/2021,50072687,-735.68,Chegworth Nursing Home Bayswift Ltd,SOCIAL SERVICES RESIDENTIAL,Peoples Services,Nursing Care - 3rd party top up payment,A56023
London Borough of Sutton,19/11/2021,50078908,"8,191.50",Chegworth Nursing Home Bayswift Ltd,SOCIAL SERVICES RESIDENTIAL,Peoples Services,Other Income - Outside Scope,A92127
London Borough of Sutton,19/11/2021,50078909,"5,836.39",Chegworth Nursing Home Bayswift Ltd,SOCIAL SERVICES RESIDENTIAL,Peoples Services,Contract Cleaning,A27010
London Borough of Sutton,19/11/2021,50078910,577.28,Chegworth Nursing Home Bayswift Ltd,SOCIAL SERVICES RESIDENTIAL,Peoples Services,Other Income - Outside Scope,A92127
London Borough of Sutton,26/11/2021,50082285,-735.68,Chegworth Nursing Home Bayswift Ltd,SOCIAL SERVICES RESIDENTIAL,Peoples Services,Nursing Care - 3rd party top up payment,A56023
London Borough of Sutton,26/11/2021,50082285,"3,612.00",Chegworth Nursing Home Bayswift Ltd,SOCIAL SERVICES RESIDENTIAL,Peoples Services,Nursing Care - Ext Provider,A56025
London Borough of Sutton,26/11/2021,50082286,-750.4,Chegworth Nursing Home Bayswift Ltd,SOCIAL SERVICES RESIDENTIAL,Peoples Services,Nursing Care - 3rd party top up payment,A56023
London Borough of Sutton,26/11/2021,50082286,"4,000.00",Chegworth Nursing Home Bayswift Ltd,SOCIAL SERVICES RESIDENTIAL,Peoples Services,Nursing Care - Ext Provider,A56025
London Borough of Sutton,26/11/2021,50082333,"3,736.00",Chegworth Nursing Home Bayswift Ltd,SOCIAL SERVICES RESIDENTIAL,Peoples Services,Nursing Care - Ext Provider,A56025
London Borough of Sutton,26/11/2021,50082333,-750.4,Chegworth Nursing Home Bayswift Ltd,SOCIAL SERVICES RESIDENTIAL,Peoples Services,Nursing Care - 3rd party top up payment,A56023
London Borough of Sutton,26/11/2021,50082334,-662.24,Chegworth Nursing Home Bayswift Ltd,SOCIAL SERVICES RESIDENTIAL,Peoples Services,Nursing Care - 3rd party top up payment,A56023
London Borough of Sutton,26/11/2021,50082334,"4,800.00",Chegworth Nursing Home Bayswift Ltd,SOCIAL SERVICES RESIDENTIAL,Peoples Services,Nursing Care Short Term,A56026
London Borough of Sutton,26/11/2021,50082335,"3,575.68",Chegworth Nursing Home Bayswift Ltd,SOCIAL SERVICES RESIDENTIAL,Peoples Services,Nursing Care - Ext Provider,A56025
London Borough of Sutton,26/11/2021,50082335,-735.68,Chegworth Nursing Home Bayswift Ltd,SOCIAL SERVICES RESIDENTIAL,Peoples Services,Nursing Care - 3rd party top up payment,A56023
London Borough of Sutton,26/11/2021,50082387,"3,626.72",Chegworth Nursing Home Bayswift Ltd,SOCIAL SERVICES RESIDENTIAL,Peoples Services,Nursing Care Short Term,A56026
London Borough of Sutton,26/11/2021,50082387,-750.4,Chegworth Nursing Home Bayswift Ltd,SOCIAL SERVICES RESIDENTIAL,Peoples Services,Nursing Care - 3rd party top up payment,A56023
London Borough of Sutton,26/11/2021,50082388,"3,643.84",Chegworth Nursing Home Bayswift Ltd,SOCIAL SERVICES RESIDENTIAL,Peoples Services,Nursing Care - Ext Provider,A56025
London Borough of Sutton,26/11/2021,50082388,-735.68,Chegworth Nursing Home Bayswift Ltd,SOCIAL SERVICES RESIDENTIAL,Peoples Services,Nursing Care - 3rd party top up payment,A56023
London Borough of Sutton,26/11/2021,50082433,"3,555.32",Chegworth Nursing Home Bayswift Ltd,SOCIAL SERVICES RESIDENTIAL,Peoples Services,Nursing Care - Ext Provider,A56025
London Borough of Sutton,26/11/2021,50082433,-632.64,Chegworth Nursing Home Bayswift Ltd,SOCIAL SERVICES RESIDENTIAL,Peoples Services,Nursing Care - 3rd party top up payment,A56023
London Borough of Sutton,26/11/2021,50082434,"2,800.00",Chegworth Nursing Home Bayswift Ltd,SOCIAL SERVICES RESIDENTIAL,Peoples Services,Nursing Care Short Term,A56026
London Borough of Sutton,26/11/2021,50082435,"7,205.14",Chegworth Nursing Home Bayswift Ltd,SOCIAL SERVICES RESIDENTIAL,Peoples Services,Respite Care,A56116
London Borough of Sutton,26/11/2021,50082435,"-1,447.20",Chegworth Nursing Home Bayswift Ltd,SOCIAL SERVICES RESIDENTIAL,Peoples Services,Nursing Care - 3rd party top up payment,A56023
London Borough of Sutton,26/11/2021,50082483,"3,555.32",Chegworth Nursing Home Bayswift Ltd,SOCIAL SERVICES RESIDENTIAL,Peoples Services,Nursing Care - Ext Provider,A56025
London Borough of Sutton,26/11/2021,50082483,-632.64,Chegworth Nursing Home Bayswift Ltd,SOCIAL SERVICES RESIDENTIAL,Peoples Services,Nursing Care - 3rd party top up payment,A56023
London Borough of Sutton,26/11/2021,50082499,"3,612.00",Chegworth Nursing Home Bayswift Ltd,SOCIAL SERVICES RESIDENTIAL,Peoples Services,Nursing Care - Ext Provider,A56025
London Borough of Sutton,26/11/2021,50082499,-735.68,Chegworth Nursing Home Bayswift Ltd,SOCIAL SERVICES RESIDENTIAL,Peoples Services,Nursing Care - 3rd party top up payment,A56023
London Borough of Sutton,26/11/2021,50082608,-632.64,Chegworth Nursing Home Bayswift Ltd,SOCIAL SERVICES RESIDENTIAL,Peoples Services,Nursing Care - 3rd party top up payment,A56023
London Borough of Sutton,26/11/2021,50082608,"3,800.00",Chegworth Nursing Home Bayswift Ltd,SOCIAL SERVICES RESIDENTIAL,Peoples Services,Nursing Care - Ext Provider,A56025
London Borough of Sutton,26/11/2021,50082609,"4,026.72",Chegworth Nursing Home Bayswift Ltd,SOCIAL SERVICES RESIDENTIAL,Peoples Services,Nursing Care - Ext Provider,A56025
London Borough of Sutton,26/11/2021,50082609,-750.4,Chegworth Nursing Home Bayswift Ltd,SOCIAL SERVICES RESIDENTIAL,Peoples Services,Nursing Care - 3rd party top up payment,A56023
London Borough of Sutton,26/11/2021,50082610,"3,736.00",Chegworth Nursing Home Bayswift Ltd,SOCIAL SERVICES RESIDENTIAL,Peoples Services,Nursing Care - Ext Provider,A56025
London Borough of Sutton,26/11/2021,50082610,"-1,500.80",Chegworth Nursing Home Bayswift Ltd,SOCIAL SERVICES RESIDENTIAL,Peoples Services,Nursing Care - 3rd party top up payment,A56023
London Borough of Sutton,31/10/2021,20012153,"6,028.78",Chelsea and Westminster NHS ft,SOCIAL SERVICES - OTHER,Health and Wellbeing,Provider Contract Payments,A44290
London Borough of Sutton,29/10/2021,50072571,"2,790.40",Cherry Lodge,SOCIAL SERVICES RESIDENTIAL,Peoples Services,Residential Care - Ext Provider,A56114
London Borough of Sutton,29/10/2021,50072571,-462.28,Cherry Lodge,SOCIAL SERVICES RESIDENTIAL,Peoples Services,Residential Care - Client Cont ( Net Paymt ),A56113
London Borough of Sutton,29/10/2021,50072646,"3,360.00",Cherry Lodge,SOCIAL SERVICES RESIDENTIAL,Peoples Services,Residential Care - Ext Provider,A56114
London Borough of Sutton,26/11/2021,50082305,"2,790.40",Cherry Lodge,SOCIAL SERVICES RESIDENTIAL,Peoples Services,Residential Care - Ext Provider,A56114
London Borough of Sutton,26/11/2021,50082305,-462.28,Cherry Lodge,SOCIAL SERVICES RESIDENTIAL,Peoples Services,Residential Care - Client Cont ( Net Paymt ),A56113
London Borough of Sutton,26/11/2021,50082365,"3,360.00",Cherry Lodge,SOCIAL SERVICES RESIDENTIAL,Peoples Services,Residential Care - Ext Provider,A56114
London Borough of Sutton,29/10/2021,50072456,-735.68,CHHG Ltd,SOCIAL SERVICES RESIDENTIAL,Peoples Services,Nursing Care - 3rd party top up payment,A56023
London Borough of Sutton,29/10/2021,50072456,"3,812.00",CHHG Ltd,SOCIAL SERVICES RESIDENTIAL,Peoples Services,Nursing Care - Ext Provider,A56025
London Borough of Sutton,29/10/2021,50072516,"4,800.00",CHHG Ltd,SOCIAL SERVICES RESIDENTIAL,Peoples Services,Nursing Care - Ext Provider,A56025
London Borough of Sutton,29/10/2021,50072516,-632.64,CHHG Ltd,SOCIAL SERVICES RESIDENTIAL,Peoples Services,Nursing Care - 3rd party top up payment,A56023
London Borough of Sutton,29/10/2021,50072591,"3,676.72",CHHG Ltd,SOCIAL SERVICES RESIDENTIAL,Peoples Services,Residential Care - Ext Provider,A56114
London Borough of Sutton,19/11/2021,50078899,"10,287.00",CHHG Ltd,SOCIAL SERVICES RESIDENTIAL,Peoples Services,Other Income - Outside Scope,A92127
London Borough of Sutton,19/11/2021,50078900,"7,329.42",CHHG Ltd,SOCIAL SERVICES RESIDENTIAL,Peoples Services,Contract Cleaning,A27010
London Borough of Sutton,19/11/2021,50078901,724.95,CHHG Ltd,SOCIAL SERVICES RESIDENTIAL,Peoples Services,Other Income - Outside Scope,A92127
London Borough of Sutton,26/11/2021,50082469,-735.68,CHHG Ltd,SOCIAL SERVICES RESIDENTIAL,Peoples Services,Nursing Care - 3rd party top up payment,A56023
London Borough of Sutton,26/11/2021,50082469,"3,812.00",CHHG Ltd,SOCIAL SERVICES RESIDENTIAL,Peoples Services,Nursing Care - Ext Provider,A56025
London Borough of Sutton,26/11/2021,50082566,"4,800.00",CHHG Ltd,SOCIAL SERVICES RESIDENTIAL,Peoples Services,Nursing Care - Ext Provider,A56025
London Borough of Sutton,26/11/2021,50082566,-632.64,CHHG Ltd,SOCIAL SERVICES RESIDENTIAL,Peoples Services,Nursing Care - 3rd party top up payment,A56023
London Borough of Sutton,04/11/2021,50074864,906.97,Children of Colour,CHILDREN'S SERVICES - FOSTERING & ADOPTION SERVICES,Peoples Services,Foster Parents Support,A44110
London Borough of Sutton,01/10/2021,50074900,"3,427.71",Children of Colour,CHILDREN'S SERVICES - FOSTERING & ADOPTION SERVICES,Peoples Services,Foster Parents Support,A44110
London Borough of Sutton,01/10/2021,50074927,"3,340.91",Children of Colour,CHILDREN'S SERVICES - FOSTERING & ADOPTION SERVICES,Peoples Services,Foster Parents Support,A44110
London Borough of Sutton,07/10/2021,50074802,"16,272.52",Children's Trust,CHILDREN'S SERVICES - DAY CARE,Peoples Services,Residential Care-Children,A56115
London Borough of Sutton,09/11/2021,50074226,"1,911.00",Chiltern Day Nursery,GRANTS & EX GRATIA PAYMENTS,Peoples Services,Place Funding,A56110
London Borough of Sutton,29/10/2021,50072416,"7,511.00",Choice Care Group (Surrey) Ltd,SOCIAL SERVICES RESIDENTIAL,Peoples Services,Residential Care - Ext Provider,A56114
London Borough of Sutton,29/10/2021,50072416,-356.8,Choice Care Group (Surrey) Ltd,SOCIAL SERVICES RESIDENTIAL,Peoples Services,Residential Care - Client Cont ( Net Paymt ),A56113
London Borough of Sutton,29/10/2021,50072432,"7,526.32",Choice Care Group (Surrey) Ltd,SOCIAL SERVICES RESIDENTIAL,Peoples Services,Residential Care - Ext Provider,A56114
London Borough of Sutton,29/10/2021,50072507,"7,240.00",Choice Care Group (Surrey) Ltd,SOCIAL SERVICES RESIDENTIAL,Peoples Services,Residential Care - Ext Provider,A56114
London Borough of Sutton,29/10/2021,50072564,"8,368.28",Choice Care Group (Surrey) Ltd,SOCIAL SERVICES RESIDENTIAL,Peoples Services,Residential Care - Ext Provider,A56114
London Borough of Sutton,26/11/2021,50082308,"8,368.28",Choice Care Group (Surrey) Ltd,SOCIAL SERVICES RESIDENTIAL,Peoples Services,Residential Care - Ext Provider,A56114
London Borough of Sutton,26/11/2021,50082458,"7,526.32",Choice Care Group (Surrey) Ltd,SOCIAL SERVICES RESIDENTIAL,Peoples Services,Residential Care - Ext Provider,A56114
London Borough of Sutton,26/11/2021,50082459,"7,511.00",Choice Care Group (Surrey) Ltd,SOCIAL SERVICES RESIDENTIAL,Peoples Services,Residential Care - Ext Provider,A56114
London Borough of Sutton,26/11/2021,50082459,-356.8,Choice Care Group (Surrey) Ltd,SOCIAL SERVICES RESIDENTIAL,Peoples Services,Residential Care - Client Cont ( Net Paymt ),A56113
London Borough of Sutton,26/11/2021,50082637,"7,240.00",Choice Care Group (Surrey) Ltd,SOCIAL SERVICES RESIDENTIAL,Peoples Services,Residential Care - Ext Provider,A56114
London Borough of Sutton,30/07/2021,20009688,"1,980.52",Choice Support,GRANTS & EX GRATIA PAYMENTS,Peoples Services,Provider Contract Payments,A44290
London Borough of Sutton,30/07/2021,20009689,"2,262.44",Choice Support,GRANTS & EX GRATIA PAYMENTS,Peoples Services,Provider Contract Payments,A44290
London Borough of Sutton,30/07/2021,20009690,"1,980.52",Choice Support,GRANTS & EX GRATIA PAYMENTS,Peoples Services,Provider Contract Payments,A44290
London Borough of Sutton,30/07/2021,20009691,"1,980.52",Choice Support,GRANTS & EX GRATIA PAYMENTS,Peoples Services,Provider Contract Payments,A44290
London Borough of Sutton,30/07/2021,20009692,"1,980.52",Choice Support,GRANTS & EX GRATIA PAYMENTS,Peoples Services,Provider Contract Payments,A44290
London Borough of Sutton,28/10/2021,20012074,"36,250.02",Choice Support,GRANTS & EX GRATIA PAYMENTS,Peoples Services,Imagine Sutton Mainstream,A56101
London Borough of Sutton,29/10/2021,50072255,"5,509.00",Choice Support,GRANTS & EX GRATIA PAYMENTS,Peoples Services,Residential Care - Ext Provider,A56114
London Borough of Sutton,30/09/2021,50078418,"2,922.33",Choice Support,GRANTS & EX GRATIA PAYMENTS,Peoples Services,Supported Living,A56088
London Borough of Sutton,30/09/2021,50078418,228.05,Choice Support,GRANTS & EX GRATIA PAYMENTS,Peoples Services,Supported Living,A56088
London Borough of Sutton,30/09/2021,50078418,613.37,Choice Support,GRANTS & EX GRATIA PAYMENTS,Peoples Services,Supported Living,A56088
London Borough of Sutton,30/09/2021,50078418,"3,337.25",Choice Support,GRANTS & EX GRATIA PAYMENTS,Peoples Services,Supported Living,A56088
London Borough of Sutton,15/10/2021,50078420,"5,621.72",Choice Support,GRANTS & EX GRATIA PAYMENTS,Peoples Services,Supported Living,A56088
London Borough of Sutton,15/10/2021,50078420,887.35,Choice Support,GRANTS & EX GRATIA PAYMENTS,Peoples Services,Supported Living,A56088
London Borough of Sutton,30/09/2021,50078421,"2,177.53",Choice Support,GRANTS & EX GRATIA PAYMENTS,Peoples Services,Supported Living,A56088
London Borough of Sutton,30/09/2021,50078421,"1,404.85",Choice Support,GRANTS & EX GRATIA PAYMENTS,Peoples Services,Supported Living,A56088
London Borough of Sutton,30/09/2021,50078421,228.05,Choice Support,GRANTS & EX GRATIA PAYMENTS,Peoples Services,Supported Living,A56088
London Borough of Sutton,30/09/2021,50078421,613.37,Choice Support,GRANTS & EX GRATIA PAYMENTS,Peoples Services,Supported Living,A56088
London Borough of Sutton,15/10/2021,50078422,"3,448.48",Choice Support,GRANTS & EX GRATIA PAYMENTS,Peoples Services,Supported Living,A56088
London Borough of Sutton,15/10/2021,50078422,"3,019.56",Choice Support,GRANTS & EX GRATIA PAYMENTS,Peoples Services,Supported Living,A56088
London Borough of Sutton,15/10/2021,50078422,235.64,Choice Support,GRANTS & EX GRATIA PAYMENTS,Peoples Services,Supported Living,A56088
London Borough of Sutton,15/10/2021,50078422,633.82,Choice Support,GRANTS & EX GRATIA PAYMENTS,Peoples Services,Supported Living,A56088
London Borough of Sutton,15/10/2021,50078423,"6,637.90",Choice Support,GRANTS & EX GRATIA PAYMENTS,Peoples Services,Supported Living,A56088
London Borough of Sutton,15/10/2021,50078423,887.35,Choice Support,GRANTS & EX GRATIA PAYMENTS,Peoples Services,Supported Living,A56088
London Borough of Sutton,15/10/2021,50078424,"5,600.02",Choice Support,GRANTS & EX GRATIA PAYMENTS,Peoples Services,Supported Living,A56088
London Borough of Sutton,15/10/2021,50078424,887.35,Choice Support,GRANTS & EX GRATIA PAYMENTS,Peoples Services,Supported Living,A56088
London Borough of Sutton,15/10/2021,50078425,"2,622.85",Choice Support,GRANTS & EX GRATIA PAYMENTS,Peoples Services,Supported Living,A56088
London Borough of Sutton,15/10/2021,50078425,"1,510.33",Choice Support,GRANTS & EX GRATIA PAYMENTS,Peoples Services,Supported Living,A56088
London Borough of Sutton,15/10/2021,50078425,228.05,Choice Support,GRANTS & EX GRATIA PAYMENTS,Peoples Services,Supported Living,A56088
London Borough of Sutton,15/10/2021,50078425,613.37,Choice Support,GRANTS & EX GRATIA PAYMENTS,Peoples Services,Supported Living,A56088
London Borough of Sutton,15/10/2021,50078426,"2,710.29",Choice Support,GRANTS & EX GRATIA PAYMENTS,Peoples Services,Supported Living,A56088
London Borough of Sutton,15/10/2021,50078426,"1,560.67",Choice Support,GRANTS & EX GRATIA PAYMENTS,Peoples Services,Supported Living,A56088
London Borough of Sutton,15/10/2021,50078426,235.64,Choice Support,GRANTS & EX GRATIA PAYMENTS,Peoples Services,Supported Living,A56088
London Borough of Sutton,15/10/2021,50078426,633.82,Choice Support,GRANTS & EX GRATIA PAYMENTS,Peoples Services,Supported Living,A56088
London Borough of Sutton,30/09/2021,50078430,"1,580.48",Choice Support,GRANTS & EX GRATIA PAYMENTS,Peoples Services,Supported Living,A56088
London Borough of Sutton,30/09/2021,50078430,"1,650.90",Choice Support,GRANTS & EX GRATIA PAYMENTS,Peoples Services,Supported Living,A56088
London Borough of Sutton,30/09/2021,50078430,228.05,Choice Support,GRANTS & EX GRATIA PAYMENTS,Peoples Services,Supported Living,A56088
London Borough of Sutton,30/09/2021,50078430,613.37,Choice Support,GRANTS & EX GRATIA PAYMENTS,Peoples Services,Supported Living,A56088
London Borough of Sutton,15/10/2021,50078431,"4,801.46",Choice Support,GRANTS & EX GRATIA PAYMENTS,Peoples Services,Supported Living,A56088
London Borough of Sutton,15/10/2021,50078431,887.35,Choice Support,GRANTS & EX GRATIA PAYMENTS,Peoples Services,Supported Living,A56088
London Borough of Sutton,30/09/2021,50078433,"2,622.85",Choice Support,GRANTS & EX GRATIA PAYMENTS,Peoples Services,Supported Living,A56088
London Borough of Sutton,30/09/2021,50078433,"1,510.33",Choice Support,GRANTS & EX GRATIA PAYMENTS,Peoples Services,Supported Living,A56088
London Borough of Sutton,30/09/2021,50078433,228.05,Choice Support,GRANTS & EX GRATIA PAYMENTS,Peoples Services,Supported Living,A56088
London Borough of Sutton,30/09/2021,50078433,613.37,Choice Support,GRANTS & EX GRATIA PAYMENTS,Peoples Services,Supported Living,A56088
London Borough of Sutton,30/09/2021,50078434,"5,419.37",Choice Support,GRANTS & EX GRATIA PAYMENTS,Peoples Services,Supported Living,A56088
London Borough of Sutton,30/09/2021,50078434,858.73,Choice Support,GRANTS & EX GRATIA PAYMENTS,Peoples Services,Supported Living,A56088
London Borough of Sutton,30/09/2021,50078435,"5,900.48",Choice Support,GRANTS & EX GRATIA PAYMENTS,Peoples Services,Supported Living,A56088
London Borough of Sutton,30/09/2021,50078435,228.05,Choice Support,GRANTS & EX GRATIA PAYMENTS,Peoples Services,Supported Living,A56088
London Borough of Sutton,30/09/2021,50078435,613.37,Choice Support,GRANTS & EX GRATIA PAYMENTS,Peoples Services,Supported Living,A56088
London Borough of Sutton,30/09/2021,50078436,"5,440.37",Choice Support,GRANTS & EX GRATIA PAYMENTS,Peoples Services,Supported Living,A56088
London Borough of Sutton,30/09/2021,50078436,858.73,Choice Support,GRANTS & EX GRATIA PAYMENTS,Peoples Services,Supported Living,A56088
London Borough of Sutton,15/10/2021,50078437,"2,250.11",Choice Support,GRANTS & EX GRATIA PAYMENTS,Peoples Services,Supported Living,A56088
London Borough of Sutton,15/10/2021,50078437,"1,451.69",Choice Support,GRANTS & EX GRATIA PAYMENTS,Peoples Services,Supported Living,A56088
London Borough of Sutton,15/10/2021,50078437,235.64,Choice Support,GRANTS & EX GRATIA PAYMENTS,Peoples Services,Supported Living,A56088
London Borough of Sutton,15/10/2021,50078437,633.82,Choice Support,GRANTS & EX GRATIA PAYMENTS,Peoples Services,Supported Living,A56088
London Borough of Sutton,15/10/2021,50078438,"1,633.17",Choice Support,GRANTS & EX GRATIA PAYMENTS,Peoples Services,Supported Living,A56088
London Borough of Sutton,15/10/2021,50078438,"1,705.93",Choice Support,GRANTS & EX GRATIA PAYMENTS,Peoples Services,Supported Living,A56088
London Borough of Sutton,15/10/2021,50078438,235.64,Choice Support,GRANTS & EX GRATIA PAYMENTS,Peoples Services,Supported Living,A56088
London Borough of Sutton,15/10/2021,50078438,633.82,Choice Support,GRANTS & EX GRATIA PAYMENTS,Peoples Services,Supported Living,A56088
London Borough of Sutton,30/09/2021,50078439,"6,423.77",Choice Support,GRANTS & EX GRATIA PAYMENTS,Peoples Services,Supported Living,A56088
London Borough of Sutton,30/09/2021,50078439,858.73,Choice Support,GRANTS & EX GRATIA PAYMENTS,Peoples Services,Supported Living,A56088
London Borough of Sutton,18/11/2021,50078740,"1,634.06",Choice Support,GRANTS & EX GRATIA PAYMENTS,Peoples Services,Supported Living,A56088
London Borough of Sutton,18/11/2021,50078740,"2,342.06",Choice Support,GRANTS & EX GRATIA PAYMENTS,Peoples Services,Supported Living,A56088
London Borough of Sutton,18/11/2021,50078743,"1,154.06",Choice Support,GRANTS & EX GRATIA PAYMENTS,Peoples Services,Supported Living,A56088
London Borough of Sutton,18/11/2021,50078743,"2,851.20",Choice Support,GRANTS & EX GRATIA PAYMENTS,Peoples Services,Supported Living,A56088
London Borough of Sutton,18/11/2021,50078744,"1,643.06",Choice Support,GRANTS & EX GRATIA PAYMENTS,Peoples Services,Supported Living,A56088
London Borough of Sutton,18/11/2021,50078744,"2,579.66",Choice Support,GRANTS & EX GRATIA PAYMENTS,Peoples Services,Supported Living,A56088
London Borough of Sutton,18/11/2021,50078745,"1,643.06",Choice Support,GRANTS & EX GRATIA PAYMENTS,Peoples Services,Supported Living,A56088
London Borough of Sutton,18/11/2021,50078745,"2,409.94",Choice Support,GRANTS & EX GRATIA PAYMENTS,Peoples Services,Supported Living,A56088
London Borough of Sutton,18/11/2021,50078746,"1,643.06",Choice Support,GRANTS & EX GRATIA PAYMENTS,Peoples Services,Supported Living,A56088
London Borough of Sutton,18/11/2021,50078746,"5,023.54",Choice Support,GRANTS & EX GRATIA PAYMENTS,Peoples Services,Supported Living,A56088
London Borough of Sutton,18/11/2021,50078747,556.33,Choice Support,GRANTS & EX GRATIA PAYMENTS,Peoples Services,Supported Living,A56088
London Borough of Sutton,18/11/2021,50078747,"3,556.54",Choice Support,GRANTS & EX GRATIA PAYMENTS,Peoples Services,Supported Living,A56088
London Borough of Sutton,18/11/2021,50078752,"1,643.06",Choice Support,GRANTS & EX GRATIA PAYMENTS,Peoples Services,Supported Living,A56088
London Borough of Sutton,18/11/2021,50078752,"2,409.94",Choice Support,GRANTS & EX GRATIA PAYMENTS,Peoples Services,Supported Living,A56088
London Borough of Sutton,18/11/2021,50078753,"1,643.06",Choice Support,GRANTS & EX GRATIA PAYMENTS,Peoples Services,Supported Living,A56088
London Borough of Sutton,18/11/2021,50078753,"2,647.54",Choice Support,GRANTS & EX GRATIA PAYMENTS,Peoples Services,Supported Living,A56088
London Borough of Sutton,18/11/2021,50078754,468.9,Choice Support,GRANTS & EX GRATIA PAYMENTS,Peoples Services,Supported Living,A56088
London Borough of Sutton,18/11/2021,50078754,124.24,Choice Support,GRANTS & EX GRATIA PAYMENTS,Peoples Services,Supported Living,A56088
London Borough of Sutton,18/11/2021,50078754,"1,598.70",Choice Support,GRANTS & EX GRATIA PAYMENTS,Peoples Services,Supported Living,A56088
London Borough of Sutton,18/11/2021,50078754,"2,274.17",Choice Support,GRANTS & EX GRATIA PAYMENTS,Peoples Services,Supported Living,A56088
London Borough of Sutton,18/11/2021,50078755,919.29,Choice Support,GRANTS & EX GRATIA PAYMENTS,Peoples Services,Supported Living,A56088
London Borough of Sutton,18/11/2021,50078755,"6,079.11",Choice Support,GRANTS & EX GRATIA PAYMENTS,Peoples Services,Supported Living,A56088
London Borough of Sutton,18/11/2021,50078756,468.9,Choice Support,GRANTS & EX GRATIA PAYMENTS,Peoples Services,Supported Living,A56088
London Borough of Sutton,18/11/2021,50078756,124.24,Choice Support,GRANTS & EX GRATIA PAYMENTS,Peoples Services,Supported Living,A56088
London Borough of Sutton,18/11/2021,50078756,"1,564.76",Choice Support,GRANTS & EX GRATIA PAYMENTS,Peoples Services,Supported Living,A56088
London Borough of Sutton,18/11/2021,50078756,"2,211.73",Choice Support,GRANTS & EX GRATIA PAYMENTS,Peoples Services,Supported Living,A56088
London Borough of Sutton,18/11/2021,50078757,431.74,Choice Support,GRANTS & EX GRATIA PAYMENTS,Peoples Services,Supported Living,A56088
London Borough of Sutton,18/11/2021,50078757,"5,543.57",Choice Support,GRANTS & EX GRATIA PAYMENTS,Peoples Services,Supported Living,A56088
London Borough of Sutton,18/11/2021,50078760,"1,634.06",Choice Support,GRANTS & EX GRATIA PAYMENTS,Peoples Services,Supported Living,A56088
London Borough of Sutton,18/11/2021,50078760,"3,937.37",Choice Support,GRANTS & EX GRATIA PAYMENTS,Peoples Services,Supported Living,A56088
London Borough of Sutton,18/11/2021,50078761,844.33,Choice Support,GRANTS & EX GRATIA PAYMENTS,Peoples Services,Supported Living,A56088
London Borough of Sutton,18/11/2021,50078761,"3,937.37",Choice Support,GRANTS & EX GRATIA PAYMENTS,Peoples Services,Supported Living,A56088
London Borough of Sutton,18/11/2021,50078762,"3,326.40",Choice Support,GRANTS & EX GRATIA PAYMENTS,Peoples Services,Supported Living,A56088
London Borough of Sutton,18/11/2021,50078764,"1,643.06",Choice Support,GRANTS & EX GRATIA PAYMENTS,Peoples Services,Supported Living,A56088
London Borough of Sutton,18/11/2021,50078764,"3,054.86",Choice Support,GRANTS & EX GRATIA PAYMENTS,Peoples Services,Supported Living,A56088
London Borough of Sutton,18/11/2021,50078765,"1,634.06",Choice Support,GRANTS & EX GRATIA PAYMENTS,Peoples Services,Supported Living,A56088
London Borough of Sutton,18/11/2021,50078765,"3,292.46",Choice Support,GRANTS & EX GRATIA PAYMENTS,Peoples Services,Supported Living,A56088
London Borough of Sutton,18/11/2021,50078773,"1,634.06",Choice Support,GRANTS & EX GRATIA PAYMENTS,Peoples Services,Supported Living,A56088
London Borough of Sutton,18/11/2021,50078773,"2,856.21",Choice Support,GRANTS & EX GRATIA PAYMENTS,Peoples Services,Supported Living,A56088
London Borough of Sutton,18/11/2021,50078774,468.9,Choice Support,GRANTS & EX GRATIA PAYMENTS,Peoples Services,Supported Living,A56088
London Borough of Sutton,18/11/2021,50078774,114.09,Choice Support,GRANTS & EX GRATIA PAYMENTS,Peoples Services,Supported Living,A56088
London Borough of Sutton,18/11/2021,50078774,"2,323.03",Choice Support,GRANTS & EX GRATIA PAYMENTS,Peoples Services,Supported Living,A56088
London Borough of Sutton,18/11/2021,50078774,"1,771.71",Choice Support,GRANTS & EX GRATIA PAYMENTS,Peoples Services,Supported Living,A56088
London Borough of Sutton,18/11/2021,50078775,844.33,Choice Support,GRANTS & EX GRATIA PAYMENTS,Peoples Services,Supported Living,A56088
London Borough of Sutton,18/11/2021,50078775,"1,384.89",Choice Support,GRANTS & EX GRATIA PAYMENTS,Peoples Services,Supported Living,A56088
London Borough of Sutton,18/11/2021,50078775,"2,701.84",Choice Support,GRANTS & EX GRATIA PAYMENTS,Peoples Services,Supported Living,A56088
London Borough of Sutton,18/11/2021,50078776,468.9,Choice Support,GRANTS & EX GRATIA PAYMENTS,Peoples Services,Supported Living,A56088
London Borough of Sutton,18/11/2021,50078776,114.09,Choice Support,GRANTS & EX GRATIA PAYMENTS,Peoples Services,Supported Living,A56088
London Borough of Sutton,18/11/2021,50078776,"1,820.74",Choice Support,GRANTS & EX GRATIA PAYMENTS,Peoples Services,Supported Living,A56088
London Borough of Sutton,18/11/2021,50078776,"2,044.29",Choice Support,GRANTS & EX GRATIA PAYMENTS,Peoples Services,Supported Living,A56088
London Borough of Sutton,18/11/2021,50078777,"1,643.06",Choice Support,GRANTS & EX GRATIA PAYMENTS,Peoples Services,Supported Living,A56088
London Borough of Sutton,18/11/2021,50078777,"2,579.66",Choice Support,GRANTS & EX GRATIA PAYMENTS,Peoples Services,Supported Living,A56088
London Borough of Sutton,18/11/2021,50078784,468.9,Choice Support,GRANTS & EX GRATIA PAYMENTS,Peoples Services,Supported Living,A56088
London Borough of Sutton,18/11/2021,50078784,124.24,Choice Support,GRANTS & EX GRATIA PAYMENTS,Peoples Services,Supported Living,A56088
London Borough of Sutton,18/11/2021,50078784,"1,573.59",Choice Support,GRANTS & EX GRATIA PAYMENTS,Peoples Services,Supported Living,A56088
London Borough of Sutton,18/11/2021,50078784,"2,240.23",Choice Support,GRANTS & EX GRATIA PAYMENTS,Peoples Services,Supported Living,A56088
London Borough of Sutton,18/11/2021,50078785,"1,643.06",Choice Support,GRANTS & EX GRATIA PAYMENTS,Peoples Services,Supported Living,A56088
London Borough of Sutton,18/11/2021,50078785,"3,054.86",Choice Support,GRANTS & EX GRATIA PAYMENTS,Peoples Services,Supported Living,A56088
London Borough of Sutton,18/11/2021,50078786,468.9,Choice Support,GRANTS & EX GRATIA PAYMENTS,Peoples Services,Supported Living,A56088
London Borough of Sutton,18/11/2021,50078786,124.24,Choice Support,GRANTS & EX GRATIA PAYMENTS,Peoples Services,Supported Living,A56088
London Borough of Sutton,18/11/2021,50078786,"1,547.79",Choice Support,GRANTS & EX GRATIA PAYMENTS,Peoples Services,Supported Living,A56088
London Borough of Sutton,18/11/2021,50078786,"2,002.63",Choice Support,GRANTS & EX GRATIA PAYMENTS,Peoples Services,Supported Living,A56088
London Borough of Sutton,26/11/2021,50082211,"5,509.00",Choice Support,GRANTS & EX GRATIA PAYMENTS,Peoples Services,Residential Care - Ext Provider,A56114
London Borough of Sutton,09/11/2021,50074157,"1,864.80",Christchurch Fledgelings Pre-School,GRANTS & EX GRATIA PAYMENTS,Peoples Services,Place Funding,A56110
London Borough of Sutton,09/11/2021,50074227,"4,914.00",Christchurch Fledgelings Pre-School,GRANTS & EX GRATIA PAYMENTS,Peoples Services,Place Funding,A56110
London Borough of Sutton,08/11/2021,20013140,997.1,Christopher Millar,GRANTS & EX GRATIA PAYMENTS,Environment Housing and Neighbourhoods,Temporary Protection - Homeless Persons,A62028
London Borough of Sutton,09/11/2021,50073603,"11,954.25",Barrow Hedges Primary School Academy,GRANTS & EX GRATIA PAYMENTS,Peoples Services,Place Funding,A56110
London Borough of Sutton,09/11/2021,50073785,795,Barrow Hedges Primary School Academy,GRANTS & EX GRATIA PAYMENTS,Resources,"Grants, Contributions & Donations",A47005
London Borough of Sutton,08/11/2021,50076214,"4,999.31",Barrow Hedges Primary School Academy,GRANTS & EX GRATIA PAYMENTS,Peoples Services,Top-up Funding,A51016
London Borough of Sutton,22/11/2021,50080493,"1,000.00",Barrow Hedges Primary School Academy,GRANTS & EX GRATIA PAYMENTS,Peoples Services,Top Up Additional Support,A60015
London Borough of Sutton,11/11/2021,20013475,710.6,City & Guilds,SUBSCRIPTIONS & PUBLICATIONS,Health and Wellbeing,Examination Fees,A44200
London Borough of Sutton,31/10/2021,20012396,"1,849.35",City Sprint UK (Excel) Ltd,DELIVERY AND COURIER SERVICES,Health and Wellbeing,Hire of Transport - Non Staff,A32000
London Borough of Sutton,01/11/2021,20012671,"13,543.00",Cityglen Ltd ,ACCOMMODATION BED & BREAKFAST,Environment Housing and Neighbourhoods,Bed & Breakfast,A56000
London Borough of Sutton,29/10/2021,20012946,"2,100.86",Civica UK Ltd,BUSINESS & COMPUTER SYSTEMS,Resources,IT Software Purchase,A45040
London Borough of Sutton,29/10/2021,20012946,"2,100.86",Civica UK Ltd,BUSINESS & COMPUTER SYSTEMS,Resources,IT Software Purchase,A45040
London Borough of Sutton,10/11/2021,20013854,"135,100.00",Civica UK Ltd,BUSINESS & COMPUTER SYSTEMS,Resources,IT Software Purchase,A45040
London Borough of Sutton,10/11/2021,20013854,"39,870.10",Civica UK Ltd,BUSINESS & COMPUTER SYSTEMS,Resources,IT Software Purchase,A45040
London Borough of Sutton,10/11/2021,20013854,"7,294.52",Civica UK Ltd,BUSINESS & COMPUTER SYSTEMS,Resources,IT Software Purchase,A45040
London Borough of Sutton,29/10/2021,50072355,"4,388.56",Claremont Care Svs Ltd,SOCIAL SERVICES RESIDENTIAL,Peoples Services,Nursing Care - Ext Provider,A56025
London Borough of Sutton,29/10/2021,50072388,-974,Claremont Care Svs Ltd,SOCIAL SERVICES RESIDENTIAL,Peoples Services,Nursing Care - 3rd party top up payment,A56023
London Borough of Sutton,29/10/2021,50072388,"4,374.00",Claremont Care Svs Ltd,SOCIAL SERVICES RESIDENTIAL,Peoples Services,Nursing Care - Ext Provider,A56025
London Borough of Sutton,29/10/2021,50072388,-632.64,Claremont Care Svs Ltd,SOCIAL SERVICES RESIDENTIAL,Peoples Services,Nursing Care - 3rd party top up payment,A56023
London Borough of Sutton,29/10/2021,50072530,-735.68,Claremont Care Svs Ltd,SOCIAL SERVICES RESIDENTIAL,Peoples Services,Nursing Care - 3rd party top up payment,A56023
London Borough of Sutton,29/10/2021,50072530,"5,200.00",Claremont Care Svs Ltd,SOCIAL SERVICES RESIDENTIAL,Peoples Services,Nursing Care - Ext Provider,A56025
London Borough of Sutton,29/10/2021,50072584,"3,515.04",Claremont Care Svs Ltd,SOCIAL SERVICES RESIDENTIAL,Peoples Services,Nursing Care - Ext Provider,A56025
London Borough of Sutton,29/10/2021,50072584,-632.64,Claremont Care Svs Ltd,SOCIAL SERVICES RESIDENTIAL,Peoples Services,Nursing Care - 3rd party top up payment,A56023
London Borough of Sutton,26/11/2021,50082273,-974,Claremont Care Svs Ltd,SOCIAL SERVICES RESIDENTIAL,Peoples Services,Nursing Care - 3rd party top up payment,A56023
London Borough of Sutton,26/11/2021,50082273,"4,374.00",Claremont Care Svs Ltd,SOCIAL SERVICES RESIDENTIAL,Peoples Services,Nursing Care - Ext Provider,A56025
London Borough of Sutton,26/11/2021,50082273,-632.64,Claremont Care Svs Ltd,SOCIAL SERVICES RESIDENTIAL,Peoples Services,Nursing Care - 3rd party top up payment,A56023
London Borough of Sutton,26/11/2021,50082315,"3,515.04",Claremont Care Svs Ltd,SOCIAL SERVICES RESIDENTIAL,Peoples Services,Nursing Care - Ext Provider,A56025
London Borough of Sutton,26/11/2021,50082315,-632.64,Claremont Care Svs Ltd,SOCIAL SERVICES RESIDENTIAL,Peoples Services,Nursing Care - 3rd party top up payment,A56023
London Borough of Sutton,26/11/2021,50082558,"4,388.56",Claremont Care Svs Ltd,SOCIAL SERVICES RESIDENTIAL,Peoples Services,Nursing Care - Ext Provider,A56025
London Borough of Sutton,26/11/2021,50082558,-53.6,Claremont Care Svs Ltd,SOCIAL SERVICES RESIDENTIAL,Peoples Services,Nursing Care - 3rd party top up payment,A56023
London Borough of Sutton,26/11/2021,50082640,-735.68,Claremont Care Svs Ltd,SOCIAL SERVICES RESIDENTIAL,Peoples Services,Nursing Care - 3rd party top up payment,A56023
London Borough of Sutton,26/11/2021,50082640,"5,200.00",Claremont Care Svs Ltd,SOCIAL SERVICES RESIDENTIAL,Peoples Services,Nursing Care - Ext Provider,A56025
London Borough of Sutton,29/10/2021,50072286,-735.68,Bondcare (London) Ltd,SOCIAL SERVICES RESIDENTIAL,Peoples Services,Nursing Care - 3rd party top up payment,A56023
London Borough of Sutton,29/10/2021,50072286,"3,612.00",Bondcare (London) Ltd,SOCIAL SERVICES RESIDENTIAL,Peoples Services,Nursing Care - Ext Provider,A56025
London Borough of Sutton,26/11/2021,50082203,-735.68,Bondcare (London) Ltd,SOCIAL SERVICES RESIDENTIAL,Peoples Services,Nursing Care - 3rd party top up payment,A56023
London Borough of Sutton,26/11/2021,50082203,"3,612.00",Bondcare (London) Ltd,SOCIAL SERVICES RESIDENTIAL,Peoples Services,Nursing Care - Ext Provider,A56025
London Borough of Sutton,11/11/2021,50077172,689.58,Clarion Housing Association Ltd,ACCOMMODATION BED & BREAKFAST,Peoples Services,Education Allowance,A60008
London Borough of Sutton,28/10/2021,50073516,750,Classroom Teachers Ltd,ACADEMIC INSTNS - OTHER,Peoples Services,Independent School Fees,A56002
London Borough of Sutton,20/09/2021,50075133,"6,333.60",Clear Thinking Care Limited,SOCIAL SERVICES RESIDENTIAL,Peoples Services,Supported Living,A56088
London Borough of Sutton,04/10/2021,50075134,"6,333.60",Clear Thinking Care Limited,SOCIAL SERVICES RESIDENTIAL,Peoples Services,Supported Living,A56088
London Borough of Sutton,18/10/2021,50075135,"6,333.60",Clear Thinking Care Limited,SOCIAL SERVICES RESIDENTIAL,Peoples Services,Supported Living,A56088
London Borough of Sutton,23/08/2021,50075137,"6,333.60",Clear Thinking Care Limited,SOCIAL SERVICES RESIDENTIAL,Peoples Services,Supported Living,A56088
London Borough of Sutton,30/08/2021,50075138,"6,333.60",Clear Thinking Care Limited,SOCIAL SERVICES RESIDENTIAL,Peoples Services,Supported Living,A56088
London Borough of Sutton,27/09/2021,50075139,"6,333.60",Clear Thinking Care Limited,SOCIAL SERVICES RESIDENTIAL,Peoples Services,Supported Living,A56088
London Borough of Sutton,11/10/2021,50075142,"6,333.60",Clear Thinking Care Limited,SOCIAL SERVICES RESIDENTIAL,Peoples Services,Supported Living,A56088
London Borough of Sutton,25/10/2021,50075143,"6,333.60",Clear Thinking Care Limited,SOCIAL SERVICES RESIDENTIAL,Peoples Services,Supported Living,A56088
London Borough of Sutton,06/09/2021,50075144,"6,333.60",Clear Thinking Care Limited,SOCIAL SERVICES RESIDENTIAL,Peoples Services,Supported Living,A56088
London Borough of Sutton,13/09/2021,50075145,"6,333.60",Clear Thinking Care Limited,SOCIAL SERVICES RESIDENTIAL,Peoples Services,Supported Living,A56088
London Borough of Sutton,11/11/2021,50078029,"6,333.60",Clear Thinking Care Limited,SOCIAL SERVICES RESIDENTIAL,Peoples Services,Supported Living,A56088
London Borough of Sutton,22/11/2021,50080409,"6,333.60",Clear Thinking Care Limited,SOCIAL SERVICES RESIDENTIAL,Peoples Services,Supported Living,A56088
London Borough of Sutton,25/11/2021,50082648,"6,333.60",Clear Thinking Care Limited,SOCIAL SERVICES RESIDENTIAL,Peoples Services,Supported Living,A56088
London Borough of Sutton,29/10/2021,50073367,504.65,Clovecare Ltd,SOCIAL SERVICES RESIDENTIAL,Peoples Services,Home Care Services,A56019
London Borough of Sutton,29/10/2021,50073396,634.36,Clovecare Ltd,SOCIAL SERVICES RESIDENTIAL,Peoples Services,Home Care Services,A56019
London Borough of Sutton,29/10/2021,50073397,795.32,Clovecare Ltd,SOCIAL SERVICES RESIDENTIAL,Peoples Services,Home Care Services,A56019
London Borough of Sutton,29/10/2021,50073397,36.65,Clovecare Ltd,SOCIAL SERVICES RESIDENTIAL,Peoples Services,Home Care Services,A56019
London Borough of Sutton,29/10/2021,50073398,636.4,Clovecare Ltd,SOCIAL SERVICES RESIDENTIAL,Peoples Services,Home Care Services,A56019
London Borough of Sutton,29/10/2021,50073399,656.53,Clovecare Ltd,SOCIAL SERVICES RESIDENTIAL,Peoples Services,Home Care Services,A56019
London Borough of Sutton,29/10/2021,50073402,852.98,Clovecare Ltd,SOCIAL SERVICES RESIDENTIAL,Peoples Services,Home Care Services,A56019
London Borough of Sutton,29/10/2021,50073402,39.31,Clovecare Ltd,SOCIAL SERVICES RESIDENTIAL,Peoples Services,Home Care Services,A56019
London Borough of Sutton,29/10/2021,50073420,626.25,Clovecare Ltd,SOCIAL SERVICES RESIDENTIAL,Peoples Services,Home Care Services,A56019
London Borough of Sutton,29/10/2021,50073421,822.25,Clovecare Ltd,SOCIAL SERVICES RESIDENTIAL,Peoples Services,Home Care Services,A56019
London Borough of Sutton,29/10/2021,50073424,812.05,Clovecare Ltd,SOCIAL SERVICES RESIDENTIAL,Peoples Services,Home Care Services,A56019
London Borough of Sutton,29/10/2021,50073424,37.5,Clovecare Ltd,SOCIAL SERVICES RESIDENTIAL,Peoples Services,Home Care Services,A56019
London Borough of Sutton,16/11/2021,50079724,540.5,Clovecare Ltd,SOCIAL SERVICES RESIDENTIAL,Peoples Services,Home Care Services,A56019
London Borough of Sutton,16/11/2021,50079724,37.5,Clovecare Ltd,SOCIAL SERVICES RESIDENTIAL,Peoples Services,Home Care Services,A56019
London Borough of Sutton,29/10/2021,50072629,"3,094.00",Cloyda Limited,SOCIAL SERVICES RESIDENTIAL,Peoples Services,Residential Care - Ext Provider,A56114
London Borough of Sutton,26/11/2021,50082324,"3,094.00",Cloyda Limited,SOCIAL SERVICES RESIDENTIAL,Peoples Services,Residential Care - Ext Provider,A56114
London Borough of Sutton,29/10/2021,50072322,"10,647.52",Cmg Homes Ltd,SOCIAL SERVICES RESIDENTIAL,Peoples Services,Residential Care - Ext Provider,A56114
London Borough of Sutton,29/10/2021,50072448,"7,036.00",Cmg Homes Ltd,SOCIAL SERVICES RESIDENTIAL,Peoples Services,Residential Care - Ext Provider,A56114
London Borough of Sutton,29/10/2021,50072448,-611,Cmg Homes Ltd,SOCIAL SERVICES RESIDENTIAL,Peoples Services,Residential Care - Client Cont ( Net Paymt ),A56113
London Borough of Sutton,29/10/2021,50072563,"5,416.92",Cmg Homes Ltd,SOCIAL SERVICES RESIDENTIAL,Peoples Services,Residential Care - Ext Provider,A56114
London Borough of Sutton,29/10/2021,50072563,-425.6,Cmg Homes Ltd,SOCIAL SERVICES RESIDENTIAL,Peoples Services,Residential Care - Client Cont ( Net Paymt ),A56113
London Borough of Sutton,18/11/2021,50078748,"3,060.00",Cmg Homes Ltd,SOCIAL SERVICES RESIDENTIAL,Peoples Services,Supported Living,A56088
London Borough of Sutton,18/11/2021,50078751,"3,544.29",Cmg Homes Ltd,SOCIAL SERVICES RESIDENTIAL,Peoples Services,Supported Living,A56088
London Borough of Sutton,18/11/2021,50078766,"4,444.29",Cmg Homes Ltd,SOCIAL SERVICES RESIDENTIAL,Peoples Services,Supported Living,A56088
London Borough of Sutton,18/11/2021,50078789,"3,353.79",Cmg Homes Ltd,SOCIAL SERVICES RESIDENTIAL,Peoples Services,Supported Living,A56088
London Borough of Sutton,19/11/2021,50078869,"2,095.50",Cmg Homes Ltd,SOCIAL SERVICES RESIDENTIAL,Peoples Services,Other Income - Outside Scope,A92127
London Borough of Sutton,19/11/2021,50078870,"1,493.03",Cmg Homes Ltd,SOCIAL SERVICES RESIDENTIAL,Peoples Services,Contract Cleaning,A27010
London Borough of Sutton,19/11/2021,50078872,"1,333.50",Cmg Homes Ltd,SOCIAL SERVICES RESIDENTIAL,Peoples Services,Other Income - Outside Scope,A92127
London Borough of Sutton,19/11/2021,50078873,950.11,Cmg Homes Ltd,SOCIAL SERVICES RESIDENTIAL,Peoples Services,Contract Cleaning,A27010
London Borough of Sutton,19/11/2021,50078875,"1,143.00",Cmg Homes Ltd,SOCIAL SERVICES RESIDENTIAL,Peoples Services,Other Income - Outside Scope,A92127
London Borough of Sutton,19/11/2021,50078876,814.38,Cmg Homes Ltd,SOCIAL SERVICES RESIDENTIAL,Peoples Services,Contract Cleaning,A27010
London Borough of Sutton,19/11/2021,50078878,952.5,Cmg Homes Ltd,SOCIAL SERVICES RESIDENTIAL,Peoples Services,Other Income - Outside Scope,A92127
London Borough of Sutton,19/11/2021,50078879,678.65,Cmg Homes Ltd,SOCIAL SERVICES RESIDENTIAL,Peoples Services,Contract Cleaning,A27010
London Borough of Sutton,19/11/2021,50078881,"1,333.50",Cmg Homes Ltd,SOCIAL SERVICES RESIDENTIAL,Peoples Services,Other Income - Outside Scope,A92127
London Borough of Sutton,19/11/2021,50078882,950.11,Cmg Homes Ltd,SOCIAL SERVICES RESIDENTIAL,Peoples Services,Contract Cleaning,A27010
London Borough of Sutton,26/11/2021,50082307,"5,416.92",Cmg Homes Ltd,SOCIAL SERVICES RESIDENTIAL,Peoples Services,Residential Care - Ext Provider,A56114
London Borough of Sutton,26/11/2021,50082307,-425.6,Cmg Homes Ltd,SOCIAL SERVICES RESIDENTIAL,Peoples Services,Residential Care - Client Cont ( Net Paymt ),A56113
London Borough of Sutton,26/11/2021,50082456,"7,036.00",Cmg Homes Ltd,SOCIAL SERVICES RESIDENTIAL,Peoples Services,Residential Care - Ext Provider,A56114
London Borough of Sutton,26/11/2021,50082456,-611,Cmg Homes Ltd,SOCIAL SERVICES RESIDENTIAL,Peoples Services,Residential Care - Client Cont ( Net Paymt ),A56113
London Borough of Sutton,26/11/2021,50082601,"10,647.52",Cmg Homes Ltd,SOCIAL SERVICES RESIDENTIAL,Peoples Services,Residential Care - Ext Provider,A56114
London Borough of Sutton,18/11/2021,50078496,910,CN Healthcare Ltd,SOCIAL SERVICES RESIDENTIAL,Peoples Services,Other Income - Outside Scope,A92127
London Borough of Sutton,18/11/2021,50078497,530,CN Healthcare Ltd,SOCIAL SERVICES RESIDENTIAL,Peoples Services,Contract Cleaning,A27010
London Borough of Sutton,29/10/2021,50072298,"4,080.72",Coast Care Homes Ltd,SOCIAL SERVICES RESIDENTIAL,Peoples Services,Residential Care - Ext Provider,A56114
London Borough of Sutton,26/11/2021,50082210,"4,080.72",Coast Care Homes Ltd,SOCIAL SERVICES RESIDENTIAL,Peoples Services,Residential Care - Ext Provider,A56114
London Borough of Sutton,29/10/2021,50072228,"5,045.80",Cognithan Ltd,SOCIAL SERVICES RESIDENTIAL,Peoples Services,Residential Care - Ext Provider,A56114
London Borough of Sutton,01/11/2021,50076041,"1,748.70",Cognithan Ltd,SOCIAL SERVICES RESIDENTIAL,Peoples Services,Supported Living,A56088
London Borough of Sutton,26/11/2021,50082208,"5,045.80",Cognithan Ltd,SOCIAL SERVICES RESIDENTIAL,Peoples Services,Residential Care - Ext Provider,A56114
London Borough of Sutton,01/11/2021,20012227,"267,791.67",Cognus Ltd,LEGAL & PROFESSIONAL SERVICES,Peoples Services,Special Educational Needs,A51015
London Borough of Sutton,01/11/2021,20012228,"207,361.31",Cognus Ltd,LEGAL & PROFESSIONAL SERVICES,Peoples Services,Consultancy Services,A56007
London Borough of Sutton,01/11/2021,20012228,"213,735.89",Cognus Ltd,LEGAL & PROFESSIONAL SERVICES,Peoples Services,Consultancy Services,A56007
London Borough of Sutton,09/11/2021,50074228,"11,174.63",Collingwood School Ltd,GRANTS & EX GRATIA PAYMENTS,Peoples Services,Place Funding,A56110
London Borough of Sutton,16/11/2021,20013200,"3,050.00",Community Action Sutton,GRANTS & EX GRATIA PAYMENTS,Health and Wellbeing,Registration & Licence Fees Payable,A44267
London Borough of Sutton,31/10/2021,50074820,"1,142.18",Compass Fostering London Ltd,CHILDREN'S SERVICES - FOSTERING & ADOPTION SERVICES,Peoples Services,Foster Parents Support,A44110
London Borough of Sutton,01/10/2021,50074867,"3,306.15",Compass Fostering London Ltd,CHILDREN'S SERVICES - FOSTERING & ADOPTION SERVICES,Peoples Services,Foster Parents Support,A44110
London Borough of Sutton,01/10/2021,50074902,"3,409.69",Compass Fostering London Ltd,CHILDREN'S SERVICES - FOSTERING & ADOPTION SERVICES,Peoples Services,Foster Parents Support,A44110
London Borough of Sutton,01/10/2021,50074903,"5,338.20",Compass Fostering London Ltd,CHILDREN'S SERVICES - FOSTERING & ADOPTION SERVICES,Peoples Services,Foster Parents Support,A44110
London Borough of Sutton,01/10/2021,50074904,"3,166.34",Compass Fostering London Ltd,CHILDREN'S SERVICES - FOSTERING & ADOPTION SERVICES,Peoples Services,Foster Parents Support,A44110
London Borough of Sutton,31/10/2021,50074924,"3,046.95",Compass Fostering London Ltd,CHILDREN'S SERVICES - FOSTERING & ADOPTION SERVICES,Peoples Services,Foster Parents Support,A44110
London Borough of Sutton,01/10/2021,50074928,"3,498.35",Compass Fostering London Ltd,CHILDREN'S SERVICES - FOSTERING & ADOPTION SERVICES,Peoples Services,Foster Parents Support,A44110
London Borough of Sutton,17/11/2021,50079341,"1,178.54",Compass Fostering London Ltd,CHILDREN'S SERVICES - FOSTERING & ADOPTION SERVICES,Peoples Services,Foster Parents Support,A44110
London Borough of Sutton,01/10/2021,50074868,"4,010.16",Compass Fostering South Ltd,CHILDREN'S SERVICES - FOSTERING & ADOPTION SERVICES,Peoples Services,Foster Parents Support,A44110
London Borough of Sutton,01/10/2021,50074869,"3,206.02",Compass Fostering South Ltd,CHILDREN'S SERVICES - FOSTERING & ADOPTION SERVICES,Peoples Services,Foster Parents Support,A44110
London Borough of Sutton,21/10/2021,20011873,"3,993.19",Compass Minerals,OFFICE SUPPLIES,Environment Housing and Neighbourhoods,Purchases and Repairs Fixtures & Fittings,A25005
London Borough of Sutton,26/10/2021,20011980,"6,839.59",Compass Minerals,OFFICE SUPPLIES,Environment Housing and Neighbourhoods,Purchases and Repairs Fixtures & Fittings,A25005
London Borough of Sutton,27/10/2021,20012135,"5,459.64",Compass Minerals,OFFICE SUPPLIES,Environment Housing and Neighbourhoods,Purchases and Repairs Fixtures & Fittings,A25005
London Borough of Sutton,28/10/2021,20012136,"2,707.14",Compass Minerals,OFFICE SUPPLIES,Environment Housing and Neighbourhoods,Purchases and Repairs Fixtures & Fittings,A25005
London Borough of Sutton,13/08/2021,20012299,"7,782.24",Complete Care Holdings Ltd,SOCIAL SERVICES DAY CARE,Peoples Services,Respite Care,A56116
London Borough of Sutton,25/10/2021,20011857,"1,200.00",Cooper Nutt Communications Ltd,LEGAL & PROFESSIONAL SERVICES,Development Growth and Regeneration,External Fees and Consultants,C20000
London Borough of Sutton,01/11/2021,20012229,"3,000.00",Cooper Nutt Communications Ltd,LEGAL & PROFESSIONAL SERVICES,Development Growth and Regeneration,External Fees and Consultants,C20000
London Borough of Sutton,09/11/2021,50074178,"1,864.80",Co-operative Childcare,GRANTS & EX GRATIA PAYMENTS,Peoples Services,Place Funding,A56110
London Borough of Sutton,09/11/2021,50074257,"15,561.00",Co-operative Childcare,GRANTS & EX GRATIA PAYMENTS,Peoples Services,Place Funding,A56110
London Borough of Sutton,24/09/2021,50074879,"18,112.72",Cornerways Childrens Services Ltd,CHILDREN'S SERVICES - FOSTERING & ADOPTION SERVICES,Peoples Services,Residential Care-Children,A56115
London Borough of Sutton,29/10/2021,50072307,"50,702.42",Country Court Care Homes 2 Ltd,SOCIAL SERVICES RESIDENTIAL,Peoples Services,Nursing Care - Ext Provider,A56025
London Borough of Sutton,29/10/2021,50072307,"-8,223.85",Country Court Care Homes 2 Ltd,SOCIAL SERVICES RESIDENTIAL,Peoples Services,Nursing Care - 3rd party top up payment,A56023
London Borough of Sutton,29/10/2021,50072648,"2,462.40",Country Court Care Homes 2 Ltd,SOCIAL SERVICES RESIDENTIAL,Peoples Services,Nursing Care - Ext Provider,A56025
London Borough of Sutton,29/10/2021,50072648,-482.4,Country Court Care Homes 2 Ltd,SOCIAL SERVICES RESIDENTIAL,Peoples Services,Nursing Care - 3rd party top up payment,A56023
London Borough of Sutton,29/10/2021,50072648,"2,072.41",Country Court Care Homes 2 Ltd,SOCIAL SERVICES RESIDENTIAL,Peoples Services,Respite Care,A56116
London Borough of Sutton,26/11/2021,50082425,"3,830.40",Country Court Care Homes 2 Ltd,SOCIAL SERVICES RESIDENTIAL,Peoples Services,Nursing Care - Ext Provider,A56025
London Borough of Sutton,26/11/2021,50082425,-750.4,Country Court Care Homes 2 Ltd,SOCIAL SERVICES RESIDENTIAL,Peoples Services,Nursing Care - 3rd party top up payment,A56023
London Borough of Sutton,26/11/2021,50082599,"4,535.68",Country Court Care Homes 2 Ltd,SOCIAL SERVICES RESIDENTIAL,Peoples Services,Nursing Care - Ext Provider,A56025
London Borough of Sutton,26/11/2021,50082599,-735.68,Country Court Care Homes 2 Ltd,SOCIAL SERVICES RESIDENTIAL,Peoples Services,Nursing Care - 3rd party top up payment,A56023
London Borough of Sutton,03/11/2021,20012527,575,CPCAB,TEMP STAFF & CONSULTANCY,Health and Wellbeing,Examination Fees,A44200
London Borough of Sutton,26/11/2021,20013847,"2,736.00",CPCAB,TEMP STAFF & CONSULTANCY,Health and Wellbeing,Examination Fees,A44200
London Borough of Sutton,26/11/2021,20013848,"3,729.00",CPCAB,TEMP STAFF & CONSULTANCY,Health and Wellbeing,Examination Fees,A44200
London Borough of Sutton,26/11/2021,20013849,"4,068.00",CPCAB,TEMP STAFF & CONSULTANCY,Health and Wellbeing,Examination Fees,A44200
London Borough of Sutton,01/11/2021,20012695,"151,231.67",Cranstoun,SOCIAL SERVICES - OTHER,Health and Wellbeing,Provider Contract Payments,A44290
London Borough of Sutton,05/11/2021,50079337,"24,171.42",Creating Care Choices Ltd,SOCIAL SERVICES RESIDENTIAL,Peoples Services,Residential Care-Children,A56115
London Borough of Sutton,05/11/2021,50079343,"24,977.14",Creating Care Choices Ltd,SOCIAL SERVICES RESIDENTIAL,Peoples Services,Residential Care-Children,A56115
London Borough of Sutton,08/10/2021,50074846,"6,957.29",Credo Care Limited,CHILDREN'S SERVICE - OTHER,Peoples Services,Foster Parents Support,A44110
London Borough of Sutton,29/10/2021,50072326,"3,736.00",CRNH Ltd,SOCIAL SERVICES RESIDENTIAL,Peoples Services,Nursing Care Short Term,A56026
London Borough of Sutton,29/10/2021,50072326,-750.4,CRNH Ltd,SOCIAL SERVICES RESIDENTIAL,Peoples Services,Nursing Care - 3rd party top up payment,A56023
London Borough of Sutton,29/10/2021,50072338,-662.24,CRNH Ltd,SOCIAL SERVICES RESIDENTIAL,Peoples Services,Nursing Care - 3rd party top up payment,A56023
London Borough of Sutton,29/10/2021,50072338,"4,070.40",CRNH Ltd,SOCIAL SERVICES RESIDENTIAL,Peoples Services,Nursing Care - Ext Provider,A56025
London Borough of Sutton,29/10/2021,50072361,"3,556.00",CRNH Ltd,SOCIAL SERVICES RESIDENTIAL,Peoples Services,Nursing Care - Ext Provider,A56025
London Borough of Sutton,29/10/2021,50072373,-632.64,CRNH Ltd,SOCIAL SERVICES RESIDENTIAL,Peoples Services,Nursing Care - 3rd party top up payment,A56023
London Borough of Sutton,29/10/2021,50072417,"3,502.08",CRNH Ltd,SOCIAL SERVICES RESIDENTIAL,Peoples Services,Nursing Care - Ext Provider,A56025
London Borough of Sutton,29/10/2021,50072417,-632.64,CRNH Ltd,SOCIAL SERVICES RESIDENTIAL,Peoples Services,Nursing Care - 3rd party top up payment,A56023
London Borough of Sutton,29/10/2021,50072433,-735.68,CRNH Ltd,SOCIAL SERVICES RESIDENTIAL,Peoples Services,Nursing Care - 3rd party top up payment,A56023
London Borough of Sutton,29/10/2021,50072433,"3,612.00",CRNH Ltd,SOCIAL SERVICES RESIDENTIAL,Peoples Services,Nursing Care Short Term,A56026
London Borough of Sutton,29/10/2021,50072443,"3,555.32",CRNH Ltd,SOCIAL SERVICES RESIDENTIAL,Peoples Services,Nursing Care - Ext Provider,A56025
London Borough of Sutton,29/10/2021,50072443,-662.24,CRNH Ltd,SOCIAL SERVICES RESIDENTIAL,Peoples Services,Nursing Care - 3rd party top up payment,A56023
London Borough of Sutton,29/10/2021,50072499,"3,612.00",CRNH Ltd,SOCIAL SERVICES RESIDENTIAL,Peoples Services,Nursing Care - Ext Provider,A56025
London Borough of Sutton,29/10/2021,50072499,-735.68,CRNH Ltd,SOCIAL SERVICES RESIDENTIAL,Peoples Services,Nursing Care - 3rd party top up payment,A56023
London Borough of Sutton,29/10/2021,50072570,-735.68,CRNH Ltd,SOCIAL SERVICES RESIDENTIAL,Peoples Services,Nursing Care - 3rd party top up payment,A56023
London Borough of Sutton,29/10/2021,50072570,"3,612.00",CRNH Ltd,SOCIAL SERVICES RESIDENTIAL,Peoples Services,Nursing Care - Ext Provider,A56025
London Borough of Sutton,29/10/2021,50072620,"3,612.00",CRNH Ltd,SOCIAL SERVICES RESIDENTIAL,Peoples Services,Nursing Care - Ext Provider,A56025
London Borough of Sutton,29/10/2021,50072620,-735.68,CRNH Ltd,SOCIAL SERVICES RESIDENTIAL,Peoples Services,Nursing Care - 3rd party top up payment,A56023
London Borough of Sutton,19/11/2021,50078967,"7,429.50",CRNH Ltd,SOCIAL SERVICES RESIDENTIAL,Peoples Services,Other Income - Outside Scope,A92127
London Borough of Sutton,19/11/2021,50078968,"5,293.47",CRNH Ltd,SOCIAL SERVICES RESIDENTIAL,Peoples Services,Contract Cleaning,A27010
London Borough of Sutton,19/11/2021,50078969,523.58,CRNH Ltd,SOCIAL SERVICES RESIDENTIAL,Peoples Services,Other Income - Outside Scope,A92127
London Borough of Sutton,26/11/2021,50082255,-632.64,CRNH Ltd,SOCIAL SERVICES RESIDENTIAL,Peoples Services,Nursing Care - 3rd party top up payment,A56023
London Borough of Sutton,26/11/2021,50082291,-735.68,CRNH Ltd,SOCIAL SERVICES RESIDENTIAL,Peoples Services,Nursing Care - 3rd party top up payment,A56023
London Borough of Sutton,26/11/2021,50082291,"3,612.00",CRNH Ltd,SOCIAL SERVICES RESIDENTIAL,Peoples Services,Nursing Care - Ext Provider,A56025
London Borough of Sutton,26/11/2021,50082350,"3,612.00",CRNH Ltd,SOCIAL SERVICES RESIDENTIAL,Peoples Services,Nursing Care - Ext Provider,A56025
London Borough of Sutton,26/11/2021,50082350,-735.68,CRNH Ltd,SOCIAL SERVICES RESIDENTIAL,Peoples Services,Nursing Care - 3rd party top up payment,A56023
London Borough of Sutton,26/11/2021,50082351,-294.8,CRNH Ltd,SOCIAL SERVICES RESIDENTIAL,Peoples Services,Nursing Care - 3rd party top up payment,A56023
London Borough of Sutton,26/11/2021,50082351,"1,467.71",CRNH Ltd,SOCIAL SERVICES RESIDENTIAL,Peoples Services,Nursing Care Short Term,A56026
London Borough of Sutton,26/11/2021,50082446,-735.68,CRNH Ltd,SOCIAL SERVICES RESIDENTIAL,Peoples Services,Nursing Care - 3rd party top up payment,A56023
London Borough of Sutton,26/11/2021,50082446,"3,612.00",CRNH Ltd,SOCIAL SERVICES RESIDENTIAL,Peoples Services,Nursing Care Short Term,A56026
London Borough of Sutton,26/11/2021,50082447,"3,502.08",CRNH Ltd,SOCIAL SERVICES RESIDENTIAL,Peoples Services,Nursing Care - Ext Provider,A56025
London Borough of Sutton,26/11/2021,50082447,-632.64,CRNH Ltd,SOCIAL SERVICES RESIDENTIAL,Peoples Services,Nursing Care - 3rd party top up payment,A56023
London Borough of Sutton,26/11/2021,50082448,"3,555.32",CRNH Ltd,SOCIAL SERVICES RESIDENTIAL,Peoples Services,Nursing Care - Ext Provider,A56025
London Borough of Sutton,26/11/2021,50082448,-662.24,CRNH Ltd,SOCIAL SERVICES RESIDENTIAL,Peoples Services,Nursing Care - 3rd party top up payment,A56023
London Borough of Sutton,26/11/2021,50082519,"3,612.00",CRNH Ltd,SOCIAL SERVICES RESIDENTIAL,Peoples Services,Nursing Care - Ext Provider,A56025
London Borough of Sutton,26/11/2021,50082519,-735.68,CRNH Ltd,SOCIAL SERVICES RESIDENTIAL,Peoples Services,Nursing Care - 3rd party top up payment,A56023
London Borough of Sutton,26/11/2021,50082541,"3,736.00",CRNH Ltd,SOCIAL SERVICES RESIDENTIAL,Peoples Services,Nursing Care Short Term,A56026
London Borough of Sutton,26/11/2021,50082541,-750.4,CRNH Ltd,SOCIAL SERVICES RESIDENTIAL,Peoples Services,Nursing Care - 3rd party top up payment,A56023
London Borough of Sutton,26/11/2021,50082542,"3,556.00",CRNH Ltd,SOCIAL SERVICES RESIDENTIAL,Peoples Services,Nursing Care - Ext Provider,A56025
London Borough of Sutton,26/11/2021,50082543,"4,070.40",CRNH Ltd,SOCIAL SERVICES RESIDENTIAL,Peoples Services,Nursing Care - Ext Provider,A56025
London Borough of Sutton,26/11/2021,50082543,-662.24,CRNH Ltd,SOCIAL SERVICES RESIDENTIAL,Peoples Services,Nursing Care - 3rd party top up payment,A56023
London Borough of Sutton,29/10/2021,50072470,"3,735.43",Cross Care Services Ltd,SOCIAL SERVICES RESIDENTIAL,Peoples Services,Nursing Care Short Term,A56026
London Borough of Sutton,29/10/2021,50072470,-750.4,Cross Care Services Ltd,SOCIAL SERVICES RESIDENTIAL,Peoples Services,Nursing Care - 3rd party top up payment,A56023
London Borough of Sutton,29/10/2021,50072481,"3,171.44",Cross Care Services Ltd,SOCIAL SERVICES RESIDENTIAL,Peoples Services,Nursing Care - Ext Provider,A56025
London Borough of Sutton,29/10/2021,50072481,-662.24,Cross Care Services Ltd,SOCIAL SERVICES RESIDENTIAL,Peoples Services,Nursing Care - 3rd party top up payment,A56023
London Borough of Sutton,29/10/2021,50072541,"3,612.00",Cross Care Services Ltd,SOCIAL SERVICES RESIDENTIAL,Peoples Services,Nursing Care - Ext Provider,A56025
London Borough of Sutton,29/10/2021,50072541,-735.68,Cross Care Services Ltd,SOCIAL SERVICES RESIDENTIAL,Peoples Services,Nursing Care - 3rd party top up payment,A56023
London Borough of Sutton,29/10/2021,50072605,"3,502.08",Cross Care Services Ltd,SOCIAL SERVICES RESIDENTIAL,Peoples Services,Nursing Care - Ext Provider,A56025
London Borough of Sutton,29/10/2021,50072616,"3,611.68",Cross Care Services Ltd,SOCIAL SERVICES RESIDENTIAL,Peoples Services,Nursing Care - Ext Provider,A56025
London Borough of Sutton,29/10/2021,50072616,-735.68,Cross Care Services Ltd,SOCIAL SERVICES RESIDENTIAL,Peoples Services,Nursing Care - 3rd party top up payment,A56023
London Borough of Sutton,29/10/2021,50072665,"3,612.00",Cross Care Services Ltd,SOCIAL SERVICES RESIDENTIAL,Peoples Services,Nursing Care - Ext Provider,A56025
London Borough of Sutton,29/10/2021,50072665,-735.68,Cross Care Services Ltd,SOCIAL SERVICES RESIDENTIAL,Peoples Services,Nursing Care - 3rd party top up payment,A56023
London Borough of Sutton,29/10/2021,50072666,"3,612.00",Cross Care Services Ltd,SOCIAL SERVICES RESIDENTIAL,Peoples Services,Nursing Care - Ext Provider,A56025
London Borough of Sutton,29/10/2021,50072666,-735.68,Cross Care Services Ltd,SOCIAL SERVICES RESIDENTIAL,Peoples Services,Nursing Care - 3rd party top up payment,A56023
London Borough of Sutton,19/11/2021,50078912,"7,620.00",Cross Care Services Ltd,SOCIAL SERVICES RESIDENTIAL,Peoples Services,Other Income - Outside Scope,A92127
London Borough of Sutton,19/11/2021,50078913,"5,400.00",Cross Care Services Ltd,SOCIAL SERVICES RESIDENTIAL,Peoples Services,Contract Cleaning,A27010
London Borough of Sutton,19/11/2021,50078914,537,Cross Care Services Ltd,SOCIAL SERVICES RESIDENTIAL,Peoples Services,Other Income - Outside Scope,A92127
London Borough of Sutton,26/11/2021,50082287,"3,502.08",Cross Care Services Ltd,SOCIAL SERVICES RESIDENTIAL,Peoples Services,Nursing Care - Ext Provider,A56025
London Borough of Sutton,26/11/2021,50082336,"3,611.68",Cross Care Services Ltd,SOCIAL SERVICES RESIDENTIAL,Peoples Services,Nursing Care - Ext Provider,A56025
London Borough of Sutton,26/11/2021,50082336,-735.68,Cross Care Services Ltd,SOCIAL SERVICES RESIDENTIAL,Peoples Services,Nursing Care - 3rd party top up payment,A56023
London Borough of Sutton,26/11/2021,50082389,"3,612.00",Cross Care Services Ltd,SOCIAL SERVICES RESIDENTIAL,Peoples Services,Nursing Care - Ext Provider,A56025
London Borough of Sutton,26/11/2021,50082389,-735.68,Cross Care Services Ltd,SOCIAL SERVICES RESIDENTIAL,Peoples Services,Nursing Care - 3rd party top up payment,A56023
London Borough of Sutton,26/11/2021,50082390,"3,612.00",Cross Care Services Ltd,SOCIAL SERVICES RESIDENTIAL,Peoples Services,Nursing Care - Ext Provider,A56025
London Borough of Sutton,26/11/2021,50082390,-735.68,Cross Care Services Ltd,SOCIAL SERVICES RESIDENTIAL,Peoples Services,Nursing Care - 3rd party top up payment,A56023
London Borough of Sutton,26/11/2021,50082484,"7,106.36",Cross Care Services Ltd,SOCIAL SERVICES RESIDENTIAL,Peoples Services,Nursing Care - Ext Provider,A56025
London Borough of Sutton,26/11/2021,50082484,"-1,424.19",Cross Care Services Ltd,SOCIAL SERVICES RESIDENTIAL,Peoples Services,Nursing Care - 3rd party top up payment,A56023
London Borough of Sutton,26/11/2021,50082582,"3,612.00",Cross Care Services Ltd,SOCIAL SERVICES RESIDENTIAL,Peoples Services,Nursing Care - Ext Provider,A56025
London Borough of Sutton,26/11/2021,50082582,-735.68,Cross Care Services Ltd,SOCIAL SERVICES RESIDENTIAL,Peoples Services,Nursing Care - 3rd party top up payment,A56023
London Borough of Sutton,29/10/2021,50072559,"2,634.68",Crossways Community,SOCIAL SERVICES RESIDENTIAL,Peoples Services,Residential Care - Ext Provider,A56114
London Borough of Sutton,29/10/2021,50072600,"-2,042.44",Crossways Community,SOCIAL SERVICES RESIDENTIAL,Peoples Services,Nursing Care - 3rd party top up payment,A56023
London Borough of Sutton,29/10/2021,50072600,"4,168.24",Crossways Community,SOCIAL SERVICES RESIDENTIAL,Peoples Services,Residential Care - Ext Provider,A56114
London Borough of Sutton,26/11/2021,50082294,"-2,042.44",Crossways Community,SOCIAL SERVICES RESIDENTIAL,Peoples Services,Nursing Care - 3rd party top up payment,A56023
London Borough of Sutton,26/11/2021,50082294,"4,168.24",Crossways Community,SOCIAL SERVICES RESIDENTIAL,Peoples Services,Residential Care - Ext Provider,A56114
London Borough of Sutton,26/11/2021,50082625,"2,634.68",Crossways Community,SOCIAL SERVICES RESIDENTIAL,Peoples Services,Residential Care - Ext Provider,A56114
London Borough of Sutton,31/10/2021,20012563,"2,429.00",Croydon Court Ltd,ACCOMMODATION BED & BREAKFAST,Environment Housing and Neighbourhoods,Bed & Breakfast,A56000
London Borough of Sutton,31/10/2021,20012576,"1,085.00",Croydon Court Ltd,ACCOMMODATION BED & BREAKFAST,Peoples Services,C.C.A Rent & Utilities,A61009
London Borough of Sutton,31/10/2021,20012780,"2,429.00",Croydon Court Ltd,ACCOMMODATION BED & BREAKFAST,Environment Housing and Neighbourhoods,Bed & Breakfast,A56000
London Borough of Sutton,01/11/2021,20012970,641.19,CSL Dualcom Ltd,BUSINESS & COMPUTER SYSTEMS,Resources,FM - Planned Maintenance Contract - Mitie,A56097
London Borough of Sutton,29/10/2021,50072245,"7,200.00",CSS Ltd ,SOCIAL SERVICES RESIDENTIAL,Peoples Services,Residential Care - Ext Provider,A56114
London Borough of Sutton,26/11/2021,50082232,"7,200.00",CSS Ltd ,SOCIAL SERVICES RESIDENTIAL,Peoples Services,Residential Care - Ext Provider,A56114
London Borough of Sutton,15/11/2021,50078161,600,CSS Ltd ,SOCIAL SERVICES RESIDENTIAL,Peoples Services,Day Care Services,A56021
London Borough of Sutton,09/11/2021,50073569,"161,839.44",Culvers House Primary School,GRANTS & EX GRATIA PAYMENTS,Peoples Services,Payments to Schools,A51013
London Borough of Sutton,09/11/2021,50073610,"6,496.88",Culvers House Primary School,GRANTS & EX GRATIA PAYMENTS,Peoples Services,Place Funding,A56110
London Borough of Sutton,09/11/2021,50073706,"4,241.25",Culvers House Primary School,GRANTS & EX GRATIA PAYMENTS,Peoples Services,Payments to Schools,A51013
London Borough of Sutton,09/11/2021,50073731,"3,780.00",Culvers House Primary School,GRANTS & EX GRATIA PAYMENTS,Peoples Services,Payments to Schools,A51013
London Borough of Sutton,09/11/2021,50073781,"2,190.00",Culvers House Primary School,GRANTS & EX GRATIA PAYMENTS,Resources,"Grants, Contributions & Donations",A47005
London Borough of Sutton,08/11/2021,50076220,"3,212.50",Culvers House Primary School,GRANTS & EX GRATIA PAYMENTS,Peoples Services,Top-up Funding,A51016
London Borough of Sutton,29/10/2021,50072262,"20,400.00",Curado Limited,GRANTS & EX GRATIA PAYMENTS,Peoples Services,Interim Placements - Ext Provider,A56102
London Borough of Sutton,19/11/2021,50078911,762,Curado Limited,GRANTS & EX GRATIA PAYMENTS,Peoples Services,Other Income - Outside Scope,A92127
London Borough of Sutton,26/11/2021,50082239,"5,600.00",Curado Limited,GRANTS & EX GRATIA PAYMENTS,Peoples Services,Interim Placements - Ext Provider,A56102
London Borough of Sutton,31/10/2021,20012320,552.25,Cygnet IT Services CIC,BUSINESS & COMPUTER SYSTEMS,Development Growth and Regeneration,Other Capital Expenditure,C20002
London Borough of Sutton,25/11/2021,20013813,665,Cygnet IT Services CIC,BUSINESS & COMPUTER SYSTEMS,Development Growth and Regeneration,External Fees and Consultants,C20000
London Borough of Sutton,11/11/2021,20012259,805,REDACTED - PERSONAL DATA,GRANTS & EX GRATIA PAYMENTS,Environment Housing and Neighbourhoods,Temporary Protection - Homeless Persons,A62028
London Borough of Sutton,26/10/2021,20012170,800,REDACTED - PERSONAL DATA,SUNDRY SUPPLIER - EDUCATION,Peoples Services,Equipment And Materials Purchase,A40000
London Borough of Sutton,25/10/2021,20012188,750,DW Consulting,TEMP STAFF & CONSULTANCY,Peoples Services,Staff Development And Training,A15022
London Borough of Sutton,22/11/2021,20013590,"2,084.08",Darwin Group Ltd,CONSTRUCTION INDUSTRY,Peoples Services,Payments to Contractors,C14000
London Borough of Sutton,17/11/2021,20013295,"1,615.38",Davenport Ventures Ltd,SUNDRY SUPPLIER - HOUSING,Environment Housing and Neighbourhoods,Miscellaneous Expenses,A49000
London Borough of Sutton,18/11/2021,20013520,"1,507.69",Davenport Ventures Ltd,SUNDRY SUPPLIER - HOUSING,Environment Housing and Neighbourhoods,Miscellaneous Expenses,A49000
London Borough of Sutton,01/11/2021,20012200,"1,571.46",David Rea T/A Angel Lettings,ACCOMMODATION BED & BREAKFAST,Environment Housing and Neighbourhoods,Temporary Protection - Homeless Persons,A62028
London Borough of Sutton,01/11/2021,20012199,"2,560.89",David Rea T/A Dreamlettings,ACCOMMODATION BED & BREAKFAST,Environment Housing and Neighbourhoods,Temporary Protection - Homeless Persons,A62028
London Borough of Sutton,01/11/2021,20012275,"1,209.00",REDACTED - PERSONAL DATA,GRANTS & EX GRATIA PAYMENTS,Environment Housing and Neighbourhoods,Temporary Protection - Homeless Persons,A62028
London Borough of Sutton,24/10/2021,50075702,672,Day and Nite Services,SOCIAL SERVICES DAY CARE,Peoples Services,Home Care Services,A56019
London Borough of Sutton,24/10/2021,50075702,96,Day and Nite Services,SOCIAL SERVICES DAY CARE,Peoples Services,Home Care Services,A56019
London Borough of Sutton,24/10/2021,50075711,560,Day and Nite Services,SOCIAL SERVICES DAY CARE,Peoples Services,Home Care Services,A56019
London Borough of Sutton,24/10/2021,50075732,504,Day and Nite Services,SOCIAL SERVICES DAY CARE,Peoples Services,Home Care Services,A56019
London Borough of Sutton,31/10/2021,50078706,672,Day and Nite Services,SOCIAL SERVICES DAY CARE,Peoples Services,Home Care Services,A56019
London Borough of Sutton,31/10/2021,50078706,96,Day and Nite Services,SOCIAL SERVICES DAY CARE,Peoples Services,Home Care Services,A56019
London Borough of Sutton,31/10/2021,50078715,560,Day and Nite Services,SOCIAL SERVICES DAY CARE,Peoples Services,Home Care Services,A56019
London Borough of Sutton,31/10/2021,50078736,504,Day and Nite Services,SOCIAL SERVICES DAY CARE,Peoples Services,Home Care Services,A56019
London Borough of Sutton,14/11/2021,50080001,672,Day and Nite Services,SOCIAL SERVICES DAY CARE,Peoples Services,Home Care Services,A56019
London Borough of Sutton,14/11/2021,50080001,96,Day and Nite Services,SOCIAL SERVICES DAY CARE,Peoples Services,Home Care Services,A56019
London Borough of Sutton,07/11/2021,50080002,672,Day and Nite Services,SOCIAL SERVICES DAY CARE,Peoples Services,Home Care Services,A56019
London Borough of Sutton,07/11/2021,50080002,96,Day and Nite Services,SOCIAL SERVICES DAY CARE,Peoples Services,Home Care Services,A56019
London Borough of Sutton,14/11/2021,50080019,560,Day and Nite Services,SOCIAL SERVICES DAY CARE,Peoples Services,Home Care Services,A56019
London Borough of Sutton,07/11/2021,50080020,560,Day and Nite Services,SOCIAL SERVICES DAY CARE,Peoples Services,Home Care Services,A56019
London Borough of Sutton,07/11/2021,50080048,504,Day and Nite Services,SOCIAL SERVICES DAY CARE,Peoples Services,Home Care Services,A56019
London Borough of Sutton,14/11/2021,50080061,504,Day and Nite Services,SOCIAL SERVICES DAY CARE,Peoples Services,Home Care Services,A56019
London Borough of Sutton,07/11/2021,50080062,504,Day and Nite Services,SOCIAL SERVICES DAY CARE,Peoples Services,Home Care Services,A56019
London Borough of Sutton,21/11/2021,50082830,504,Day and Nite Services,SOCIAL SERVICES DAY CARE,Peoples Services,Home Care Services,A56019
London Borough of Sutton,21/11/2021,50082838,672,Day and Nite Services,SOCIAL SERVICES DAY CARE,Peoples Services,Home Care Services,A56019
London Borough of Sutton,21/11/2021,50082838,96,Day and Nite Services,SOCIAL SERVICES DAY CARE,Peoples Services,Home Care Services,A56019
London Borough of Sutton,21/11/2021,50082851,560,Day and Nite Services,SOCIAL SERVICES DAY CARE,Peoples Services,Home Care Services,A56019
London Borough of Sutton,01/11/2021,20012296,846,DCC Interactive Ltd,CONFERENCES,Peoples Services,Staff Development And Training,A15022
London Borough of Sutton,02/11/2021,20012379,846,DCC Interactive Ltd,CONFERENCES,Peoples Services,Staff Development And Training,A15022
London Borough of Sutton,04/11/2021,20012547,846,DCC Interactive Ltd,CONFERENCES,Peoples Services,Staff Development And Training,A15022
London Borough of Sutton,10/11/2021,20012889,875,Debigno Ltd ,TEMP STAFF & CONSULTANCY,Health and Wellbeing,Provider Contract Payments,A44290
London Borough of Sutton,27/10/2021,20011969,900,Delib Ltd,BUSINESS & COMPUTER SYSTEMS,Environment Housing and Neighbourhoods,External Fees and Consultants,C20000
London Borough of Sutton,02/11/2021,20012364,"2,077.00",Denhan Property Services,ACCOMMODATION BED & BREAKFAST,Environment Housing and Neighbourhoods,Bed & Breakfast,A56000
London Borough of Sutton,29/10/2021,50072407,"2,918.00",Denville Hall 2012,SOCIAL SERVICES RESIDENTIAL,Peoples Services,Residential Care - Ext Provider,A56114
London Borough of Sutton,26/11/2021,50082278,"2,918.00",Denville Hall 2012,SOCIAL SERVICES RESIDENTIAL,Peoples Services,Residential Care - Ext Provider,A56114
London Borough of Sutton,04/10/2021,20010661,"51,508.12",Department of Health and Social Care Income,SUNDRY SUPPLIER - ASC,Peoples Services,Contract Cleaning,A27010
London Borough of Sutton,01/11/2021,20012235,"131,536.04",Department of Health and Social Care Income,SUNDRY SUPPLIER - ASC,Peoples Services,First Aid Equipment,A40010
London Borough of Sutton,01/11/2021,20012236,"66,175.37",Department of Health and Social Care Income,SUNDRY SUPPLIER - ASC,Peoples Services,Contract Cleaning,A27010
London Borough of Sutton,29/10/2021,50072246,"3,060.00",Devaglade Trading Limited ,SOCIAL SERVICES RESIDENTIAL,Peoples Services,Residential Care - Ext Provider,A56114
London Borough of Sutton,26/11/2021,50082189,"3,060.00",Devaglade Trading Limited ,SOCIAL SERVICES RESIDENTIAL,Peoples Services,Residential Care - Ext Provider,A56114
London Borough of Sutton,09/11/2021,50073562,"249,204.61",Devonshire Primary School,GRANTS & EX GRATIA PAYMENTS,Peoples Services,Payments to Schools,A51013
London Borough of Sutton,09/11/2021,50073611,"14,196.00",Devonshire Primary School,GRANTS & EX GRATIA PAYMENTS,Peoples Services,Place Funding,A56110
London Borough of Sutton,09/11/2021,50073699,"6,452.50",Devonshire Primary School,GRANTS & EX GRATIA PAYMENTS,Peoples Services,Payments to Schools,A51013
London Borough of Sutton,09/11/2021,50073724,"5,433.75",Devonshire Primary School,GRANTS & EX GRATIA PAYMENTS,Peoples Services,Payments to Schools,A51013
London Borough of Sutton,09/11/2021,50073791,"2,730.00",Devonshire Primary School,GRANTS & EX GRATIA PAYMENTS,Resources,"Grants, Contributions & Donations",A47005
London Borough of Sutton,30/11/2021,50080471,755.5,Devonshire Primary School,GRANTS & EX GRATIA PAYMENTS,Peoples Services,Payments to Schools,A51013
London Borough of Sutton,20/09/2021,50076031,"4,470.88",Direct Care And Support Services,ACCOMMODATION - OTHER,Peoples Services,Supported Living,A56088
London Borough of Sutton,28/09/2021,50076032,"2,490.00",Direct Care And Support Services,ACCOMMODATION - OTHER,Peoples Services,Supported Living,A56088
London Borough of Sutton,02/10/2021,50076035,"7,669.20",Direct Care And Support Services,ACCOMMODATION - OTHER,Peoples Services,Supported Living,A56088
London Borough of Sutton,13/10/2021,50076040,"2,232.44",Direct Care And Support Services,ACCOMMODATION - OTHER,Peoples Services,Supported Living,A56088
London Borough of Sutton,06/11/2021,50076137,"1,315.40",Direct Care And Support Services,ACCOMMODATION - OTHER,Peoples Services,Supported Living,A56088
London Borough of Sutton,06/10/2021,50076141,"1,315.40",Direct Care And Support Services,ACCOMMODATION - OTHER,Peoples Services,Supported Living,A56088
London Borough of Sutton,10/11/2021,50078028,"2,161.00",Direct Care And Support Services,ACCOMMODATION - OTHER,Peoples Services,Supported Living,A56088
London Borough of Sutton,16/11/2021,50078329,"3,692.48",Direct Care And Support Services,ACCOMMODATION - OTHER,Peoples Services,Supported Living,A56088
London Borough of Sutton,16/11/2021,50078369,"3,692.48",Direct Care And Support Services,ACCOMMODATION - OTHER,Peoples Services,Supported Living,A56088
London Borough of Sutton,16/11/2021,50078370,"3,692.48",Direct Care And Support Services,ACCOMMODATION - OTHER,Peoples Services,Supported Living,A56088
London Borough of Sutton,13/11/2021,50078385,"2,232.44",Direct Care And Support Services,ACCOMMODATION - OTHER,Peoples Services,Supported Living,A56088
London Borough of Sutton,20/11/2021,50080366,"4,470.88",Direct Care And Support Services,ACCOMMODATION - OTHER,Peoples Services,Supported Living,A56088
London Borough of Sutton,27/11/2021,20013941,938.34,REDACTED - PERSONAL DATA,PLS LANDLORDS,Environment Housing and Neighbourhoods,Temporary Protection - Homeless Persons,A62028
London Borough of Sutton,09/11/2021,50074159,621.6,Dolphin Day Nursery,GRANTS & EX GRATIA PAYMENTS,Peoples Services,Place Funding,A56110
London Borough of Sutton,09/11/2021,50074231,"2,184.00",Dolphin Day Nursery,GRANTS & EX GRATIA PAYMENTS,Peoples Services,Place Funding,A56110
London Borough of Sutton,09/11/2021,50074232,819,REDACTED - PERSONAL DATA,GRANTS & EX GRATIA PAYMENTS,Peoples Services,Place Funding,A56110
London Borough of Sutton,09/11/2021,50073564,"194,534.43",Dorchester Primary School,GRANTS & EX GRATIA PAYMENTS,Peoples Services,Payments to Schools,A51013
London Borough of Sutton,09/11/2021,50073612,"13,377.00",Dorchester Primary School,GRANTS & EX GRATIA PAYMENTS,Peoples Services,Place Funding,A56110
London Borough of Sutton,09/11/2021,50073701,"2,573.75",Dorchester Primary School,GRANTS & EX GRATIA PAYMENTS,Peoples Services,Payments to Schools,A51013
London Borough of Sutton,09/11/2021,50073726,"2,244.37",Dorchester Primary School,GRANTS & EX GRATIA PAYMENTS,Peoples Services,Payments to Schools,A51013
London Borough of Sutton,09/11/2021,50073792,"1,305.00",Dorchester Primary School,GRANTS & EX GRATIA PAYMENTS,Resources,"Grants, Contributions & Donations",A47005
London Borough of Sutton,08/11/2021,20012760,"1,000.00",REDACTED - PERSONAL DATA,GRANTS & EX GRATIA PAYMENTS,Environment Housing and Neighbourhoods,Temporary Protection - Homeless Persons,A62028
London Borough of Sutton,03/11/2021,20012475,320.52,DSI Billing Services Ltd,OFFICE SERVICES,Resources,Postage & Couriers,A45015
London Borough of Sutton,03/11/2021,20012475,320.52,DSI Billing Services Ltd,OFFICE SERVICES,Resources,Postage & Couriers,A45015
London Borough of Sutton,01/10/2021,20012045,"2,778.71",Dunfield & Mead Ltd,CHILDREN'S SERVICES - RESIDENTIAL,Peoples Services,Approved Lodgings,A61000
London Borough of Sutton,01/10/2021,20012046,"4,018.92",Dunfield & Mead Ltd,CHILDREN'S SERVICES - RESIDENTIAL,Peoples Services,Approved Lodgings,A61000
London Borough of Sutton,01/10/2021,20012047,"2,214.28",Dunfield & Mead Ltd,CHILDREN'S SERVICES - RESIDENTIAL,Peoples Services,Approved Lodgings,A61000
London Borough of Sutton,01/10/2021,20012048,"2,767.85",Dunfield & Mead Ltd,CHILDREN'S SERVICES - RESIDENTIAL,Peoples Services,Approved Lodgings,A61000
London Borough of Sutton,01/10/2021,20012049,"1,771.42",Dunfield & Mead Ltd,CHILDREN'S SERVICES - RESIDENTIAL,Peoples Services,Approved Lodgings,A61000
London Borough of Sutton,01/10/2021,20012051,"1,472.14",Dunfield & Mead Ltd,CHILDREN'S SERVICES - RESIDENTIAL,Peoples Services,Approved Lodgings,A61000
London Borough of Sutton,01/10/2021,20012053,"3,203.58",Dunfield & Mead Ltd,CHILDREN'S SERVICES - RESIDENTIAL,Peoples Services,Approved Lodgings,A61000
London Borough of Sutton,01/10/2021,20012129,"4,018.92",Dunfield & Mead Ltd,CHILDREN'S SERVICES - RESIDENTIAL,Peoples Services,Approved Lodgings,A61000
London Borough of Sutton,01/11/2021,20013910,839.28,Dunfield & Mead Ltd,CHILDREN'S SERVICES - RESIDENTIAL,Peoples Services,Approved Lodgings,A61000
London Borough of Sutton,01/10/2021,50074778,"4,018.92",Dunfield & Mead Ltd,CHILDREN'S SERVICES - RESIDENTIAL,Peoples Services,Accommodation - Supported Living,A62001
London Borough of Sutton,01/10/2021,50074783,"4,018.92",Dunfield & Mead Ltd,CHILDREN'S SERVICES - RESIDENTIAL,Peoples Services,Accommodation - Supported Living,A62001
London Borough of Sutton,01/10/2021,50074784,"4,018.92",Dunfield & Mead Ltd,CHILDREN'S SERVICES - RESIDENTIAL,Peoples Services,Accommodation - Supported Living,A62001
London Borough of Sutton,01/10/2021,50074785,"4,351.07",Dunfield & Mead Ltd,CHILDREN'S SERVICES - RESIDENTIAL,Peoples Services,Approved Lodgings,A61000
London Borough of Sutton,01/10/2021,50074786,"4,683.21",Dunfield & Mead Ltd,CHILDREN'S SERVICES - RESIDENTIAL,Peoples Services,Accommodation - Supported Living,A62001
London Borough of Sutton,31/10/2021,20012657,"4,227.00",Dunheved Hotel Ltd,ACCOMMODATION BED & BREAKFAST,Environment Housing and Neighbourhoods,Bed & Breakfast,A56000
London Borough of Sutton,29/10/2021,50072647,"3,071.92",Dunheved Lodge,SOCIAL SERVICES RESIDENTIAL,Peoples Services,Residential Care - Ext Provider,A56114
London Borough of Sutton,29/10/2021,50072647,"3,016.00",Dunheved Lodge,SOCIAL SERVICES RESIDENTIAL,Peoples Services,One to One Care,A56108
London Borough of Sutton,26/11/2021,50082420,"3,071.92",Dunheved Lodge,SOCIAL SERVICES RESIDENTIAL,Peoples Services,Residential Care - Ext Provider,A56114
London Borough of Sutton,26/11/2021,50082420,"3,016.00",Dunheved Lodge,SOCIAL SERVICES RESIDENTIAL,Peoples Services,One to One Care,A56108
London Borough of Sutton,20/10/2021,20012571,"4,317.85",Dynamic Care Ltd,SOCIAL SERVICES RESIDENTIAL,Peoples Services,Approved Lodgings,A61000
London Borough of Sutton,01/11/2021,50074809,"6,122.48",Dynamic Care Ltd,SOCIAL SERVICES RESIDENTIAL,Peoples Services,Approved Lodgings,A61000
London Borough of Sutton,01/11/2021,50074919,"7,504.98",Dynamic Care Ltd,SOCIAL SERVICES RESIDENTIAL,Peoples Services,Approved Lodgings,A61000
London Borough of Sutton,20/10/2021,20011829,"1,023.00",E & R Moffat Ltd,BUILDING MNTCE - SERVICES,Resources,Equipment And Materials Purchase,A40000
London Borough of Sutton,31/10/2021,20012201,"19,233.05",E Homes And Shelters,ACCOMMODATION BED & BREAKFAST,Environment Housing and Neighbourhoods,Bed & Breakfast,A56000
London Borough of Sutton,13/11/2021,20013270,423.1,E Pollard & Sons Limited,SUNDRY SUPPLIER - ASC,Health and Wellbeing,Equipment And Materials Purchase,A40000
London Borough of Sutton,05/11/2021,20013252,"1,396.43",REDACTED - PERSONAL DATA,SUNDRY SUPPLIER - ASC,Environment Housing and Neighbourhoods,Accommodation - Bed and Breakfast,A62000
London Borough of Sutton,25/10/2021,50073524,"18,204.67",Eagle House Junior School,GRANTS & EX GRATIA PAYMENTS,Peoples Services,Independent School Fees,A56002
London Borough of Sutton,29/10/2021,50072596,"3,379.20",Eastcroft Nursing Home,SOCIAL SERVICES RESIDENTIAL,Peoples Services,Nursing Care - Ext Provider,A56025
London Borough of Sutton,29/10/2021,50072596,-448,Eastcroft Nursing Home,SOCIAL SERVICES RESIDENTIAL,Peoples Services,Nursing Care - 3rd party top up payment,A56023
London Borough of Sutton,29/10/2021,50072641,"3,626.72",Eastcroft Nursing Home,SOCIAL SERVICES RESIDENTIAL,Peoples Services,Nursing Care - Ext Provider,A56025
London Borough of Sutton,29/10/2021,50072641,-750.4,Eastcroft Nursing Home,SOCIAL SERVICES RESIDENTIAL,Peoples Services,Nursing Care - 3rd party top up payment,A56023
London Borough of Sutton,29/10/2021,50072694,"3,626.72",Eastcroft Nursing Home,SOCIAL SERVICES RESIDENTIAL,Peoples Services,Nursing Care - Ext Provider,A56025
London Borough of Sutton,29/10/2021,50072694,-750.4,Eastcroft Nursing Home,SOCIAL SERVICES RESIDENTIAL,Peoples Services,Nursing Care - 3rd party top up payment,A56023
London Borough of Sutton,26/11/2021,50082303,"3,379.20",Eastcroft Nursing Home,SOCIAL SERVICES RESIDENTIAL,Peoples Services,Nursing Care - Ext Provider,A56025
London Borough of Sutton,26/11/2021,50082303,-448,Eastcroft Nursing Home,SOCIAL SERVICES RESIDENTIAL,Peoples Services,Nursing Care - 3rd party top up payment,A56023
London Borough of Sutton,26/11/2021,50082362,"3,626.72",Eastcroft Nursing Home,SOCIAL SERVICES RESIDENTIAL,Peoples Services,Nursing Care - Ext Provider,A56025
London Borough of Sutton,26/11/2021,50082362,-750.4,Eastcroft Nursing Home,SOCIAL SERVICES RESIDENTIAL,Peoples Services,Nursing Care - 3rd party top up payment,A56023
London Borough of Sutton,26/11/2021,50082402,"3,626.72",Eastcroft Nursing Home,SOCIAL SERVICES RESIDENTIAL,Peoples Services,Nursing Care - Ext Provider,A56025
London Borough of Sutton,26/11/2021,50082402,-750.4,Eastcroft Nursing Home,SOCIAL SERVICES RESIDENTIAL,Peoples Services,Nursing Care - 3rd party top up payment,A56023
